Local authority department which incurred the expenditure,Service Division,Cost Centre,Summary of the Purpose of Expenditure,Expense Type,Expense Code,Detailed Expense Type,Date of Transaction,Transaction Number,Beneficiary,Merchant Category Number,Merchant Category,Gross Amount,VAT,Net Amount
Children and Young Peoples Services,Head of Education and Skills,071801,Selby Cottage Childcare Centre,Supplies and Services,304259,Equipment and Materials,01-Oct-2018,000007892321269,ITUNES.COM/BILL,5735,Equipment-purchase and rental,0.79,0.00,0.79
Regeneration and Local Services,Spatial Policy Planning Assets & Environment,031200,North Pennines Core,Supplies and Services,348037,Subsistence E348,01-Oct-2018,000007892322149,THE GOLDEN ARCH (1203,5814,Subsistence,0.26,0.00,0.26
Regeneration and Local Services,Spatial Policy Planning Assets & Environment,031200,North Pennines Core,Transport,235057,Public Transport,01-Oct-2018,000007892322153,FOTAXI 1922,4121,Staff travelling,0.54,0.00,0.54
Regeneration and Local Services,Spatial Policy Planning Assets & Environment,031200,North Pennines Core,Supplies and Services,324117,Provisions E324,01-Oct-2018,000007892322155,SPAR 0173,5411,Catering costs - provisions,0.07,0.00,0.07
Regeneration and Local Services,Spatial Policy Planning Assets & Environment,031071,Sustainability and Climate Change,Supplies and Services,348037,Subsistence E348,01-Oct-2018,000007892322535,SO COFFEE,5812,Subsistence,0.33,0.00,0.33
Regeneration and Local Services,Direct Services,021242,Catering - County Hall,Supplies and Services,324117,Provisions E324,01-Oct-2018,000007900549091,SAINSBURYS 0776,5411,Catering costs - provisions,113.54,0.00,113.54
Children and Young Peoples Services,Head of Education and Skills,054640,Durham Learning Resources,Supplies and Services,304245,Equipment and Materials,01-Oct-2018,000007900549167,THE HISTORIC GAMES,5945,Materials,28.50,0.00,28.50
Children and Young Peoples Services,Head of Education and Skills,054640,Durham Learning Resources,Supplies and Services,304245,Equipment and Materials,01-Oct-2018,000007900549169,AMZN Mktp UK,5942,Materials,80.91,13.49,67.42
Children and Young Peoples Services,Head of Education and Skills,075021,Youth Employment Initiative,Supplies and Services,384199,Miscellaneous Expenses,01-Oct-2018,000007900549215,MIDDLESBROUGH COUNCIL,9399,Other hired and contracted services,12.00,0.00,12.00
Regeneration and Local Services,Direct Services,010383,C&G - South Street Cleansing,Supplies and Services,304221,Equipment and Materials,01-Oct-2018,000007900549239,S&A BUILDERS MERCHANTS,5211,Direct materials,79.73,13.29,66.44
Regeneration and Local Services,Economic Development and Housing,030708,VCD - Marketing & Information,Supplies and Services,384199,Miscellaneous Expenses,01-Oct-2018,000007900549265,MAILCHIMP MONTHLY,5968,Other hired and contracted services,223.22,0.00,223.22
Children and Young Peoples Services,"Head of Early Help, Inclusion and Vulnerable Children",071406,Tudhoe Childrens Centre,Supplies and Services,312009,Newspapers books and periodicals E312,01-Oct-2018,000007900549275,Amazon.co.uk,5969,Newspapers books and periodicals,54.29,0.00,54.29
Regeneration and Local Services,Economic Development and Housing,030699,Business Growth and Innovation General,Supplies and Services,304999,Equipment and Materials,01-Oct-2018,000007900549277,LINKEDIN-335 8561746,5968,Misc equipment tools and materials,4.52,0.00,4.52
Children and Young Peoples Services,"Head of Early Help, Inclusion and Vulnerable Children",071440,Barnard Castle One Point Hub,Supplies and Services,332047,Printing Stationery and Gen Off Exps,01-Oct-2018,000007900549347,Amazon.co.uk,5969,Stationery,39.23,6.54,32.69
Children and Young Peoples Services,"Head of Early Help, Inclusion and Vulnerable Children",071440,Barnard Castle One Point Hub,Supplies and Services,332047,Printing Stationery and Gen Off Exps,01-Oct-2018,000007900549349,Amazon.co.uk,5969,Stationery,121.45,20.24,101.21
Regeneration and Local Services,Direct Services,021242,Catering - County Hall,Supplies and Services,324117,Provisions E324,01-Oct-2018,000007900549365,WWW.ADELIEFOODS.CO.UK,5499,Catering costs - provisions,130.90,0.00,130.90
Regeneration and Local Services,Direct Services,021242,Catering - County Hall,Supplies and Services,324117,Provisions E324,01-Oct-2018,000007900549367,WWW.ADELIEFOODS.CO.UK,5499,Catering costs - provisions,88.90,0.00,88.90
Regeneration and Local Services,Direct Services,021242,Catering - County Hall,Supplies and Services,324117,Provisions E324,01-Oct-2018,000007900549369,FREEMAN CATERING BUTCH,5422,Catering costs - provisions,238.11,0.00,238.11
Regeneration and Local Services,Direct Services,021242,Catering - County Hall,Supplies and Services,324117,Provisions E324,01-Oct-2018,000007900549371,JR HOLLAND FOODSERVICE,5422,Catering costs - provisions,101.93,0.00,101.93
Regeneration and Local Services,Direct Services,021242,Catering - County Hall,Supplies and Services,324117,Provisions E324,01-Oct-2018,000007900549373,JR HOLLAND FOODSERVICE,5422,Catering costs - provisions,13.54,0.00,13.54
Regeneration and Local Services,Culture & Sport,054233,Bishop Auckland Town Hall Library,Supplies and Services,324117,Provisions E324,01-Oct-2018,000007900549377,ASDA STORES,5411,Catering costs - provisions,19.14,0.00,19.14
Children and Young Peoples Services,Head of Education and Skills,070169,Durham SSP,Supplies and Services,384199,Miscellaneous Expenses,01-Oct-2018,000007900549405,NET WORLD SPORTS,5999,Other hired and contracted services,69.93,0.00,69.93
Regeneration and Local Services,Culture & Sport,054812,Gala Theatre - Catering etc,Supplies and Services,324117,Provisions E324,01-Oct-2018,000007900549429,FREEMAN CATERING BUTCH,5422,Catering costs - provisions,16.20,0.00,16.20
Children and Young Peoples Services,Head of Childrens Social Care,085362,LAC & Permanence Team 2,Supplies and Services,384999,Miscellaneous Expenses,01-Oct-2018,000007900549467,GRO HM PASSPORT OFFICE,9399,Other expenses,18.50,0.00,18.50
Children and Young Peoples Services,Head of Education and Skills,071732,Dean Bank Childcare,Supplies and Services,324117,Provisions E324,01-Oct-2018,000007900549671,ASDA GROCERIES ONLINE,5411,Catering costs - provisions,53.34,0.00,53.34
Children and Young Peoples Services,Head of Education and Skills,071732,Dean Bank Childcare,Supplies and Services,324117,Provisions E324,01-Oct-2018,000007900549677,ASDA GROCERIES ONLINE,5411,Catering costs - provisions,0.02,0.00,0.02
Regeneration and Local Services,Culture & Sport,054813,Gala Theatre - Technical,Supplies and Services,312011,Newspapers books and periodicals E312,01-Oct-2018,000007900549695,AMZN Mktp UK,5942,Books-school library,30.98,0.00,30.98
Children and Young Peoples Services,Head of Childrens Social Care,085341,High Etherley Satelite Home,Supplies and Services,384999,Miscellaneous Expenses,01-Oct-2018,000007900549839,TESCO STORES 6329,5411,Other expenses,10.00,0.00,10.00
Regeneration and Local Services,Culture & Sport,054813,Gala Theatre - Technical,Supplies and Services,312011,Newspapers books and periodicals E312,01-Oct-2018,000007900549905,AMZN Mktp UK,5942,Books-school library,74.95,0.00,74.95
Regeneration and Local Services,Culture & Sport,054813,Gala Theatre - Technical,Supplies and Services,312011,Newspapers books and periodicals E312,01-Oct-2018,000007900549907,AMZN Mktp UK,5942,Books-school library,74.95,0.00,74.95
Regeneration and Local Services,Culture & Sport,011060,Hardwick Park Catering,Supplies and Services,324117,Provisions E324,01-Oct-2018,000007900549985,FREEMAN CATERING BUTCH,5422,Catering costs - provisions,45.15,0.00,45.15
Regeneration and Local Services,Culture & Sport,011060,Hardwick Park Catering,Supplies and Services,324117,Provisions E324,01-Oct-2018,000007900549987,FREEMAN CATERING BUTCH,5422,Catering costs - provisions,40.28,0.00,40.28
Regeneration and Local Services,Culture & Sport,011060,Hardwick Park Catering,Supplies and Services,324117,Provisions E324,01-Oct-2018,000007900549991,FREEMAN CATERING BUTCH,5422,Catering costs - provisions,36.95,0.00,36.95
Regeneration and Local Services,Culture & Sport,011060,Hardwick Park Catering,Supplies and Services,324117,Provisions E324,01-Oct-2018,000007900549995,JR HOLLAND FOODSERVICE,5422,Catering costs - provisions,56.48,0.00,56.48
Regeneration and Local Services,Direct Services,021234,Catering - Locomotion,Supplies and Services,324117,Provisions E324,01-Oct-2018,000007900550103,WWW.ADELIEFOODS.CO.UK,5499,Catering costs - provisions,67.19,0.00,67.19
Regeneration and Local Services,Direct Services,021234,Catering - Locomotion,Supplies and Services,324117,Provisions E324,01-Oct-2018,000007900550107,FREEMAN CATERING BUTCH,5422,Catering costs - provisions,94.38,0.00,94.38
Regeneration and Local Services,Direct Services,010525,Catering - Green Lane,Supplies and Services,324117,Provisions E324,01-Oct-2018,000007900550197,WWW.ADELIEFOODS.CO.UK,5499,Catering costs - provisions,35.64,0.00,35.64
Regeneration and Local Services,Direct Services,010525,Catering - Green Lane,Supplies and Services,324117,Provisions E324,01-Oct-2018,000007900550201,FREEMAN CATERING BUTCH,5422,Catering costs - provisions,51.58,0.00,51.58
Children and Young Peoples Services,Head of Childrens Social Care,085626,Families First Shildon/Chilton,Supplies and Services,384871,Miscellaneous Expenses,01-Oct-2018,000007900550283,COUNDON & LEEHOLME EAR,8299,Training-other activities,83.00,0.00,83.00
Children and Young Peoples Services,Head of Childrens Social Care,085341,High Etherley Satelite Home,Supplies and Services,324117,Provisions E324,01-Oct-2018,000007900550359,TESCO STORES 6329,5411,Catering costs - provisions,83.76,0.00,83.76
Children and Young Peoples Services,Head of Childrens Social Care,085352,Tow Law CU,Supplies and Services,324117,Provisions E324,01-Oct-2018,000007900550657,ASDA SUPERSTORE 4987,5411,Catering costs - provisions,61.82,0.00,61.82
Regeneration and Local Services,Direct Services,030691,"Catering - Durham Dales Centre			",Supplies and Services,324117,Provisions E324,01-Oct-2018,000007900550661,FREEMAN CATERING BUTCH,5422,Catering costs - provisions,137.79,0.00,137.79
Regeneration and Local Services,Direct Services,030691,"Catering - Durham Dales Centre			",Supplies and Services,324117,Provisions E324,01-Oct-2018,000007900550663,FREEMAN CATERING BUTCH,5422,Catering costs - provisions,63.66,0.00,63.66
Adult and Health Services,Head of Adults,055643,Hawthorn House LD Respite Unit,Supplies and Services,324117,Provisions E324,01-Oct-2018,000007900550725,FREEMAN CATERING BUTCH,5422,Catering costs - provisions,42.28,0.00,42.28
Children and Young Peoples Services,Head of Education and Skills,070264,EDC Premises,Supplies and Services,324117,Provisions E324,01-Oct-2018,000007900550779,ASDA SUPERSTORE 4987,5411,Catering costs - provisions,6.80,0.00,6.80
Children and Young Peoples Services,Head of Childrens Social Care,085380,Operations Manager Adoption & Fostering,Supplies and Services,324117,Provisions E324,01-Oct-2018,000007900550783,ASDA STORES,5411,Catering costs - provisions,8.79,0.00,8.79
Regeneration and Local Services,Direct Services,010301,C&G - North Grounds Maintenance,Supplies and Services,304221,Equipment and Materials,01-Oct-2018,000007900550825,WWW.ARCO.CO.UK,5085,Direct materials,60.29,0.00,60.29
Children and Young Peoples Services,"Head of Early Help, Inclusion and Vulnerable Children",085952,Secure Education,Supplies and Services,324117,Provisions E324,01-Oct-2018,000007900550925,TESCO STORES 6329,5411,Catering costs - provisions,94.54,0.00,94.54
Children and Young Peoples Services,Head of Childrens Social Care,085517,Supporting Solutions Service (Edge of Care),Supplies and Services,324117,Provisions E324,01-Oct-2018,000007900550983,ASDA STORES LTD 4313,5411,Catering costs - provisions,442.00,0.00,442.00
Regeneration and Local Services,Culture & Sport,054235,Bishop Auckland Town Hall Cafe,Supplies and Services,324117,Provisions E324,01-Oct-2018,000007900551021,JR HOLLAND FOODSERVICE,5422,Catering costs - provisions,35.21,0.00,35.21
Regeneration and Local Services,Transport and Contracted Services,031704,Care Connect - CCTV Countywide,Supplies and Services,384956,Miscellaneous Expenses,01-Oct-2018,000007900551025,SECURITY INDUSTRY,7393,Licences,220.00,0.00,220.00
Regeneration and Local Services,Transport and Contracted Services,031704,Care Connect - CCTV Countywide,Supplies and Services,384956,Miscellaneous Expenses,01-Oct-2018,000007900551029,SECURITY INDUSTRY,7393,Licences,220.00,0.00,220.00
Regeneration and Local Services,Culture & Sport,026591,Hardwick Park,Supplies and Services,304403,Equipment and Materials,01-Oct-2018,000007900551033,AMZN Mktp UK,5942,Other consumables,42.48,0.00,42.48
Regeneration and Local Services,Direct Services,021324,Catering - Meadowfield,Supplies and Services,324117,Provisions E324,01-Oct-2018,000007900551049,FREEMAN CATERING BUTCH,5422,Catering costs - provisions,65.01,0.00,65.01
Children and Young Peoples Services,Head of Childrens Social Care,085333,Coxhoe Satelite Home,Supplies and Services,312011,Newspapers books and periodicals E312,01-Oct-2018,000007900551077,TOOLSTATION LTD,5251,Books-school library,51.78,8.63,43.15
Children and Young Peoples Services,Head of Childrens Social Care,085333,Coxhoe Satelite Home,Supplies and Services,324117,Provisions E324,01-Oct-2018,000007900551081,TESCO STORES 2371,5411,Catering costs - provisions,152.00,0.00,152.00
Children and Young Peoples Services,Head of Childrens Social Care,085333,Coxhoe Satelite Home,Supplies and Services,324117,Provisions E324,01-Oct-2018,000007900551085,TESCO STORES 2371,5411,Catering costs - provisions,134.38,0.00,134.38
Children and Young Peoples Services,Head of Childrens Social Care,085333,Coxhoe Satelite Home,Supplies and Services,324117,Provisions E324,01-Oct-2018,000007900551087,TESCO STORES 2371,5411,Catering costs - provisions,41.40,0.00,41.40
Children and Young Peoples Services,Head of Childrens Social Care,085333,Coxhoe Satelite Home,Supplies and Services,324117,Provisions E324,01-Oct-2018,000007900551089,TESCO STORES 4358,5411,Catering costs - provisions,32.32,0.00,32.32
Children and Young Peoples Services,Head of Childrens Social Care,085333,Coxhoe Satelite Home,Supplies and Services,332047,Printing Stationery and Gen Off Exps,01-Oct-2018,000007900551093,RYMAN,5943,Stationery,75.85,0.00,75.85
Children and Young Peoples Services,Head of Childrens Social Care,085333,Coxhoe Satelite Home,Supplies and Services,304221,Equipment and Materials,01-Oct-2018,000007900551095,B & Q 1343,5211,Direct materials,32.00,0.00,32.00
Regeneration and Local Services,Direct Services,010301,C&G - North Grounds Maintenance,Supplies and Services,304221,Equipment and Materials,01-Oct-2018,000007900551115,AZTEC CHEMICALS LTD,5169,Direct materials,492.00,82.00,410.00
Children and Young Peoples Services,Head of Childrens Social Care,085352,Tow Law CU,Supplies and Services,328041,Clothing uniforms and laundry E328,01-Oct-2018,000007900551387,ARGOS RETAIL GROUP,5310,Clothing uniforms and laundry,39.99,0.00,39.99
Resources,Digital and Customer Services,069010,Administration,Supplies and Services,304999,Equipment and Materials,01-Oct-2018,000007900551397,LINKEDIN-410 8895594,5968,Misc equipment tools and materials,77.90,0.00,77.90
Adult and Health Services,Head of Adults,055306,Spennymoor Pathways,Supplies and Services,312011,Newspapers books and periodicals E312,01-Oct-2018,000007900551403,AMZN Mktp UK,5942,Books-school library,3.58,0.60,2.98
Resources,Finance & Transactional Services,065116,Creditors/Purchasing,Supplies and Services,338064,Services,01-Oct-2018,000007900551589,DISCLOSURE SCOT,9399,Disclosure & Barring (DBS) Fees,25.00,0.00,25.00
Resources,Digital and Customer Services,065303,Design & Print - Design,Supplies and Services,304335,Equipment and Materials,01-Oct-2018,000007905549045,EGLOBALCENTRAL.UK,5722,ICT supplies etc,166.85,0.00,166.85
Regeneration and Local Services,Culture & Sport,054812,Gala Theatre - Catering etc,Supplies and Services,324117,Provisions E324,01-Oct-2018,000007905549211,BATLEYS PERTH,5300,Catering costs - provisions,15.36,2.56,12.80
Regeneration and Local Services,Culture & Sport,054812,Gala Theatre - Catering etc,Supplies and Services,324117,Provisions E324,01-Oct-2018,000007905549211 - 1,BATLEYS PERTH,5300,Catering costs - provisions,41.77,,41.77
Regeneration and Local Services,Economic Development and Housing,031576,B& B - Temp Accom,Supplies and Services,364320,Grants to Voluntary Organisations,01-Oct-2018,000007905549269,PREMIER INN,3811,Accommodation assistance,72.00,12.00,60.00
Regeneration and Local Services,Culture & Sport,011060,Hardwick Park Catering,Supplies and Services,324117,Provisions E324,01-Oct-2018,000007905549417,BATLEYS PERTH,5300,Catering costs - provisions,-42.70,-1.65,-41.05
Regeneration and Local Services,Direct Services,021234,Catering - Locomotion,Supplies and Services,324117,Provisions E324,01-Oct-2018,000007905549439,BATLEYS PERTH,5300,Catering costs - provisions,-3.19,0.00,-3.19
Regeneration and Local Services,Economic Development and Housing,031576,B& B - Temp Accom,Supplies and Services,364320,Grants to Voluntary Organisations,01-Oct-2018,000007905549663,PREMIER INN,3811,Accommodation assistance,58.00,9.67,48.33
Regeneration and Local Services,Direct Services,021235,Catering - Wharton Park,Supplies and Services,324117,Provisions E324,01-Oct-2018,000007905549733,BATLEYS PERTH,5300,Catering costs - provisions,189.00,31.50,157.50
Regeneration and Local Services,Direct Services,021235,Catering - Wharton Park,Supplies and Services,324117,Provisions E324,01-Oct-2018,000007905549733 - 1,BATLEYS PERTH,5300,Catering costs - provisions,13.69,,13.69
Children and Young Peoples Services,Head of Education and Skills,054640,Durham Learning Resources,Supplies and Services,304245,Equipment and Materials,02-Oct-2018,000007900549177,AMZN Mktp UK,5942,Materials,21.23,0.00,21.23
Regeneration and Local Services,Direct Services,021242,Catering - County Hall,Supplies and Services,324117,Provisions E324,02-Oct-2018,000007905548999,TESCO STORES 6029,5411,Catering costs - provisions,16.55,0.00,16.55
Regeneration and Local Services,Direct Services,021242,Catering - County Hall,Supplies and Services,324117,Provisions E324,02-Oct-2018,000007905549001,TESCO STORES 6029,5411,Catering costs - provisions,5.25,0.00,5.25
Regeneration and Local Services,Economic Development and Housing,030554,International Relations,Transport,235057,Public Transport,02-Oct-2018,000007905549005,PRINCE BISHOP SHOPPING,7523,Staff travelling,11.50,0.00,11.50
Children and Young Peoples Services,Head of Education and Skills,071801,Selby Cottage Childcare Centre,Supplies and Services,324117,Provisions E324,02-Oct-2018,000007905549015,JR HOLLAND FOODSERVICE,5422,Catering costs - provisions,454.04,0.00,454.04
Children and Young Peoples Services,Head of Education and Skills,054640,Durham Learning Resources,Supplies and Services,304245,Equipment and Materials,02-Oct-2018,000007905549027,AMZN Mktp UK,5942,Materials,94.08,15.68,78.40
Resources,Finance & Transactional Services,065156,CYPS Finance,Supplies and Services,304335,Equipment and Materials,02-Oct-2018,000007905549047,AMZN MKTP UK AMAZON.CO,5942,ICT supplies etc,55.00,0.00,55.00
Transformation and Partnerships,Partnerships & Community Engagement Div.,060510,Chester Le Street AAP,Supplies and Services,304403,Equipment and Materials,02-Oct-2018,000007905549051,WWW.POPPYLOTTERY.SAFEA,8398,Other consumables,34.00,0.00,34.00
Regeneration and Local Services,Direct Services,010383,C&G - South Street Cleansing,Supplies and Services,312011,Newspapers books and periodicals E312,02-Oct-2018,000007905549091,Snowballs,5251,Books-school library,16.26,2.71,13.55
Children and Young Peoples Services,Head of Childrens Social Care,085332,Middlestone Moor CU,Supplies and Services,324117,Provisions E324,02-Oct-2018,000007905549101,TESCO STORES 2371,5411,Catering costs - provisions,84.74,0.00,84.74
Regeneration and Local Services,Economic Development and Housing,030699,Business Growth and Innovation General,Supplies and Services,304403,Equipment and Materials,02-Oct-2018,000007905549103,ADOBE CREATIVE CLOUD,5734,Other consumables,49.94,8.32,41.62
Regeneration and Local Services,Economic Development and Housing,030699,Business Growth and Innovation General,Supplies and Services,312011,Newspapers books and periodicals E312,02-Oct-2018,000007905549105,FASTHOSTS INTERNET,4816,Books-school library,59.99,10.00,49.99
Regeneration and Local Services,Direct Services,021242,Catering - County Hall,Supplies and Services,324117,Provisions E324,02-Oct-2018,000007905549155,WWW.ADELIEFOODS.CO.UK,5499,Catering costs - provisions,209.71,0.00,209.71
Regeneration and Local Services,Direct Services,021242,Catering - County Hall,Supplies and Services,324117,Provisions E324,02-Oct-2018,000007905549159,WWW.ADELIEFOODS.CO.UK,5499,Catering costs - provisions,179.35,0.00,179.35
Regeneration and Local Services,Direct Services,021242,Catering - County Hall,Supplies and Services,324117,Provisions E324,02-Oct-2018,000007905549161,WWW.ADELIEFOODS.CO.UK,5499,Catering costs - provisions,94.81,0.00,94.81
Regeneration and Local Services,Direct Services,021242,Catering - County Hall,Supplies and Services,324117,Provisions E324,02-Oct-2018,000007905549165,JR HOLLAND FOODSERVICE,5422,Catering costs - provisions,101.38,0.00,101.38
Regeneration and Local Services,Direct Services,021242,Catering - County Hall,Supplies and Services,324117,Provisions E324,02-Oct-2018,000007905549167,JR HOLLAND FOODSERVICE,5422,Catering costs - provisions,90.00,0.00,90.00
Regeneration and Local Services,Direct Services,021242,Catering - County Hall,Supplies and Services,324117,Provisions E324,02-Oct-2018,000007905549169,JR HOLLAND FOODSERVICE,5422,Catering costs - provisions,56.85,0.00,56.85
Regeneration and Local Services,Culture & Sport,054233,Bishop Auckland Town Hall Library,Supplies and Services,324117,Provisions E324,02-Oct-2018,000007905549171,COOPLANDS BAKERY,5462,Catering costs - provisions,4.16,0.00,4.16
Regeneration and Local Services,Culture & Sport,054233,Bishop Auckland Town Hall Library,Supplies and Services,324117,Provisions E324,02-Oct-2018,000007905549173,HERON FOODS LTD,5499,Catering costs - provisions,1.58,0.00,1.58
Resources,Corporate Finance & Commercial Services,065106,Strategic Finance - Revenue & Capital,Supplies and Services,372009,Subscriptions E372,02-Oct-2018,000007905549189,WEB NETWORKSOLUTIONS,5968,Subscriptions 372009,180.76,0.00,180.76
Regeneration and Local Services,Culture & Sport,054812,Gala Theatre - Catering etc,Supplies and Services,324117,Provisions E324,02-Oct-2018,000007905549207,JR HOLLAND FOODSERVICE,5422,Catering costs - provisions,19.80,0.00,19.80
Regeneration and Local Services,Economic Development and Housing,031576,B& B - Temp Accom,Supplies and Services,364320,Grants to Voluntary Organisations,02-Oct-2018,000007905549227,HOTEL 52,7011,Accommodation assistance,345.00,57.50,287.50
Regeneration and Local Services,Economic Development and Housing,031576,B& B - Temp Accom,Supplies and Services,364320,Grants to Voluntary Organisations,02-Oct-2018,000007905549273,TRAVELODGE,3615,Accommodation assistance,87.00,14.50,72.50
Children and Young Peoples Services,Head of Education and Skills,071732,Dean Bank Childcare,Supplies and Services,312011,Newspapers books and periodicals E312,02-Oct-2018,000007905549299,AMZN Mktp UK,5942,Books-school library,5.99,0.00,5.99
Children and Young Peoples Services,Head of Education and Skills,071732,Dean Bank Childcare,Supplies and Services,312011,Newspapers books and periodicals E312,02-Oct-2018,000007905549303,AMZN Mktp UK,5942,Books-school library,23.90,0.00,23.90
Regeneration and Local Services,Culture & Sport,054813,Gala Theatre - Technical,Supplies and Services,312011,Newspapers books and periodicals E312,02-Oct-2018,000007905549315,AMZN Mktp UK,5942,Books-school library,252.00,0.00,252.00
Regeneration and Local Services,Culture & Sport,054813,Gala Theatre - Technical,Supplies and Services,312011,Newspapers books and periodicals E312,02-Oct-2018,000007905549321,AMZN Mktp UK,5942,Books-school library,59.99,0.00,59.99
Regeneration and Local Services,Culture & Sport,011060,Hardwick Park Catering,Supplies and Services,324117,Provisions E324,02-Oct-2018,000007905549415,JR HOLLAND FOODSERVICE,5422,Catering costs - provisions,65.61,0.00,65.61
Regeneration and Local Services,Spatial Policy Planning Assets & Environment,031200,North Pennines Core,Transport,235057,Public Transport,02-Oct-2018,000007905549419,LNE RAILWAY DAR SST,4112,Staff travelling,19.70,0.00,19.70
Regeneration and Local Services,Spatial Policy Planning Assets & Environment,031200,North Pennines Core,Transport,235057,Public Transport,02-Oct-2018,000007905549421,LNE RAILWAY NCL SST,4112,Staff travelling,13.60,0.00,13.60
Regeneration and Local Services,Direct Services,021234,Catering - Locomotion,Supplies and Services,324117,Provisions E324,02-Oct-2018,000007905549431,WWW.ADELIEFOODS.CO.UK,5499,Catering costs - provisions,208.82,0.00,208.82
Regeneration and Local Services,Direct Services,021234,Catering - Locomotion,Supplies and Services,324117,Provisions E324,02-Oct-2018,000007905549435,WWW.ADELIEFOODS.CO.UK,5499,Catering costs - provisions,67.19,0.00,67.19
Regeneration and Local Services,Direct Services,021234,Catering - Locomotion,Supplies and Services,324117,Provisions E324,02-Oct-2018,000007905549437,WWW.ADELIEFOODS.CO.UK,5499,Catering costs - provisions,64.05,0.00,64.05
Children and Young Peoples Services,"Head of Early Help, Inclusion and Vulnerable Children",085957,Secure Management,Supplies and Services,324117,Provisions E324,02-Oct-2018,000007905549441,TESCO STORES 6329,5411,Catering costs - provisions,66.86,0.00,66.86
Regeneration and Local Services,Direct Services,010525,Catering - Green Lane,Supplies and Services,324117,Provisions E324,02-Oct-2018,000007905549463,WWW.ADELIEFOODS.CO.UK,5499,Catering costs - provisions,32.36,0.00,32.36
Transformation and Partnerships,Partnerships & Community Engagement Div.,060472,Syrian Vulnerable Persons Scheme,Supplies and Services,328041,Clothing uniforms and laundry E328,02-Oct-2018,000007905549465,BANNER LIMITED,5651,Clothing uniforms and laundry,169.80,0.00,169.80
Children and Young Peoples Services,Childrens Services Operational Support,052986,CYPS - Locality and Operational Support,Supplies and Services,338045,Services,02-Oct-2018,000007905549495,WWW.DURHAM.GOV.UK,9399,Legal expenses 338045,12.00,0.00,12.00
Children and Young Peoples Services,"Head of Early Help, Inclusion and Vulnerable Children",071443,Stanley One Point Hub,Supplies and Services,304259,Equipment and Materials,02-Oct-2018,000007905549501,CURRYS ONLINE,5732,Equipment-purchase and rental,330.00,0.00,330.00
Regeneration and Local Services,Direct Services,021100,Catering - General,Supplies and Services,384999,Miscellaneous Expenses,02-Oct-2018,000007905549533,PAYPAL STAMPSDIREC,5099,Other expenses,108.74,18.12,90.62
Regeneration and Local Services,Direct Services,030691,"Catering - Durham Dales Centre			",Supplies and Services,324117,Provisions E324,02-Oct-2018,000007905549567,JR HOLLAND FOODSERVICE,5422,Catering costs - provisions,213.98,0.00,213.98
Regeneration and Local Services,Direct Services,030691,"Catering - Durham Dales Centre			",Supplies and Services,324117,Provisions E324,02-Oct-2018,000007905549569,JR HOLLAND FOODSERVICE,5422,Catering costs - provisions,180.98,0.00,180.98
Regeneration and Local Services,Direct Services,030691,"Catering - Durham Dales Centre			",Supplies and Services,324117,Provisions E324,02-Oct-2018,000007905549571,JR HOLLAND FOODSERVICE,5422,Catering costs - provisions,76.51,0.00,76.51
Adult and Health Services,Head of Adults,055643,Hawthorn House LD Respite Unit,Supplies and Services,324117,Provisions E324,02-Oct-2018,000007905549583,JR HOLLAND FOODSERVICE,5422,Catering costs - provisions,21.60,0.00,21.60
Adult and Health Services,Head of Adults,055643,Hawthorn House LD Respite Unit,Supplies and Services,324117,Provisions E324,02-Oct-2018,000007905549585,JR HOLLAND FOODSERVICE,5422,Catering costs - provisions,17.60,0.00,17.60
Adult and Health Services,Head of Adults,055643,Hawthorn House LD Respite Unit,Supplies and Services,324117,Provisions E324,02-Oct-2018,000007905549587,JR HOLLAND FOODSERVICE,5422,Catering costs - provisions,17.10,0.00,17.10
Adult and Health Services,Head of Adults,055643,Hawthorn House LD Respite Unit,Supplies and Services,324117,Provisions E324,02-Oct-2018,000007905549589,JR HOLLAND FOODSERVICE,5422,Catering costs - provisions,4.12,0.00,4.12
Children and Young Peoples Services,"Head of Early Help, Inclusion and Vulnerable Children",071445,Chester le Street One Point Hub,Employees,040149,Recruitment Instruction and Training,02-Oct-2018,000007905549623,CO-OP GROUP,8931,Training-all costs,300.00,0.00,300.00
Children and Young Peoples Services,"Head of Early Help, Inclusion and Vulnerable Children",085957,Secure Management,Supplies and Services,384999,Miscellaneous Expenses,02-Oct-2018,000007905549629,AMZN Mktp UK,5942,Other expenses,37.76,0.00,37.76
Regeneration and Local Services,Culture & Sport,011204,Events,Supplies and Services,348037,Subsistence E348,02-Oct-2018,000007905549643,THE LAMP ROOM,5812,Subsistence,20.75,0.00,20.75
Regeneration and Local Services,Direct Services,021324,Catering - Meadowfield,Supplies and Services,324117,Provisions E324,02-Oct-2018,000007905549659,JR HOLLAND FOODSERVICE,5422,Catering costs - provisions,16.36,0.00,16.36
Regeneration and Local Services,Economic Development and Housing,030554,International Relations,Transport,235057,Public Transport,02-Oct-2018,000007905549681,PRINCE BISHOP SHOPPING,7523,Staff travelling,11.50,1.92,9.58
Resources,Digital and Customer Services,069010,Administration,Third Party Payments 4THIRD,430100,Rendered by Private Contractors,02-Oct-2018,000007905549719,EB REFORMING PUBLIC S,7399,Payments to sub-contractors,125.00,0.00,125.00
Adult and Health Services,Head of Adults,055306,Spennymoor Pathways,Supplies and Services,324117,Provisions E324,02-Oct-2018,000007905549725,ASDA SUPERSTORE 4987,5411,Catering costs - provisions,1.00,0.00,1.00
Regeneration and Local Services,Direct Services,021235,Catering - Wharton Park,Supplies and Services,324117,Provisions E324,02-Oct-2018,000007905549729,JR HOLLAND FOODSERVICE,5422,Catering costs - provisions,19.63,0.00,19.63
Adult and Health Services,Head of Adults,055309,Peterlee Pathways,Supplies and Services,384999,Miscellaneous Expenses,02-Oct-2018,000007905549737,HOBBYCRAFT,5970,Other expenses,2.40,0.00,2.40
Adult and Health Services,Head of Adults,055309,Peterlee Pathways,Supplies and Services,324117,Provisions E324,02-Oct-2018,000007905549741,LIDL UK PETERLEE,5411,Catering costs - provisions,2.96,0.00,2.96
Children and Young Peoples Services,Head of Childrens Social Care,085100,Strategic Manager Families First Area South,Supplies and Services,304403,Equipment and Materials,02-Oct-2018,000007910610657,SUNDERLAND CC,9399,Other consumables,22.00,0.00,22.00
Regeneration and Local Services,Culture & Sport,054306,Peterlee Library,Supplies and Services,384956,Miscellaneous Expenses,02-Oct-2018,000007910610767,TVLICENSING.CO.UK,7392,Licences,150.50,0.00,150.50
Regeneration and Local Services,Culture & Sport,054307,Seaham Library,Supplies and Services,384956,Miscellaneous Expenses,02-Oct-2018,000007910610773,TVLICENSING.CO.UK,7392,Licences,150.50,0.00,150.50
Regeneration and Local Services,Culture & Sport,054350,Spennymoor Library,Supplies and Services,384956,Miscellaneous Expenses,02-Oct-2018,000007910610777,TVLICENSING.CO.UK,7392,Licences,150.50,0.00,150.50
Regeneration and Local Services,Culture & Sport,054300,Blackhall Library,Supplies and Services,384956,Miscellaneous Expenses,02-Oct-2018,000007910610783,TVLICENSING.CO.UK,7392,Licences,150.50,0.00,150.50
Regeneration and Local Services,Culture & Sport,054302,Cornforth Library,Supplies and Services,384956,Miscellaneous Expenses,02-Oct-2018,000007910610787,TVLICENSING.CO.UK,7392,Licences,150.50,0.00,150.50
Regeneration and Local Services,Culture & Sport,054320,Easington Colliery Library,Supplies and Services,384956,Miscellaneous Expenses,02-Oct-2018,000007910610793,TVLICENSING.CO.UK,7392,Licences,150.50,0.00,150.50
Regeneration and Local Services,Culture & Sport,054304,Horden Library,Supplies and Services,384956,Miscellaneous Expenses,02-Oct-2018,000007910610795,TVLICENSING.CO.UK,7392,Licences,150.50,0.00,150.50
Regeneration and Local Services,Direct Services,021242,Catering - County Hall,Supplies and Services,324117,Provisions E324,02-Oct-2018,000007910610815,BATLEYS PERTH,5300,Catering costs - provisions,461.58,76.93,384.65
Regeneration and Local Services,Direct Services,021242,Catering - County Hall,Supplies and Services,324117,Provisions E324,02-Oct-2018,000007910610815 - 1,BATLEYS PERTH,5300,Catering costs - provisions,165.29,,165.29
Regeneration and Local Services,Culture & Sport,054813,Gala Theatre - Technical,Supplies and Services,304403,Equipment and Materials,02-Oct-2018,000007910611011,DRI Microsoft HUP,5734,Other consumables,9.95,0.00,9.95
Regeneration and Local Services,Culture & Sport,011060,Hardwick Park Catering,Supplies and Services,324117,Provisions E324,02-Oct-2018,000007910611129,BATLEYS PERTH,5300,Catering costs - provisions,47.16,7.86,39.30
Regeneration and Local Services,Culture & Sport,011060,Hardwick Park Catering,Supplies and Services,324117,Provisions E324,02-Oct-2018,000007910611129 - 1,BATLEYS PERTH,5300,Catering costs - provisions,147.24,,147.24
Regeneration and Local Services,Culture & Sport,054235,Bishop Auckland Town Hall Cafe,Supplies and Services,324117,Provisions E324,02-Oct-2018,000007910611445,BATLEYS PERTH,5300,Catering costs - provisions,102.60,17.10,85.50
Regeneration and Local Services,Culture & Sport,054235,Bishop Auckland Town Hall Cafe,Supplies and Services,324117,Provisions E324,02-Oct-2018,000007910611445 - 1,BATLEYS PERTH,5300,Catering costs - provisions,168.43,,168.43
Regeneration and Local Services,Direct Services,021324,Catering - Meadowfield,Supplies and Services,324117,Provisions E324,02-Oct-2018,000007910611469,BATLEYS PERTH,5300,Catering costs - provisions,60.42,10.07,50.35
Regeneration and Local Services,Direct Services,021324,Catering - Meadowfield,Supplies and Services,324117,Provisions E324,02-Oct-2018,000007910611469 - 1,BATLEYS PERTH,5300,Catering costs - provisions,120.58,,120.58
Resources,Digital and Customer Services,065303,Design & Print - Design,Supplies and Services,304335,Equipment and Materials,03-Oct-2018,000007905549049,AWS EMEA,7399,ICT supplies etc,0.19,0.00,0.19
Resources,Digital and Customer Services,065303,Design & Print - Design,Supplies and Services,304403,Equipment and Materials,03-Oct-2018,000007905549053,AWS EMEA,7399,Other consumables,0.01,0.00,0.01
Resources,Corporate Finance & Commercial Services,065106,Strategic Finance - Revenue & Capital,Supplies and Services,372009,Subscriptions E372,03-Oct-2018,000007905549191,WEB NETWORKSOLUTIONS,5968,Subscriptions 372009,4.97,0.00,4.97
Regeneration and Local Services,Direct Services,021242,Catering - County Hall,Supplies and Services,324117,Provisions E324,03-Oct-2018,000007910610641,TESCO STORES 6029,5411,Catering costs - provisions,6.00,0.00,6.00
Children and Young Peoples Services,Head of Education and Skills,071801,Selby Cottage Childcare Centre,Supplies and Services,324117,Provisions E324,03-Oct-2018,000007910610645,TESCO STORES 2278,5411,Catering costs - provisions,27.00,0.00,27.00
Children and Young Peoples Services,Head of Education and Skills,054640,Durham Learning Resources,Supplies and Services,304245,Equipment and Materials,03-Oct-2018,000007910610651,AMZN Mktp UK,5942,Materials,9.99,1.67,8.32
Regeneration and Local Services,Spatial Policy Planning Assets & Environment,031001,Spatial Policy,Supplies and Services,312009,Newspapers books and periodicals E312,03-Oct-2018,000007910610663,SP BATH PUBLISHING L,5734,Newspapers books and periodicals,43.50,0.00,43.50
Children and Young Peoples Services,Head of Childrens Social Care,085332,Middlestone Moor CU,Supplies and Services,312011,Newspapers books and periodicals E312,03-Oct-2018,000007910610709,HOME BARGAINS SPENNYMO,5251,Books-school library,9.12,1.52,7.60
Children and Young Peoples Services,Head of Childrens Social Care,085332,Middlestone Moor CU,Supplies and Services,324117,Provisions E324,03-Oct-2018,000007910610715,ASDA SUPERSTORE 4987,5411,Catering costs - provisions,24.74,0.00,24.74
Children and Young Peoples Services,Head of Childrens Social Care,085332,Middlestone Moor CU,Supplies and Services,384999,Miscellaneous Expenses,03-Oct-2018,000007910610719,ASDA SUPERSTORE 4987,5411,Other expenses,12.00,0.00,12.00
Children and Young Peoples Services,Head of Childrens Social Care,085517,Supporting Solutions Service (Edge of Care),Supplies and Services,332047,Printing Stationery and Gen Off Exps,03-Oct-2018,000007910610755,AMZN Mktp UK,5942,Stationery,49.99,8.33,41.66
Children and Young Peoples Services,"Head of Early Help, Inclusion and Vulnerable Children",071440,Barnard Castle One Point Hub,Supplies and Services,332047,Printing Stationery and Gen Off Exps,03-Oct-2018,000007910610761,Amazon.co.uk,5969,Stationery,39.99,6.67,33.32
Regeneration and Local Services,Direct Services,021242,Catering - County Hall,Supplies and Services,324117,Provisions E324,03-Oct-2018,000007910610805,JR HOLLAND FOODSERVICE,5422,Catering costs - provisions,158.00,0.00,158.00
Regeneration and Local Services,Direct Services,021242,Catering - County Hall,Supplies and Services,324117,Provisions E324,03-Oct-2018,000007910610811,JR HOLLAND FOODSERVICE,5422,Catering costs - provisions,31.51,0.00,31.51
Children and Young Peoples Services,Head of Childrens Social Care,085380,Operations Manager Adoption & Fostering,Supplies and Services,328041,Clothing uniforms and laundry E328,03-Oct-2018,000007910610829,WWW.ONLINE4BABY.COM,5641,Clothing uniforms and laundry,434.90,0.00,434.90
Children and Young Peoples Services,Head of Childrens Social Care,085380,Operations Manager Adoption & Fostering,Supplies and Services,328041,Clothing uniforms and laundry E328,03-Oct-2018,000007910610839,WWW.ONLINE4BABY.COM,5641,Clothing uniforms and laundry,129.90,0.00,129.90
Children and Young Peoples Services,Head of Childrens Social Care,085380,Operations Manager Adoption & Fostering,Supplies and Services,328041,Clothing uniforms and laundry E328,03-Oct-2018,000007910610841,ARGOS RETAIL GROUP,5310,Clothing uniforms and laundry,101.96,0.00,101.96
Resources,Digital and Customer Services,065461,Business Support,Supplies and Services,372009,Subscriptions E372,03-Oct-2018,000007910610863,WEB NETWORKSOLUTIONS,5968,Subscriptions 372009,180.45,0.00,180.45
Regeneration and Local Services,Economic Development and Housing,031576,B& B - Temp Accom,Supplies and Services,364320,Grants to Voluntary Organisations,03-Oct-2018,000007910610873,TRAVELODGE,3615,Accommodation assistance,66.00,11.00,55.00
Children and Young Peoples Services,Head of Childrens Social Care,085361,LAC & Permanence Team 1,Supplies and Services,384999,Miscellaneous Expenses,03-Oct-2018,000007910610953,HM PASSPORT OFFICE,9399,Other expenses,49.00,0.00,49.00
Children and Young Peoples Services,Head of Education and Skills,071732,Dean Bank Childcare,Supplies and Services,312011,Newspapers books and periodicals E312,03-Oct-2018,000007910610993,AMZN Mktp UK,5942,Books-school library,2.58,0.00,2.58
Children and Young Peoples Services,Head of Education and Skills,071732,Dean Bank Childcare,Supplies and Services,312011,Newspapers books and periodicals E312,03-Oct-2018,000007910610997,AMZN Mktp UK,5942,Books-school library,11.59,0.00,11.59
Children and Young Peoples Services,Head of Education and Skills,071732,Dean Bank Childcare,Supplies and Services,324117,Provisions E324,03-Oct-2018,000007910611003,SAINSBURYS SACAT (2303,5411,Catering costs - provisions,12.25,0.00,12.25
Regeneration and Local Services,Culture & Sport,054813,Gala Theatre - Technical,Supplies and Services,312011,Newspapers books and periodicals E312,03-Oct-2018,000007910611005,Amazon.co.uk,5969,Books-school library,130.15,0.00,130.15
Regeneration and Local Services,Spatial Policy Planning Assets & Environment,031204,North Pennines Nectarworks,Supplies and Services,304403,Equipment and Materials,03-Oct-2018,000007910611029,EVENT SMILES,5947,Other consumables,173.45,28.91,144.54
Children and Young Peoples Services,Head of Education and Skills,071903,EYDCP-Sustainability EDS,Employees,040149,Recruitment Instruction and Training,03-Oct-2018,000007910611073,HERTS FOR LEARNING,8299,Training-all costs,43.00,0.00,43.00
Regeneration and Local Services,Economic Development and Housing,031500,Housing Solutions - Core Team,Supplies and Services,352001,Conference Expenses,03-Oct-2018,000007910611081,TRAVELODGE,3615,Conferencesseminars fees etc,465.00,77.50,387.50
Regeneration and Local Services,Culture & Sport,054813,Gala Theatre - Technical,Supplies and Services,340001,Postages E340,03-Oct-2018,000007910611083,THE POST OFFICE,9402,Postages,26.60,0.00,26.60
Children and Young Peoples Services,Childrens Services Operational Support,052986,CYPS - Locality and Operational Support,Supplies and Services,308011,Furniture,03-Oct-2018,000007910611089,FACTORY CARPETS & LAMI,5713,Furniture repair and replacement,300.00,0.00,300.00
Regeneration and Local Services,Spatial Policy Planning Assets & Environment,031222,North Pennines Allen Valleys Landscape Partnership,Supplies and Services,336005,Advertising E336,03-Oct-2018,000007910611095,FACEBK VWQZRHSQE2,7311,Advertising other than for staff,17.00,0.00,17.00
Regeneration and Local Services,Culture & Sport,011060,Hardwick Park Catering,Supplies and Services,324117,Provisions E324,03-Oct-2018,000007910611105,JR HOLLAND FOODSERVICE,5422,Catering costs - provisions,86.60,0.00,86.60
Regeneration and Local Services,Culture & Sport,011060,Hardwick Park Catering,Supplies and Services,324117,Provisions E324,03-Oct-2018,000007910611123,JR HOLLAND FOODSERVICE,5422,Catering costs - provisions,59.86,0.00,59.86
Regeneration and Local Services,Direct Services,021234,Catering - Locomotion,Supplies and Services,324117,Provisions E324,03-Oct-2018,000007910611135,JR HOLLAND FOODSERVICE,5422,Catering costs - provisions,96.44,0.00,96.44
Regeneration and Local Services,Direct Services,021234,Catering - Locomotion,Supplies and Services,324117,Provisions E324,03-Oct-2018,000007910611139,JR HOLLAND FOODSERVICE,5422,Catering costs - provisions,94.15,0.00,94.15
Regeneration and Local Services,Direct Services,021234,Catering - Locomotion,Supplies and Services,324117,Provisions E324,03-Oct-2018,000007910611141,JR HOLLAND FOODSERVICE,5422,Catering costs - provisions,40.62,0.00,40.62
Regeneration and Local Services,Direct Services,021234,Catering - Locomotion,Supplies and Services,324117,Provisions E324,03-Oct-2018,000007910611145,JR HOLLAND FOODSERVICE,5422,Catering costs - provisions,5.52,0.00,5.52
Regeneration and Local Services,Direct Services,010525,Catering - Green Lane,Supplies and Services,324117,Provisions E324,03-Oct-2018,000007910611153,JR HOLLAND FOODSERVICE,5422,Catering costs - provisions,63.22,0.00,63.22
Regeneration and Local Services,Direct Services,010525,Catering - Green Lane,Supplies and Services,324117,Provisions E324,03-Oct-2018,000007910611155,JR HOLLAND FOODSERVICE,5422,Catering costs - provisions,1.98,0.00,1.98
Children and Young Peoples Services,Head of Childrens Social Care,085352,Tow Law CU,Supplies and Services,324117,Provisions E324,03-Oct-2018,000007910611275,TESCO STORES 2371,5411,Catering costs - provisions,186.81,0.00,186.81
Regeneration and Local Services,Direct Services,030691,"Catering - Durham Dales Centre			",Supplies and Services,324117,Provisions E324,03-Oct-2018,000007910611283,JR HOLLAND FOODSERVICE,5422,Catering costs - provisions,13.63,0.00,13.63
Regeneration and Local Services,Economic Development and Housing,031578,Client Travel Reimbursements,Transport,235073,Public Transport,03-Oct-2018,000007910611323,GO NORTH EAST LIMITED,4131,Travel-clients/students/children,53.00,0.00,53.00
Adult and Health Services,Head of Adults,055643,Hawthorn House LD Respite Unit,Supplies and Services,324117,Provisions E324,03-Oct-2018,000007910611329,JR HOLLAND FOODSERVICE,5422,Catering costs - provisions,19.23,0.00,19.23
Adult and Health Services,Head of Adults,055643,Hawthorn House LD Respite Unit,Supplies and Services,324117,Provisions E324,03-Oct-2018,000007910611335,JR HOLLAND FOODSERVICE,5422,Catering costs - provisions,17.38,0.00,17.38
Regeneration and Local Services,Spatial Policy Planning Assets & Environment,031222,North Pennines Allen Valleys Landscape Partnership,Transport,235057,Public Transport,03-Oct-2018,000007910611341,Trainline,4112,Staff travelling,62.99,0.00,62.99
Children and Young Peoples Services,Head of Education and Skills,070264,EDC Premises,Supplies and Services,312011,Newspapers books and periodicals E312,03-Oct-2018,000007910611345,AMZN Mktp UK,5942,Books-school library,39.98,6.66,33.32
Children and Young Peoples Services,"Head of Early Help, Inclusion and Vulnerable Children",085965,Barnard,Supplies and Services,384999,Miscellaneous Expenses,03-Oct-2018,000007910611365,AMZN Mktp UK,5942,Other expenses,29.99,0.00,29.99
Children and Young Peoples Services,"Head of Early Help, Inclusion and Vulnerable Children",085962,Aycliffe Secure - Durham,Supplies and Services,304649,Equipment and Materials,03-Oct-2018,000007910611373,Amazon.co.uk,5969,Toys,49.99,8.33,41.66
Children and Young Peoples Services,"Head of Early Help, Inclusion and Vulnerable Children",085965,Barnard,Supplies and Services,328041,Clothing uniforms and laundry E328,03-Oct-2018,000007910611377,M and M Direct Ltd,5941,Clothing uniforms and laundry,54.98,0.00,54.98
Children and Young Peoples Services,"Head of Early Help, Inclusion and Vulnerable Children",085965,Barnard,Supplies and Services,384999,Miscellaneous Expenses,03-Oct-2018,000007910611381,AMZN Mktp UK,5942,Other expenses,43.99,0.00,43.99
Children and Young Peoples Services,"Head of Early Help, Inclusion and Vulnerable Children",085955,Auckland,Supplies and Services,324117,Provisions E324,03-Oct-2018,000007910611389,TESCO STORES 6329,5411,Catering costs - provisions,87.36,0.00,87.36
Children and Young Peoples Services,"Head of Early Help, Inclusion and Vulnerable Children",085956,Lumley,Supplies and Services,328041,Clothing uniforms and laundry E328,03-Oct-2018,000007910611393,VERY,5964,Clothing uniforms and laundry,15.99,0.00,15.99
Children and Young Peoples Services,"Head of Early Help, Inclusion and Vulnerable Children",085957,Secure Management,Supplies and Services,304639,Equipment and Materials,03-Oct-2018,000007910611397,SCREWFIX DIRECT,5211,Technicians-supplies,56.94,9.49,47.45
Children and Young Peoples Services,"Head of Early Help, Inclusion and Vulnerable Children",085955,Auckland,Supplies and Services,328041,Clothing uniforms and laundry E328,03-Oct-2018,000007910611401,FOOTASYLUM PLC,5941,Clothing uniforms and laundry,109.98,0.00,109.98
Resources,Legal & Democratic Services,067801,Registrars Headquarters,Supplies and Services,340001,Postages E340,03-Oct-2018,000007910611425,ROYAL MAIL ONLINE SHOP,9402,Postages,68.03,0.00,68.03
Resources,Internal Audit and Insurance,065104,Internal Audit,Supplies and Services,352001,Conference Expenses,03-Oct-2018,000007910611431,SCARMAN,7011,Conferencesseminars fees etc,108.00,18.00,90.00
Regeneration and Local Services,Direct Services,021324,Catering - Meadowfield,Supplies and Services,324117,Provisions E324,03-Oct-2018,000007910611459,JR HOLLAND FOODSERVICE,5422,Catering costs - provisions,27.03,0.00,27.03
Regeneration and Local Services,Direct Services,021324,Catering - Meadowfield,Supplies and Services,324117,Provisions E324,03-Oct-2018,000007910611465,JR HOLLAND FOODSERVICE,5422,Catering costs - provisions,14.19,0.00,14.19
Children and Young Peoples Services,Head of Childrens Social Care,085333,Coxhoe Satelite Home,Supplies and Services,312011,Newspapers books and periodicals E312,03-Oct-2018,000007910611475,AMZN Mktp UK,5942,Books-school library,15.28,0.00,15.28
Children and Young Peoples Services,Head of Childrens Social Care,085333,Coxhoe Satelite Home,Supplies and Services,328041,Clothing uniforms and laundry E328,03-Oct-2018,000007910611479,NEW LOOK 1744,5621,Clothing uniforms and laundry,45.04,0.00,45.04
Children and Young Peoples Services,Head of Childrens Social Care,085333,Coxhoe Satelite Home,Supplies and Services,348037,Subsistence E348,03-Oct-2018,000007910611483,HANDMADE BURGER COMPAN,5812,Subsistence,64.10,0.00,64.10
Regeneration and Local Services,Economic Development and Housing,030554,International Relations,Transport,235057,Public Transport,03-Oct-2018,000007910611555,EASYJET,3245,Staff travelling,188.00,0.00,188.00
Regeneration and Local Services,Culture & Sport,054233,Bishop Auckland Town Hall Library,Supplies and Services,324117,Provisions E324,03-Oct-2018,000007910611595,HERON FOODS LTD,5499,Catering costs - provisions,4.00,0.00,4.00
Adult and Health Services,Head of Adults,055309,Peterlee Pathways,Supplies and Services,308011,Furniture,03-Oct-2018,000007910611641,POUNDSTRETCHER 396,5714,Furniture repair and replacement,10.00,0.00,10.00
Adult and Health Services,Head of Adults,055309,Peterlee Pathways,Supplies and Services,328041,Clothing uniforms and laundry E328,03-Oct-2018,000007910611645,ARGOS LTD,5310,Clothing uniforms and laundry,31.99,0.00,31.99
Regeneration and Local Services,Direct Services,030691,"Catering - Durham Dales Centre			",Supplies and Services,324117,Provisions E324,03-Oct-2018,000007910611687,COTTAGE DELIGHT LTD,5499,Catering costs - provisions,230.38,38.40,191.98
Regeneration and Local Services,Economic Development and Housing,031576,B& B - Temp Accom,Supplies and Services,364320,Grants to Voluntary Organisations,03-Oct-2018,000007916285633,PREMIER INN,3811,Accommodation assistance,84.50,14.08,70.42
Children and Young Peoples Services,Head of Education and Skills,078103,CPD ICT,Supplies and Services,312011,Newspapers books and periodicals E312,03-Oct-2018,000007916285971,PAYPAL SCIENCESCOP,8211,Books-school library,371.88,61.98,309.90
Children and Young Peoples Services,"Head of Early Help, Inclusion and Vulnerable Children",071445,Chester le Street One Point Hub,Supplies and Services,324117,Provisions E324,03-Oct-2018,000007916285979,ASDA GROCERIES ONLINE,5411,Catering costs - provisions,464.43,0.00,464.43
Children and Young Peoples Services,"Head of Early Help, Inclusion and Vulnerable Children",071445,Chester le Street One Point Hub,Supplies and Services,324117,Provisions E324,03-Oct-2018,000007916285983,ASDA GROCERIES ONLINE,5411,Catering costs - provisions,-1.09,0.00,-1.09
Children and Young Peoples Services,"Head of Early Help, Inclusion and Vulnerable Children",071445,Chester le Street One Point Hub,Supplies and Services,324117,Provisions E324,03-Oct-2018,000007916285985,ASDA GROCERIES ONLINE,5411,Catering costs - provisions,-8.25,0.00,-8.25
Children and Young Peoples Services,Head of Childrens Social Care,085333,Coxhoe Satelite Home,Supplies and Services,328041,Clothing uniforms and laundry E328,03-Oct-2018,000007916286029,PRIMARK 670 GATESHEAD,5651,Clothing uniforms and laundry,27.50,0.00,27.50
Children and Young Peoples Services,Head of Childrens Social Care,085333,Coxhoe Satelite Home,Supplies and Services,328041,Clothing uniforms and laundry E328,03-Oct-2018,000007916286033,PRIMARK 670 GATESHEAD,5651,Clothing uniforms and laundry,32.00,0.00,32.00
Children and Young Peoples Services,Head of Childrens Social Care,085333,Coxhoe Satelite Home,Supplies and Services,328041,Clothing uniforms and laundry E328,03-Oct-2018,000007916286037,PRIMARK 670 GATESHEAD,5651,Clothing uniforms and laundry,28.00,0.00,28.00
Children and Young Peoples Services,"Head of Early Help, Inclusion and Vulnerable Children",071445,Chester le Street One Point Hub,Supplies and Services,324117,Provisions E324,03-Oct-2018,000007923395305,ASDA GROCERIES ONLINE,5411,Catering costs - provisions,-15.88,0.00,-15.88
Resources,Digital and Customer Services,065461,Business Support,Supplies and Services,372009,Subscriptions E372,04-Oct-2018,000007910610865,WEB NETWORKSOLUTIONS,5968,Subscriptions 372009,4.96,0.00,4.96
Children and Young Peoples Services,"Head of Early Help, Inclusion and Vulnerable Children",079599,Psychological-HQ,Supplies and Services,344033,Telephones,04-Oct-2018,000007916285515,AMZN Mktp UK,5942,Telephones general-all costs,7.99,0.00,7.99
Regeneration and Local Services,Direct Services,020065,Bldg Serv - CONS Div 65 - Building South,Supplies and Services,304335,Equipment and Materials,04-Oct-2018,000007916285517,AMZN Mktp UK,5942,ICT supplies etc,5.99,1.00,4.99
Resources,Digital and Customer Services,065461,Business Support,Supplies and Services,304335,Equipment and Materials,04-Oct-2018,000007916285521,BITEABLE PTY LTD,7392,ICT supplies etc,22.44,0.00,22.44
Resources,Digital and Customer Services,065487,ICT Telephony Recharges,Supplies and Services,344033,Telephones,04-Oct-2018,000007916285525,AMZN MKTP UK AMAZON.CO,5942,Telephones general-all costs,149.00,0.00,149.00
Adult and Health Services,Head of Adults,055302,Durham Pathways,Supplies and Services,304259,Equipment and Materials,04-Oct-2018,000007916285563,WILKO DURHAM 426,5722,Equipment-purchase and rental,6.00,0.00,6.00
Adult and Health Services,Head of Adults,055302,Durham Pathways,Supplies and Services,324117,Provisions E324,04-Oct-2018,000007916285565,SAINSBURYS SACAT 0776,5411,Catering costs - provisions,30.30,0.00,30.30
Children and Young Peoples Services,Head of Childrens Social Care,085621,Families First Aycliffe,Transport,235057,Public Transport,04-Oct-2018,000007916285575,Trainline,4112,Staff travelling,104.39,0.00,104.39
Children and Young Peoples Services,Head of Childrens Social Care,085332,Middlestone Moor CU,Supplies and Services,324117,Provisions E324,04-Oct-2018,000007916285579,HERON FOODS LTD,5499,Catering costs - provisions,3.10,0.00,3.10
Regeneration and Local Services,Economic Development and Housing,030699,Business Growth and Innovation General,Supplies and Services,312011,Newspapers books and periodicals E312,04-Oct-2018,000007916285583,FASTHOSTS INTERNET,4816,Books-school library,6.34,1.06,5.28
Regeneration and Local Services,Direct Services,021242,Catering - County Hall,Supplies and Services,324117,Provisions E324,04-Oct-2018,000007916285603,JR HOLLAND FOODSERVICE,5422,Catering costs - provisions,64.87,0.00,64.87
Regeneration and Local Services,Direct Services,021242,Catering - County Hall,Supplies and Services,324117,Provisions E324,04-Oct-2018,000007916285607,JR HOLLAND FOODSERVICE,5422,Catering costs - provisions,13.80,0.00,13.80
Regeneration and Local Services,Culture & Sport,054812,Gala Theatre - Catering etc,Supplies and Services,324117,Provisions E324,04-Oct-2018,000007916285621,JR HOLLAND FOODSERVICE,5422,Catering costs - provisions,43.81,0.00,43.81
Regeneration and Local Services,Culture & Sport,054812,Gala Theatre - Catering etc,Supplies and Services,324117,Provisions E324,04-Oct-2018,000007916285627,JR HOLLAND FOODSERVICE,5422,Catering costs - provisions,4.71,0.00,4.71
Children and Young Peoples Services,Head of Education and Skills,071732,Dean Bank Childcare,Supplies and Services,312011,Newspapers books and periodicals E312,04-Oct-2018,000007916285741,Amazon.co.uk,5969,Books-school library,8.47,0.00,8.47
Children and Young Peoples Services,Head of Education and Skills,071732,Dean Bank Childcare,Supplies and Services,324117,Provisions E324,04-Oct-2018,000007916285743,JR HOLLAND FOODSERVICE,5422,Catering costs - provisions,425.38,0.00,425.38
Regeneration and Local Services,Spatial Policy Planning Assets & Environment,031204,North Pennines Nectarworks,Supplies and Services,328041,Clothing uniforms and laundry E328,04-Oct-2018,000007916285755,FASHION SCARF WORLD,5699,Clothing uniforms and laundry,153.31,25.55,127.76
Regeneration and Local Services,Culture & Sport,054813,Gala Theatre - Technical,Supplies and Services,324117,Provisions E324,04-Oct-2018,000007916285835,TESCO STORES 6029,5411,Catering costs - provisions,8.15,0.00,8.15
Regeneration and Local Services,Spatial Policy Planning Assets & Environment,031222,North Pennines Allen Valleys Landscape Partnership,Supplies and Services,324117,Provisions E324,04-Oct-2018,000007916285837,CAFE OSWALDS AT CRANST,5499,Catering costs - provisions,41.70,6.95,34.75
Regeneration and Local Services,Culture & Sport,011060,Hardwick Park Catering,Supplies and Services,324117,Provisions E324,04-Oct-2018,000007916285841,JR HOLLAND FOODSERVICE,5422,Catering costs - provisions,20.17,0.00,20.17
Regeneration and Local Services,Direct Services,021234,Catering - Locomotion,Supplies and Services,324117,Provisions E324,04-Oct-2018,000007916285855,JR HOLLAND FOODSERVICE,5422,Catering costs - provisions,3.68,0.00,3.68
Children and Young Peoples Services,Head of Childrens Social Care,085342,9 Cedar Drive Aycliffe,Supplies and Services,324117,Provisions E324,04-Oct-2018,000007916285907,ALDI 74 774,5411,Catering costs - provisions,92.35,0.00,92.35
Regeneration and Local Services,Direct Services,010367,C&G - South Grounds Maintenance,Supplies and Services,304221,Equipment and Materials,04-Oct-2018,000007916285929,B & Q 1120,5211,Direct materials,15.00,0.00,15.00
Adult and Health Services,Head of Adults,055643,Hawthorn House LD Respite Unit,Supplies and Services,324117,Provisions E324,04-Oct-2018,000007916285935,JR HOLLAND FOODSERVICE,5422,Catering costs - provisions,-10.64,0.00,-10.64
Children and Young Peoples Services,Head of Education and Skills,070264,EDC Premises,Supplies and Services,312011,Newspapers books and periodicals E312,04-Oct-2018,000007916285973,AMZN Mktp UK,5942,Books-school library,6.88,0.00,6.88
Children and Young Peoples Services,"Head of Early Help, Inclusion and Vulnerable Children",085965,Barnard,Supplies and Services,324117,Provisions E324,04-Oct-2018,000007916286003,TESCO STORES 6329,5411,Catering costs - provisions,93.41,0.00,93.41
Regeneration and Local Services,Transport and Contracted Services,031701,Care Connect All Localities,Supplies and Services,304259,Equipment and Materials,04-Oct-2018,000007916286017,AMZN Mktp UK,5942,Equipment-purchase and rental,26.94,4.49,22.45
Regeneration and Local Services,Transport and Contracted Services,031701,Care Connect All Localities,Supplies and Services,304259,Equipment and Materials,04-Oct-2018,000007916286017 - 1,AMZN Mktp UK,5942,Equipment-purchase and rental,26.35,,26.35
Regeneration and Local Services,Transport and Contracted Services,031701,Care Connect All Localities,Supplies and Services,304259,Equipment and Materials,04-Oct-2018,000007916286021,AMZN MKTP UK AMAZON.CO,5942,Equipment-purchase and rental,28.00,4.67,23.33
Regeneration and Local Services,Culture & Sport,011060,Hardwick Park Catering,Supplies and Services,304245,Equipment and Materials,04-Oct-2018,000007916286025,NEXTDAY CATERING EQUIP,5046,Materials,144.58,24.10,120.48
Children and Young Peoples Services,Head of Childrens Social Care,085333,Coxhoe Satelite Home,Supplies and Services,312011,Newspapers books and periodicals E312,04-Oct-2018,000007916286039,AMZN MKTP UK AMAZON.CO,5942,Books-school library,6.98,0.00,6.98
Children and Young Peoples Services,Head of Childrens Social Care,085333,Coxhoe Satelite Home,Supplies and Services,312011,Newspapers books and periodicals E312,04-Oct-2018,000007916286043,AMZN MKTP UK AMAZON.CO,5942,Books-school library,6.99,0.00,6.99
Children and Young Peoples Services,Head of Childrens Social Care,085333,Coxhoe Satelite Home,Supplies and Services,312011,Newspapers books and periodicals E312,04-Oct-2018,000007916286047,AMZN MKTP UK AMAZON.CO,5942,Books-school library,14.99,0.00,14.99
Children and Young Peoples Services,Head of Childrens Social Care,085333,Coxhoe Satelite Home,Supplies and Services,312011,Newspapers books and periodicals E312,04-Oct-2018,000007916286051,AMZN MKTP UK AMAZON.CO,5942,Books-school library,16.49,0.00,16.49
Children and Young Peoples Services,Head of Childrens Social Care,085333,Coxhoe Satelite Home,Supplies and Services,324117,Provisions E324,04-Oct-2018,000007916286055,ALDI 12 774,5411,Catering costs - provisions,58.73,0.00,58.73
Regeneration and Local Services,Economic Development and Housing,030554,International Relations,Transport,235057,Public Transport,04-Oct-2018,000007916286095,PRINCE BISHOP SHOPPING,7523,Staff travelling,3.30,0.00,3.30
Resources,Finance & Transactional Services,065180,Collections,Supplies and Services,338048,Services,04-Oct-2018,000007916286101,HMCOURTS-SERVICE.G,9222,Court costs 338048,"1,081.00",0.00,1081.00
Regeneration and Local Services,Culture & Sport,054820,Gala Theatre - Overheads,Supplies and Services,324117,Provisions E324,04-Oct-2018,000007916286133,TESCO STORES 6029,5411,Catering costs - provisions,8.90,0.00,8.90
Resources,Digital and Customer Services,069010,Administration,Supplies and Services,304259,Equipment and Materials,04-Oct-2018,000007916286157,DARLINGTON BC INTERNET,9399,Equipment-purchase and rental,12.00,0.00,12.00
Resources,Digital and Customer Services,069010,Administration,Supplies and Services,304259,Equipment and Materials,04-Oct-2018,000007916286161,GRO HM PASSPORT OFFICE,9399,Equipment-purchase and rental,23.40,0.00,23.40
Regeneration and Local Services,Direct Services,021235,Catering - Wharton Park,Supplies and Services,324117,Provisions E324,04-Oct-2018,000007916286179,JR HOLLAND FOODSERVICE,5422,Catering costs - provisions,23.39,0.00,23.39
Children and Young Peoples Services,Head of Childrens Social Care,085363,LAC & Permanence Team 3,Supplies and Services,304259,Equipment and Materials,04-Oct-2018,000007916286189,WWW.DURHAM.GOV.UK,9399,Equipment-purchase and rental,36.00,0.00,36.00
Children and Young Peoples Services,Head of Childrens Social Care,085363,LAC & Permanence Team 3,Supplies and Services,304259,Equipment and Materials,04-Oct-2018,000007916286193,WWW.DURHAM.GOV.UK,9399,Equipment-purchase and rental,36.00,0.00,36.00
Regeneration and Local Services,Economic Development and Housing,030553,Europe Direct Scheme,Supplies and Services,384999,Miscellaneous Expenses,04-Oct-2018,000007916286247,BAKER ROSS,5970,Other expenses,17.72,0.00,17.72
Regeneration and Local Services,Economic Development and Housing,031576,B& B - Temp Accom,Supplies and Services,364320,Grants to Voluntary Organisations,04-Oct-2018,000007923394447,PREMIER INN,3811,Accommodation assistance,236.50,39.42,197.08
Regeneration and Local Services,Economic Development and Housing,030699,Business Growth and Innovation General,Supplies and Services,304403,Equipment and Materials,04-Oct-2018,000007923394529,MEETEDGAR MONTHLY,5734,Other consumables,37.91,0.00,37.91
Regeneration and Local Services,Culture & Sport,054305,Murton Library,Supplies and Services,384956,Miscellaneous Expenses,04-Oct-2018,000007923394595,TVLICENSING.CO.UK,7392,Licences,150.50,0.00,150.50
Regeneration and Local Services,Culture & Sport,054003,Coundon Library,Supplies and Services,384956,Miscellaneous Expenses,04-Oct-2018,000007923394597,TVLICENSING.CO.UK,7392,Licences,150.50,0.00,150.50
Regeneration and Local Services,Culture & Sport,054101,Brandon Library,Supplies and Services,384956,Miscellaneous Expenses,04-Oct-2018,000007923394599,TVLICENSING.CO.UK,7392,Licences,150.50,0.00,150.50
Regeneration and Local Services,Culture & Sport,011060,Hardwick Park Catering,Supplies and Services,324117,Provisions E324,04-Oct-2018,000007923395017,BATLEYS PERTH,5300,Catering costs - provisions,271.86,45.31,226.55
Regeneration and Local Services,Culture & Sport,011060,Hardwick Park Catering,Supplies and Services,324117,Provisions E324,04-Oct-2018,000007923395017 - 1,BATLEYS PERTH,5300,Catering costs - provisions,127.55,,127.55
Regeneration and Local Services,Direct Services,021234,Catering - Locomotion,Supplies and Services,324117,Provisions E324,04-Oct-2018,000007923395077,BATLEYS PERTH,5300,Catering costs - provisions,190.80,31.80,159.00
Regeneration and Local Services,Direct Services,021234,Catering - Locomotion,Supplies and Services,324117,Provisions E324,04-Oct-2018,000007923395077 - 1,BATLEYS PERTH,5300,Catering costs - provisions,56.74,,56.74
Regeneration and Local Services,Direct Services,021234,Catering - Locomotion,Supplies and Services,324117,Provisions E324,04-Oct-2018,000007923395079,BATLEYS PERTH,5300,Catering costs - provisions,8.97,0.00,8.97
Children and Young Peoples Services,Head of Childrens Social Care,085372,Young People Services - North,Supplies and Services,308011,Furniture,04-Oct-2018,000007923395379,TOUGH FURNITURE,5712,Furniture repair and replacement,199.20,33.20,166.00
Resources,Digital and Customer Services,069010,Administration,Supplies and Services,304259,Equipment and Materials,04-Oct-2018,000007923395653,GRO HM PASSPORT OFFICE,9399,Equipment-purchase and rental,-23.40,0.00,-23.40
Children and Young Peoples Services,Head of Childrens Social Care,085363,LAC & Permanence Team 3,Supplies and Services,304259,Equipment and Materials,04-Oct-2018,000007923395693,SUNDERLAND CC,9399,Equipment-purchase and rental,30.00,0.00,30.00
Resources,Digital and Customer Services,065461,Business Support,Supplies and Services,304335,Equipment and Materials,05-Oct-2018,000007916285529,BITEABLE PTY LTD,7392,ICT supplies etc,0.62,0.00,0.62
Children and Young Peoples Services,Head of Education and Skills,071801,Selby Cottage Childcare Centre,Supplies and Services,324117,Provisions E324,05-Oct-2018,000007923394427,TESCO STORES 2278,5411,Catering costs - provisions,20.90,0.00,20.90
Regeneration and Local Services,Transport and Contracted Services,032170,Integrated Passenger Transport,Supplies and Services,304335,Equipment and Materials,05-Oct-2018,000007923394439,AMZN Mktp UK,5942,ICT supplies etc,67.50,11.25,56.25
Children and Young Peoples Services,Head of Childrens Social Care,085332,Middlestone Moor CU,Supplies and Services,304259,Equipment and Materials,05-Oct-2018,000007923394515,Electrolux plc,5722,Equipment-purchase and rental,18.99,0.00,18.99
Children and Young Peoples Services,Head of Childrens Social Care,085332,Middlestone Moor CU,Supplies and Services,324117,Provisions E324,05-Oct-2018,000007923394519,ASDA SUPERSTORE 4987,5411,Catering costs - provisions,52.78,0.00,52.78
Children and Young Peoples Services,Head of Childrens Social Care,085332,Middlestone Moor CU,Supplies and Services,324117,Provisions E324,05-Oct-2018,000007923394525,LIDL UK SPENNYMOOR,5411,Catering costs - provisions,66.08,0.00,66.08
Regeneration and Local Services,Direct Services,010367,C&G - South Grounds Maintenance,Supplies and Services,304221,Equipment and Materials,05-Oct-2018,000007923394577,SCREWFIX PETERLEE,5211,Direct materials,65.27,10.88,54.39
Regeneration and Local Services,Direct Services,021242,Catering - County Hall,Supplies and Services,324117,Provisions E324,05-Oct-2018,000007923394609,HOPWELLS LTD,5811,Catering costs - provisions,373.05,0.00,373.05
Regeneration and Local Services,Direct Services,021242,Catering - County Hall,Supplies and Services,324117,Provisions E324,05-Oct-2018,000007923394611,HOPWELLS LTD,5811,Catering costs - provisions,154.31,0.00,154.31
Regeneration and Local Services,Direct Services,021242,Catering - County Hall,Supplies and Services,324117,Provisions E324,05-Oct-2018,000007923394615,JR HOLLAND FOODSERVICE,5422,Catering costs - provisions,63.67,0.00,63.67
Regeneration and Local Services,Direct Services,021242,Catering - County Hall,Supplies and Services,324117,Provisions E324,05-Oct-2018,000007923394617,HOPWELLS LTD,5811,Catering costs - provisions,-9.56,0.00,-9.56
Regeneration and Local Services,Culture & Sport,054812,Gala Theatre - Catering etc,Supplies and Services,324117,Provisions E324,05-Oct-2018,000007923394633,HOPWELLS LTD,5811,Catering costs - provisions,28.29,0.00,28.29
Regeneration and Local Services,Culture & Sport,054812,Gala Theatre - Catering etc,Supplies and Services,324117,Provisions E324,05-Oct-2018,000007923394635,HOPWELLS LTD,5811,Catering costs - provisions,12.38,0.00,12.38
Children and Young Peoples Services,"Head of Early Help, Inclusion and Vulnerable Children",079599,Psychological-HQ,Employees,040149,Recruitment Instruction and Training,05-Oct-2018,000007923394663,PAYPAL MISP,8299,Training-all costs,90.00,0.00,90.00
Children and Young Peoples Services,Head of Childrens Social Care,085362,LAC & Permanence Team 2,Supplies and Services,384999,Miscellaneous Expenses,05-Oct-2018,000007923394703,GRO HM PASSPORT OFFICE,9399,Other expenses,9.25,0.00,9.25
Children and Young Peoples Services,Head of Childrens Social Care,085334,West Rainton Satelite Home,Supplies and Services,324117,Provisions E324,05-Oct-2018,000007923394759,TESCO STORES 2371,5411,Catering costs - provisions,19.74,0.00,19.74
Children and Young Peoples Services,Head of Childrens Social Care,085334,West Rainton Satelite Home,Supplies and Services,324117,Provisions E324,05-Oct-2018,000007923394763,ALDI 12 774,5411,Catering costs - provisions,10.14,1.69,8.45
Children and Young Peoples Services,Head of Childrens Social Care,085334,West Rainton Satelite Home,Supplies and Services,324117,Provisions E324,05-Oct-2018,000007923394763 - 1,ALDI 12 774,5411,Catering costs - provisions,59.99,,59.99
Children and Young Peoples Services,Head of Childrens Social Care,085352,Tow Law CU,Supplies and Services,312011,Newspapers books and periodicals E312,05-Oct-2018,000007923394767,AMZN Mktp UK,5942,Books-school library,4.95,0.00,4.95
Children and Young Peoples Services,Head of Childrens Social Care,085352,Tow Law CU,Supplies and Services,312011,Newspapers books and periodicals E312,05-Oct-2018,000007923394769,AMZN Mktp UK,5942,Books-school library,40.52,0.00,40.52
Children and Young Peoples Services,Head of Childrens Social Care,085352,Tow Law CU,Supplies and Services,312011,Newspapers books and periodicals E312,05-Oct-2018,000007923394773,AMZN Mktp UK,5942,Books-school library,5.49,0.00,5.49
Regeneration and Local Services,Culture & Sport,011056,AAP Funding - Sport & Leisure,Supplies and Services,304649,Equipment and Materials,05-Oct-2018,000007923394869,WWW.ARGOS.CO.UK,5310,Toys,123.92,0.00,123.92
Regeneration and Local Services,Culture & Sport,054813,Gala Theatre - Technical,Supplies and Services,304259,Equipment and Materials,05-Oct-2018,000007923394979,Prime Video,5735,Equipment-purchase and rental,5.99,0.00,5.99
Regeneration and Local Services,Culture & Sport,054813,Gala Theatre - Technical,Supplies and Services,304221,Equipment and Materials,05-Oct-2018,000007923394981,B & Q 1221,5211,Direct materials,140.50,0.00,140.50
Regeneration and Local Services,Culture & Sport,011060,Hardwick Park Catering,Supplies and Services,324117,Provisions E324,05-Oct-2018,000007923395013,HOPWELLS LTD,5811,Catering costs - provisions,63.18,10.53,52.65
Regeneration and Local Services,Culture & Sport,011060,Hardwick Park Catering,Supplies and Services,324117,Provisions E324,05-Oct-2018,000007923395013 - 1,HOPWELLS LTD,5811,Catering costs - provisions,53.67,,53.67
Regeneration and Local Services,Culture & Sport,011060,Hardwick Park Catering,Supplies and Services,324117,Provisions E324,05-Oct-2018,000007923395023,HOPWELLS LTD,5811,Catering costs - provisions,-10.68,0.00,-10.68
Regeneration and Local Services,Economic Development and Housing,030757,Interserve/Skills Support for the Unemployed,Employees,040149,Recruitment Instruction and Training,05-Oct-2018,000007923395061,WWW.CSKILLS.ORG,8249,Training-all costs,36.00,6.00,30.00
Regeneration and Local Services,Direct Services,021234,Catering - Locomotion,Supplies and Services,324117,Provisions E324,05-Oct-2018,000007923395073,HOPWELLS LTD,5811,Catering costs - provisions,62.04,10.34,51.70
Regeneration and Local Services,Direct Services,021234,Catering - Locomotion,Supplies and Services,324117,Provisions E324,05-Oct-2018,000007923395073 - 1,HOPWELLS LTD,5811,Catering costs - provisions,274.42,,274.42
Regeneration and Local Services,Economic Development and Housing,030714,Salvus House,Supplies and Services,304259,Equipment and Materials,05-Oct-2018,000007923395093,WILKO DURHAM 426,5722,Equipment-purchase and rental,2.00,0.00,2.00
Regeneration and Local Services,Economic Development and Housing,030714,Salvus House,Supplies and Services,324117,Provisions E324,05-Oct-2018,000007923395097,SAINSBURYS 0776,5411,Catering costs - provisions,2.10,0.00,2.10
Regeneration and Local Services,Direct Services,010525,Catering - Green Lane,Supplies and Services,324117,Provisions E324,05-Oct-2018,000007923395113,HOPWELLS LTD,5811,Catering costs - provisions,126.36,0.00,126.36
Regeneration and Local Services,Direct Services,010525,Catering - Green Lane,Supplies and Services,324117,Provisions E324,05-Oct-2018,000007923395117,JR HOLLAND FOODSERVICE,5422,Catering costs - provisions,66.48,0.00,66.48
Regeneration and Local Services,Direct Services,010525,Catering - Green Lane,Supplies and Services,324117,Provisions E324,05-Oct-2018,000007923395119,JR HOLLAND FOODSERVICE,5422,Catering costs - provisions,-3.47,0.00,-3.47
Children and Young Peoples Services,Head of Childrens Social Care,085341,High Etherley Satelite Home,Supplies and Services,324117,Provisions E324,05-Oct-2018,000007923395157,TESCO STORES 6329,5411,Catering costs - provisions,85.07,0.00,85.07
Regeneration and Local Services,Direct Services,019100,Fleet - Strategic Fleet,Supplies and Services,384999,Miscellaneous Expenses,05-Oct-2018,000007923395207,DSA,9399,Other expenses,"1,000.00",0.00,1000.00
Regeneration and Local Services,Direct Services,019100,Fleet - Strategic Fleet,Supplies and Services,384999,Miscellaneous Expenses,05-Oct-2018,000007923395209,DSA,9399,Other expenses,"1,000.00",0.00,1000.00
Regeneration and Local Services,Direct Services,030691,"Catering - Durham Dales Centre			",Supplies and Services,324117,Provisions E324,05-Oct-2018,000007923395213,HOPWELLS LTD,5811,Catering costs - provisions,22.50,3.75,18.75
Regeneration and Local Services,Direct Services,030691,"Catering - Durham Dales Centre			",Supplies and Services,324117,Provisions E324,05-Oct-2018,000007923395213 - 1,HOPWELLS LTD,5811,Catering costs - provisions,166.29,,166.29
Regeneration and Local Services,Direct Services,030691,"Catering - Durham Dales Centre			",Supplies and Services,324117,Provisions E324,05-Oct-2018,000007923395217,HOPWELLS LTD,5811,Catering costs - provisions,43.26,7.21,36.05
Regeneration and Local Services,Direct Services,030691,"Catering - Durham Dales Centre			",Supplies and Services,324117,Provisions E324,05-Oct-2018,000007923395217 - 1,HOPWELLS LTD,5811,Catering costs - provisions,102.67,,102.67
Regeneration and Local Services,Direct Services,030691,"Catering - Durham Dales Centre			",Supplies and Services,324117,Provisions E324,05-Oct-2018,000007923395221,JR HOLLAND FOODSERVICE,5422,Catering costs - provisions,32.24,0.00,32.24
Regeneration and Local Services,Direct Services,030691,"Catering - Durham Dales Centre			",Supplies and Services,324117,Provisions E324,05-Oct-2018,000007923395225,JR HOLLAND FOODSERVICE,5422,Catering costs - provisions,13.20,0.00,13.20
Regeneration and Local Services,Direct Services,030691,"Catering - Durham Dales Centre			",Supplies and Services,324117,Provisions E324,05-Oct-2018,000007923395227,JR HOLLAND FOODSERVICE,5422,Catering costs - provisions,9.20,0.00,9.20
Regeneration and Local Services,Direct Services,030691,"Catering - Durham Dales Centre			",Supplies and Services,324117,Provisions E324,05-Oct-2018,000007923395231,HOPWELLS LTD,5811,Catering costs - provisions,-22.48,-3.75,-18.73
Adult and Health Services,Head of Adults,055643,Hawthorn House LD Respite Unit,Supplies and Services,324117,Provisions E324,05-Oct-2018,000007923395247,JR HOLLAND FOODSERVICE,5422,Catering costs - provisions,10.55,0.00,10.55
Adult and Health Services,Head of Adults,055643,Hawthorn House LD Respite Unit,Supplies and Services,324117,Provisions E324,05-Oct-2018,000007923395249,JR HOLLAND FOODSERVICE,5422,Catering costs - provisions,5.81,0.00,5.81
Regeneration and Local Services,Spatial Policy Planning Assets & Environment,031200,North Pennines Core,Transport,215995,Running Costs of Vehicles,05-Oct-2018,000007923395255,CO-OP GROUP 014987,5541,Vehicle running expenses,3.50,0.00,3.50
Children and Young Peoples Services,"Head of Early Help, Inclusion and Vulnerable Children",085957,Secure Management,Supplies and Services,324117,Provisions E324,05-Oct-2018,000007923395343,TESCO STORES 6329,5411,Catering costs - provisions,120.30,0.00,120.30
Children and Young Peoples Services,Head of Childrens Social Care,085517,Supporting Solutions Service (Edge of Care),Supplies and Services,328041,Clothing uniforms and laundry E328,05-Oct-2018,000007923395365,ARGOS LTD,5310,Clothing uniforms and laundry,50.00,8.33,41.67
Children and Young Peoples Services,Head of Childrens Social Care,085517,Supporting Solutions Service (Edge of Care),Supplies and Services,328041,Clothing uniforms and laundry E328,05-Oct-2018,000007923395367,ARGOS LTD,5310,Clothing uniforms and laundry,44.99,7.50,37.49
Children and Young Peoples Services,Head of Childrens Social Care,085517,Supporting Solutions Service (Edge of Care),Supplies and Services,324117,Provisions E324,05-Oct-2018,000007923395369,TESCO STORES 2371,5411,Catering costs - provisions,32.60,0.00,32.60
Children and Young Peoples Services,Head of Childrens Social Care,085517,Supporting Solutions Service (Edge of Care),Supplies and Services,328041,Clothing uniforms and laundry E328,05-Oct-2018,000007923395373,B & M RETAIL,5310,Clothing uniforms and laundry,11.95,0.00,11.95
Children and Young Peoples Services,Head of Childrens Social Care,085372,Young People Services - North,Supplies and Services,308011,Furniture,05-Oct-2018,000007923395377,EDS BEDS LTD,5712,Furniture repair and replacement,130.00,0.00,130.00
Regeneration and Local Services,Culture & Sport,054235,Bishop Auckland Town Hall Cafe,Supplies and Services,324117,Provisions E324,05-Oct-2018,000007923395399,HOPWELLS LTD,5811,Catering costs - provisions,26.78,0.00,26.78
Regeneration and Local Services,Culture & Sport,054235,Bishop Auckland Town Hall Cafe,Supplies and Services,324117,Provisions E324,05-Oct-2018,000007923395403,JR HOLLAND FOODSERVICE,5422,Catering costs - provisions,29.20,0.00,29.20
Regeneration and Local Services,Transport and Contracted Services,031701,Care Connect All Localities,Supplies and Services,304259,Equipment and Materials,05-Oct-2018,000007923395407,AMZN MKTP UK AMAZON.CO,5942,Equipment-purchase and rental,47.88,7.98,39.90
Regeneration and Local Services,Culture & Sport,026591,Hardwick Park,Supplies and Services,332047,Printing Stationery and Gen Off Exps,05-Oct-2018,000007923395411,ALPEN SIGNS LIMITED,7399,Stationery,60.00,10.00,50.00
Regeneration and Local Services,Direct Services,021324,Catering - Meadowfield,Supplies and Services,324117,Provisions E324,05-Oct-2018,000007923395415,HOPWELLS LTD,5811,Catering costs - provisions,72.42,0.00,72.42
Regeneration and Local Services,Direct Services,021324,Catering - Meadowfield,Supplies and Services,324117,Provisions E324,05-Oct-2018,000007923395419,JR HOLLAND FOODSERVICE,5422,Catering costs - provisions,35.66,0.00,35.66
Regeneration and Local Services,Direct Services,021324,Catering - Meadowfield,Supplies and Services,324117,Provisions E324,05-Oct-2018,000007923395421,JR HOLLAND FOODSERVICE,5422,Catering costs - provisions,10.35,0.00,10.35
Children and Young Peoples Services,Head of Childrens Social Care,085332,Middlestone Moor CU,Supplies and Services,308011,Furniture,05-Oct-2018,000007923395563,DUNELM ONLINE ORDER,5714,Furniture repair and replacement,138.95,0.00,138.95
Resources,Digital and Customer Services,069010,Administration,Supplies and Services,304259,Equipment and Materials,05-Oct-2018,000007923395651,NEWCASTLE CC INET,9399,Equipment-purchase and rental,27.00,0.00,27.00
Resources,Digital and Customer Services,069010,Administration,Supplies and Services,304259,Equipment and Materials,05-Oct-2018,000007923395655,DISCLOSURE SCOT,9399,Equipment-purchase and rental,25.00,0.00,25.00
Adult and Health Services,Head of Adults,055306,Spennymoor Pathways,Supplies and Services,324117,Provisions E324,05-Oct-2018,000007923395659,FARMFOODS- SPENNYM,5411,Catering costs - provisions,3.59,0.00,3.59
Adult and Health Services,Head of Adults,055306,Spennymoor Pathways,Supplies and Services,324117,Provisions E324,05-Oct-2018,000007923395661,ASDA SUPERSTORE 4987,5411,Catering costs - provisions,5.45,0.00,5.45
Adult and Health Services,Head of Adults,055306,Spennymoor Pathways,Supplies and Services,324117,Provisions E324,05-Oct-2018,000007923395663,ALDI 59 774,5411,Catering costs - provisions,3.59,0.00,3.59
Regeneration and Local Services,Direct Services,021235,Catering - Wharton Park,Supplies and Services,324117,Provisions E324,05-Oct-2018,000007923395681,HOPWELLS LTD,5811,Catering costs - provisions,60.72,10.12,50.60
Regeneration and Local Services,Direct Services,021235,Catering - Wharton Park,Supplies and Services,324117,Provisions E324,05-Oct-2018,000007923395681 - 1,HOPWELLS LTD,5811,Catering costs - provisions,82.90,,82.90
Regeneration and Local Services,Direct Services,021235,Catering - Wharton Park,Supplies and Services,324117,Provisions E324,05-Oct-2018,000007923395683,HOPWELLS LTD,5811,Catering costs - provisions,86.16,14.36,71.80
Regeneration and Local Services,Direct Services,021235,Catering - Wharton Park,Supplies and Services,324117,Provisions E324,05-Oct-2018,000007923395683 - 1,HOPWELLS LTD,5811,Catering costs - provisions,45.13,,45.13
Regeneration and Local Services,Direct Services,021235,Catering - Wharton Park,Supplies and Services,324117,Provisions E324,05-Oct-2018,000007923395685,HOPWELLS LTD,5811,Catering costs - provisions,-22.48,-3.75,-18.73
Regeneration and Local Services,Culture & Sport,054307,Seaham Library,Supplies and Services,384956,Miscellaneous Expenses,05-Oct-2018,000007930727575,TVLICENSING.CO.UK,7392,Licences,-150.50,0.00,-150.50
Regeneration and Local Services,Direct Services,021242,Catering - County Hall,Supplies and Services,324117,Provisions E324,05-Oct-2018,000007930727643,BATLEYS PERTH,5300,Catering costs - provisions,750.54,125.09,625.45
Regeneration and Local Services,Direct Services,021242,Catering - County Hall,Supplies and Services,324117,Provisions E324,05-Oct-2018,000007930727643 - 1,BATLEYS PERTH,5300,Catering costs - provisions,236.75,,236.75
Regeneration and Local Services,Direct Services,021242,Catering - County Hall,Supplies and Services,324117,Provisions E324,05-Oct-2018,000007930727651,BATLEYS PERTH,5300,Catering costs - provisions,-10.33,0.00,-10.33
Regeneration and Local Services,Culture & Sport,011060,Hardwick Park Catering,Supplies and Services,324117,Provisions E324,05-Oct-2018,000007930728029,BATLEYS PERTH,5300,Catering costs - provisions,167.58,27.93,139.65
Regeneration and Local Services,Culture & Sport,011060,Hardwick Park Catering,Supplies and Services,324117,Provisions E324,05-Oct-2018,000007930728029 - 1,BATLEYS PERTH,5300,Catering costs - provisions,142.05,,142.05
Regeneration and Local Services,Direct Services,021234,Catering - Locomotion,Supplies and Services,324117,Provisions E324,05-Oct-2018,000007930728103,BATLEYS PERTH,5300,Catering costs - provisions,47.45,7.91,39.54
Regeneration and Local Services,Direct Services,010525,Catering - Green Lane,Supplies and Services,324117,Provisions E324,05-Oct-2018,000007930728219,BATLEYS PERTH,5300,Catering costs - provisions,238.20,39.70,198.50
Regeneration and Local Services,Direct Services,010525,Catering - Green Lane,Supplies and Services,324117,Provisions E324,05-Oct-2018,000007930728219 - 1,BATLEYS PERTH,5300,Catering costs - provisions,107.62,,107.62
Adult and Health Services,Head of Adults,055643,Hawthorn House LD Respite Unit,Supplies and Services,324117,Provisions E324,05-Oct-2018,000007930728467,BATLEYS PERTH,5300,Catering costs - provisions,19.62,3.27,16.35
Adult and Health Services,Head of Adults,055643,Hawthorn House LD Respite Unit,Supplies and Services,324117,Provisions E324,05-Oct-2018,000007930728467 - 1,BATLEYS PERTH,5300,Catering costs - provisions,120.95,,120.95
Children and Young Peoples Services,Head of Childrens Social Care,085342,9 Cedar Drive Aycliffe,Supplies and Services,324117,Provisions E324,06-Oct-2018,000007923394493,TESCO STORES 2916,5411,Catering costs - provisions,10.52,0.00,10.52
Children and Young Peoples Services,Head of Childrens Social Care,085332,Middlestone Moor CU,Premises,115125,Repairs to Grounds,06-Oct-2018,000007923394527,AMZN Mktp UK,5942,General maintenance,1.99,0.00,1.99
Regeneration and Local Services,Culture & Sport,011217,Commercial Management,Supplies and Services,304999,Equipment and Materials,06-Oct-2018,000007923394717,Amazon Prime,5968,Misc equipment tools and materials,7.99,0.00,7.99
Children and Young Peoples Services,Head of Childrens Social Care,085352,Tow Law CU,Supplies and Services,312011,Newspapers books and periodicals E312,06-Oct-2018,000007923394777,AMZN Mktp UK,5942,Books-school library,7.03,0.00,7.03
Children and Young Peoples Services,Head of Childrens Social Care,085352,Tow Law CU,Supplies and Services,312011,Newspapers books and periodicals E312,06-Oct-2018,000007923394779,AMZN Mktp UK,5942,Books-school library,3.58,0.00,3.58
Children and Young Peoples Services,Head of Childrens Social Care,085352,Tow Law CU,Supplies and Services,312011,Newspapers books and periodicals E312,06-Oct-2018,000007923394781,AMZN Mktp UK,5942,Books-school library,4.83,0.00,4.83
Children and Young Peoples Services,Head of Childrens Social Care,085352,Tow Law CU,Supplies and Services,312011,Newspapers books and periodicals E312,06-Oct-2018,000007923394783,AMZ 11 Degrees,4816,Books-school library,29.94,0.00,29.94
Children and Young Peoples Services,Head of Education and Skills,071732,Dean Bank Childcare,Supplies and Services,312011,Newspapers books and periodicals E312,06-Oct-2018,000007923394817,AMZN Mktp UK,5942,Books-school library,5.99,0.00,5.99
Regeneration and Local Services,Culture & Sport,054813,Gala Theatre - Technical,Supplies and Services,312011,Newspapers books and periodicals E312,06-Oct-2018,000007923394987,Amazon.co.uk,5969,Books-school library,4.99,0.00,4.99
Children and Young Peoples Services,Head of Childrens Social Care,085334,West Rainton Satelite Home,Supplies and Services,384999,Miscellaneous Expenses,06-Oct-2018,000007923395177,SMYTHS TOYS UK LTD,5945,Other expenses,159.99,26.67,133.32
Resources,Resources Management,069000,Resources Management,Supplies and Services,324117,Provisions E324,06-Oct-2018,000007923395183,SAINSBURYS SACAT (2303,5411,Catering costs - provisions,4.40,0.00,4.40
Resources,Digital and Customer Services,065335,School Services - Implementations,Supplies and Services,304639,Equipment and Materials,06-Oct-2018,000007923395313,AMZN Mktp UK,5942,Technicians-supplies,18.90,0.00,18.90
Children and Young Peoples Services,"Head of Early Help, Inclusion and Vulnerable Children",085954,Walworth,Supplies and Services,324117,Provisions E324,06-Oct-2018,000007923395351,TESCO STORES 6329,5411,Catering costs - provisions,141.41,0.00,141.41
Children and Young Peoples Services,"Head of Early Help, Inclusion and Vulnerable Children",085957,Secure Management,Supplies and Services,324117,Provisions E324,06-Oct-2018,000007923395355,TESCO DELIVERY SAVER2,5968,Catering costs - provisions,6.99,0.00,6.99
Children and Young Peoples Services,Head of Childrens Social Care,085333,Coxhoe Satelite Home,Supplies and Services,328041,Clothing uniforms and laundry E328,06-Oct-2018,000007923395439,THE WORKS,5310,Clothing uniforms and laundry,16.55,0.00,16.55
Children and Young Peoples Services,Head of Childrens Social Care,085333,Coxhoe Satelite Home,Supplies and Services,304259,Equipment and Materials,06-Oct-2018,000007923395443,WILKO DURHAM 426,5722,Equipment-purchase and rental,4.40,0.00,4.40
Children and Young Peoples Services,Head of Childrens Social Care,085333,Coxhoe Satelite Home,Supplies and Services,384999,Miscellaneous Expenses,06-Oct-2018,000007923395447,SMYTHS TOYS UK LTD,5945,Other expenses,22.98,0.00,22.98
Regeneration and Local Services,Economic Development and Housing,031576,B& B - Temp Accom,Supplies and Services,364320,Grants to Voluntary Organisations,06-Oct-2018,000007923395453,PREMIER INN,3811,Accommodation assistance,124.00,20.67,103.33
Children and Young Peoples Services,"Head of Early Help, Inclusion and Vulnerable Children",085952,Secure Education,Supplies and Services,304335,Equipment and Materials,07-Oct-2018,000007923394443,Amazon.co.uk,5969,ICT supplies etc,24.99,4.17,20.82
Children and Young Peoples Services,Head of Childrens Social Care,085342,9 Cedar Drive Aycliffe,Supplies and Services,324117,Provisions E324,07-Oct-2018,000007923394499,TESCO STORES 2916,5411,Catering costs - provisions,29.38,0.00,29.38
Children and Young Peoples Services,Head of Childrens Social Care,085342,9 Cedar Drive Aycliffe,Supplies and Services,324117,Provisions E324,07-Oct-2018,000007923394501,TESCO STORES 2916,5411,Catering costs - provisions,7.95,0.00,7.95
Children and Young Peoples Services,Head of Education and Skills,071732,Dean Bank Childcare,Supplies and Services,312011,Newspapers books and periodicals E312,07-Oct-2018,000007923394823,AMZN Mktp UK,5942,Books-school library,28.07,0.00,28.07
Children and Young Peoples Services,Head of Education and Skills,071732,Dean Bank Childcare,Supplies and Services,312011,Newspapers books and periodicals E312,07-Oct-2018,000007923394827,Amazon.co.uk,5969,Books-school library,23.90,0.00,23.90
Regeneration and Local Services,Culture & Sport,054813,Gala Theatre - Technical,Supplies and Services,312011,Newspapers books and periodicals E312,07-Oct-2018,000007923394983,AMZN Mktp UK,5942,Books-school library,44.81,0.00,44.81
Regeneration and Local Services,Culture & Sport,054813,Gala Theatre - Technical,Supplies and Services,312011,Newspapers books and periodicals E312,07-Oct-2018,000007923394985,AMZN Mktp UK,5942,Books-school library,19.96,0.00,19.96
Children and Young Peoples Services,Head of Education and Skills,070264,EDC Premises,Supplies and Services,312011,Newspapers books and periodicals E312,07-Oct-2018,000007923395293,AMZN Mktp UK,5942,Books-school library,16.90,0.00,16.90
Children and Young Peoples Services,Head of Childrens Social Care,085333,Coxhoe Satelite Home,Supplies and Services,324117,Provisions E324,07-Oct-2018,000007923395449,CO-OP GROUP 310016,5411,Catering costs - provisions,12.91,0.00,12.91
Resources,Digital and Customer Services,069010,Administration,Supplies and Services,304999,Equipment and Materials,07-Oct-2018,000007923395657,LINKEDIN-428 5799723,5968,Misc equipment tools and materials,12.10,0.00,12.10
Regeneration and Local Services,Economic Development and Housing,030699,Business Growth and Innovation General,Supplies and Services,304403,Equipment and Materials,08-Oct-2018,000007923394535,MEETEDGAR MONTHLY,5734,Other consumables,1.04,0.00,1.04
Regeneration and Local Services,Direct Services,021242,Catering - County Hall,Supplies and Services,324117,Provisions E324,08-Oct-2018,000007930727215,TESCO STORES 2371,5411,Catering costs - provisions,12.10,0.00,12.10
Regeneration and Local Services,Direct Services,021242,Catering - County Hall,Supplies and Services,324117,Provisions E324,08-Oct-2018,000007930727225,TESCO STORES 2916,5411,Catering costs - provisions,49.03,0.00,49.03
Regeneration and Local Services,Direct Services,021242,Catering - County Hall,Supplies and Services,324117,Provisions E324,08-Oct-2018,000007930727229,TESCO STORES 6329,5411,Catering costs - provisions,25.80,0.00,25.80
Children and Young Peoples Services,Head of Education and Skills,071801,Selby Cottage Childcare Centre,Supplies and Services,304259,Equipment and Materials,08-Oct-2018,000007930727237,WILKO RETAIL LIMIT,5722,Equipment-purchase and rental,19.25,0.00,19.25
Children and Young Peoples Services,Head of Education and Skills,071801,Selby Cottage Childcare Centre,Supplies and Services,324117,Provisions E324,08-Oct-2018,000007930727239,JR HOLLAND FOODSERVICE,5422,Catering costs - provisions,485.69,0.00,485.69
Children and Young Peoples Services,Head of Education and Skills,071801,Selby Cottage Childcare Centre,Supplies and Services,304999,Equipment and Materials,08-Oct-2018,000007930727247,Amazon Prime,5968,Misc equipment tools and materials,7.99,0.00,7.99
Children and Young Peoples Services,Head of Education and Skills,054640,Durham Learning Resources,Supplies and Services,304245,Equipment and Materials,08-Oct-2018,000007930727263,AMZN Mktp UK,5942,Materials,9.30,0.00,9.30
Resources,Digital and Customer Services,065481,Technical Services,Supplies and Services,304335,Equipment and Materials,08-Oct-2018,000007930727271,AMZN Mktp UK,5942,ICT supplies etc,11.48,1.91,9.57
Regeneration and Local Services,Economic Development and Housing,030773,CLLD North,Supplies and Services,328041,Clothing uniforms and laundry E328,08-Oct-2018,000007930727315,WORKWEAR EXPRESS LIMIT,5699,Clothing uniforms and laundry,134.29,22.38,111.91
Children and Young Peoples Services,Head of Education and Skills,075021,Youth Employment Initiative,Supplies and Services,384199,Miscellaneous Expenses,08-Oct-2018,000007930727323,GATESHEAD COUNCIL MOTO,9399,Other hired and contracted services,18.00,0.00,18.00
Children and Young Peoples Services,Head of Education and Skills,075021,Youth Employment Initiative,Supplies and Services,384199,Miscellaneous Expenses,08-Oct-2018,000007930727329,WWW.DURHAM.GOV.UK,9399,Other hired and contracted services,12.00,0.00,12.00
Children and Young Peoples Services,Head of Education and Skills,075021,Youth Employment Initiative,Supplies and Services,384199,Miscellaneous Expenses,08-Oct-2018,000007930727333,WWW.DURHAM.GOV.UK,9399,Other hired and contracted services,12.00,0.00,12.00
Adult and Health Services,Head of Adults,055302,Durham Pathways,Supplies and Services,304259,Equipment and Materials,08-Oct-2018,000007930727375,WILKO DURHAM 426,5722,Equipment-purchase and rental,6.45,0.00,6.45
Regeneration and Local Services,Economic Development and Housing,030699,Business Growth and Innovation General,Supplies and Services,312011,Newspapers books and periodicals E312,08-Oct-2018,000007930727435,FASTHOSTS INTERNET,4816,Books-school library,9.59,1.60,7.99
Regeneration and Local Services,Culture & Sport,011198,Culture & Sport Management,Supplies and Services,336005,Advertising E336,08-Oct-2018,000007930727571,WWW.SPECLE.NET,5045,Advertising other than for staff,18.00,3.00,15.00
Regeneration and Local Services,Economic Development and Housing,030544,Rural Employability - Client Engagement,Transport,235057,Public Transport,08-Oct-2018,000007930727585,ARRIVA NORTH EAST,4131,Staff travelling,7.20,0.00,7.20
Regeneration and Local Services,Economic Development and Housing,030544,Rural Employability - Client Engagement,Transport,235057,Public Transport,08-Oct-2018,000007930727589,GO NORTH EAST LIMITED,4131,Staff travelling,10.40,0.00,10.40
Regeneration and Local Services,Direct Services,021242,Catering - County Hall,Supplies and Services,324117,Provisions E324,08-Oct-2018,000007930727607,WWW.ADELIEFOODS.CO.UK,5499,Catering costs - provisions,311.07,0.00,311.07
Regeneration and Local Services,Direct Services,021242,Catering - County Hall,Supplies and Services,324117,Provisions E324,08-Oct-2018,000007930727611,WWW.ADELIEFOODS.CO.UK,5499,Catering costs - provisions,249.85,0.00,249.85
Regeneration and Local Services,Direct Services,021242,Catering - County Hall,Supplies and Services,324117,Provisions E324,08-Oct-2018,000007930727621,WWW.ADELIEFOODS.CO.UK,5499,Catering costs - provisions,147.94,0.00,147.94
Regeneration and Local Services,Direct Services,021242,Catering - County Hall,Supplies and Services,324117,Provisions E324,08-Oct-2018,000007930727623,WWW.ADELIEFOODS.CO.UK,5499,Catering costs - provisions,138.32,0.00,138.32
Regeneration and Local Services,Direct Services,021242,Catering - County Hall,Supplies and Services,324117,Provisions E324,08-Oct-2018,000007930727625,WWW.ADELIEFOODS.CO.UK,5499,Catering costs - provisions,50.48,0.00,50.48
Regeneration and Local Services,Direct Services,021242,Catering - County Hall,Supplies and Services,324117,Provisions E324,08-Oct-2018,000007930727627,WWW.ADELIEFOODS.CO.UK,5499,Catering costs - provisions,13.76,0.00,13.76
Regeneration and Local Services,Direct Services,021242,Catering - County Hall,Supplies and Services,324117,Provisions E324,08-Oct-2018,000007930727629,FREEMAN CATERING BUTCH,5422,Catering costs - provisions,207.47,0.00,207.47
Regeneration and Local Services,Direct Services,021242,Catering - County Hall,Supplies and Services,324117,Provisions E324,08-Oct-2018,000007930727637,JR HOLLAND FOODSERVICE,5422,Catering costs - provisions,71.22,0.00,71.22
Regeneration and Local Services,Direct Services,021242,Catering - County Hall,Supplies and Services,324117,Provisions E324,08-Oct-2018,000007930727641,JR HOLLAND FOODSERVICE,5422,Catering costs - provisions,13.84,0.00,13.84
Resources,Digital and Customer Services,065461,Business Support,Supplies and Services,372009,Subscriptions E372,08-Oct-2018,000007930727677,NOMINET UK,5734,Subscriptions 372009,13.50,2.25,11.25
Regeneration and Local Services,Economic Development and Housing,031576,B& B - Temp Accom,Supplies and Services,364320,Grants to Voluntary Organisations,08-Oct-2018,000007930727683,HOTEL 52,7011,Accommodation assistance,460.00,76.67,383.33
Children and Young Peoples Services,Head of Childrens Social Care,085361,LAC & Permanence Team 1,Supplies and Services,312009,Newspapers books and periodicals E312,08-Oct-2018,000007930727779,AMZN Mktp UK,5942,Newspapers books and periodicals,7.10,0.00,7.10
Children and Young Peoples Services,Head of Childrens Social Care,085362,LAC & Permanence Team 2,Supplies and Services,384999,Miscellaneous Expenses,08-Oct-2018,000007930727781,GRO HM PASSPORT OFFICE,9399,Other expenses,9.25,0.00,9.25
Regeneration and Local Services,Culture & Sport,011217,Commercial Management,Supplies and Services,304999,Equipment and Materials,08-Oct-2018,000007930727791,Amazon Prime,5968,Misc equipment tools and materials,-7.99,0.00,-7.99
Regeneration and Local Services,Economic Development and Housing,031576,B& B - Temp Accom,Supplies and Services,364320,Grants to Voluntary Organisations,08-Oct-2018,000007930727817,HOTEL 52,7011,Accommodation assistance,180.00,30.00,150.00
Children and Young Peoples Services,Head of Childrens Social Care,085352,Tow Law CU,Supplies and Services,312011,Newspapers books and periodicals E312,08-Oct-2018,000007930727831,AMZN Mktp UK,5942,Books-school library,2.99,0.00,2.99
Regeneration and Local Services,Culture & Sport,010664,Freemans Quay Leisure Centre,Supplies and Services,324117,Provisions E324,08-Oct-2018,000007930727879,TESCO STORES 6029,5411,Catering costs - provisions,13.00,2.17,10.83
Children and Young Peoples Services,Head of Education and Skills,071732,Dean Bank Childcare,Supplies and Services,312011,Newspapers books and periodicals E312,08-Oct-2018,000007930727895,AMZN Mktp UK,5942,Books-school library,40.92,0.00,40.92
Children and Young Peoples Services,Head of Education and Skills,071732,Dean Bank Childcare,Supplies and Services,304259,Equipment and Materials,08-Oct-2018,000007930727903,WILKO RETAIL LIMIT,5722,Equipment-purchase and rental,13.00,0.00,13.00
Children and Young Peoples Services,Head of Education and Skills,071732,Dean Bank Childcare,Supplies and Services,328041,Clothing uniforms and laundry E328,08-Oct-2018,000007930727907,W BOYES & CO LTD NEWTO,5310,Clothing uniforms and laundry,11.93,0.00,11.93
Children and Young Peoples Services,Head of Education and Skills,071732,Dean Bank Childcare,Supplies and Services,324117,Provisions E324,08-Oct-2018,000007930727909,ASDA GROCERIES ONLINE,5411,Catering costs - provisions,55.83,0.00,55.83
Children and Young Peoples Services,Head of Education and Skills,071732,Dean Bank Childcare,Supplies and Services,324117,Provisions E324,08-Oct-2018,000007930727913,ASDA GROCERIES ONLINE,5411,Catering costs - provisions,43.31,0.00,43.31
Children and Young Peoples Services,Head of Education and Skills,071732,Dean Bank Childcare,Supplies and Services,324117,Provisions E324,08-Oct-2018,000007930727917,TESCO STORES 2916,5411,Catering costs - provisions,55.37,0.00,55.37
Regeneration and Local Services,Direct Services,010301,C&G - North Grounds Maintenance,Third Party Payments 4THIRD,430100,Rendered by Private Contractors,08-Oct-2018,000007930727973,JOHN WARREN (ANIMAL BY,7399,Payments to sub-contractors,10.80,0.00,10.80
Regeneration and Local Services,Culture & Sport,054813,Gala Theatre - Technical,Supplies and Services,312011,Newspapers books and periodicals E312,08-Oct-2018,000007930727983,AMZN Mktp UK,5942,Books-school library,64.28,0.00,64.28
Regeneration and Local Services,Direct Services,010367,C&G - South Grounds Maintenance,Supplies and Services,304221,Equipment and Materials,08-Oct-2018,000007930727987,SCREWFIX PETERLEE,5211,Direct materials,3.89,0.65,3.24
Regeneration and Local Services,Direct Services,010367,C&G - South Grounds Maintenance,Supplies and Services,304221,Equipment and Materials,08-Oct-2018,000007930727991,SCREWFIX PETERLEE,5211,Direct materials,7.78,1.30,6.48
Regeneration and Local Services,Culture & Sport,011060,Hardwick Park Catering,Supplies and Services,324117,Provisions E324,08-Oct-2018,000007930728017,FREEMAN CATERING BUTCH,5422,Catering costs - provisions,74.12,0.00,74.12
Regeneration and Local Services,Culture & Sport,011060,Hardwick Park Catering,Supplies and Services,324117,Provisions E324,08-Oct-2018,000007930728019,FREEMAN CATERING BUTCH,5422,Catering costs - provisions,42.62,0.00,42.62
Regeneration and Local Services,Culture & Sport,011060,Hardwick Park Catering,Supplies and Services,324117,Provisions E324,08-Oct-2018,000007930728025,JR HOLLAND FOODSERVICE,5422,Catering costs - provisions,42.47,0.00,42.47
Regeneration and Local Services,Economic Development and Housing,030757,Interserve/Skills Support for the Unemployed,Employees,040149,Recruitment Instruction and Training,08-Oct-2018,000007930728071,NCS VUE CITB HS&E REV,8299,Training-all costs,483.00,0.00,483.00
Regeneration and Local Services,Direct Services,021234,Catering - Locomotion,Supplies and Services,324117,Provisions E324,08-Oct-2018,000007930728089,WWW.ADELIEFOODS.CO.UK,5499,Catering costs - provisions,171.28,0.00,171.28
Regeneration and Local Services,Direct Services,021234,Catering - Locomotion,Supplies and Services,324117,Provisions E324,08-Oct-2018,000007930728095,WWW.ADELIEFOODS.CO.UK,5499,Catering costs - provisions,64.80,0.00,64.80
Regeneration and Local Services,Direct Services,021234,Catering - Locomotion,Supplies and Services,324117,Provisions E324,08-Oct-2018,000007930728097,WWW.ADELIEFOODS.CO.UK,5499,Catering costs - provisions,20.33,0.00,20.33
Regeneration and Local Services,Direct Services,021234,Catering - Locomotion,Supplies and Services,324117,Provisions E324,08-Oct-2018,000007930728101,FREEMAN CATERING BUTCH,5422,Catering costs - provisions,100.44,0.00,100.44
Regeneration and Local Services,Direct Services,021234,Catering - Locomotion,Supplies and Services,324117,Provisions E324,08-Oct-2018,000007930728105,WWW.ADELIEFOODS.CO.UK,5499,Catering costs - provisions,-19.68,0.00,-19.68
Children and Young Peoples Services,"Head of Early Help, Inclusion and Vulnerable Children",085957,Secure Management,Supplies and Services,328041,Clothing uniforms and laundry E328,08-Oct-2018,000007930728113,WWW.ARGOS.CO.UK,5310,Clothing uniforms and laundry,55.94,0.00,55.94
Regeneration and Local Services,Direct Services,010525,Catering - Green Lane,Supplies and Services,324117,Provisions E324,08-Oct-2018,000007930728195,WWW.ADELIEFOODS.CO.UK,5499,Catering costs - provisions,32.68,0.00,32.68
Regeneration and Local Services,Direct Services,010525,Catering - Green Lane,Supplies and Services,324117,Provisions E324,08-Oct-2018,000007930728201,WWW.ADELIEFOODS.CO.UK,5499,Catering costs - provisions,30.19,0.00,30.19
Regeneration and Local Services,Direct Services,010525,Catering - Green Lane,Supplies and Services,324117,Provisions E324,08-Oct-2018,000007930728203,FREEMAN CATERING BUTCH,5422,Catering costs - provisions,58.99,0.00,58.99
Regeneration and Local Services,Direct Services,010525,Catering - Green Lane,Supplies and Services,324117,Provisions E324,08-Oct-2018,000007930728209,FREEMAN CATERING BUTCH,5422,Catering costs - provisions,52.13,0.00,52.13
Regeneration and Local Services,Direct Services,010525,Catering - Green Lane,Supplies and Services,324117,Provisions E324,08-Oct-2018,000007930728215,JR HOLLAND FOODSERVICE,5422,Catering costs - provisions,3.47,0.00,3.47
Regeneration and Local Services,Economic Development and Housing,030508,Erasmas plus Grant,Transport,235057,Public Transport,08-Oct-2018,000007930728241,BRITISH A,3005,Staff travelling,50.00,0.00,50.00
Regeneration and Local Services,Economic Development and Housing,030554,International Relations,Transport,235057,Public Transport,08-Oct-2018,000007930728251,PRINCE BISHOP SHOPPING,7523,Staff travelling,2.10,0.00,2.10
Regeneration and Local Services,Economic Development and Housing,030554,International Relations,Supplies and Services,348037,Subsistence E348,08-Oct-2018,000007930728257,ZIZZI DURHAM,5812,Subsistence,52.00,0.00,52.00
Children and Young Peoples Services,Head of Childrens Social Care,085341,High Etherley Satelite Home,Supplies and Services,324117,Provisions E324,08-Oct-2018,000007930728301,TESCO STORES 6329,5411,Catering costs - provisions,42.17,0.00,42.17
Children and Young Peoples Services,Head of Childrens Social Care,085352,Tow Law CU,Supplies and Services,324117,Provisions E324,08-Oct-2018,000007930728387,CO-OP GROUP 010989,5411,Catering costs - provisions,8.10,0.00,8.10
Regeneration and Local Services,Direct Services,030691,"Catering - Durham Dales Centre			",Supplies and Services,324117,Provisions E324,08-Oct-2018,000007930728401,FREEMAN CATERING BUTCH,5422,Catering costs - provisions,76.03,0.00,76.03
Regeneration and Local Services,Direct Services,030691,"Catering - Durham Dales Centre			",Supplies and Services,324117,Provisions E324,08-Oct-2018,000007930728409,FREEMAN CATERING BUTCH,5422,Catering costs - provisions,70.13,0.00,70.13
Adult and Health Services,Head of Adults,055643,Hawthorn House LD Respite Unit,Supplies and Services,324117,Provisions E324,08-Oct-2018,000007930728463,FREEMAN CATERING BUTCH,5422,Catering costs - provisions,61.57,0.00,61.57
Regeneration and Local Services,Direct Services,010301,C&G - North Grounds Maintenance,Supplies and Services,304403,Equipment and Materials,08-Oct-2018,000007930728491,BESCOL,5231,Other consumables,146.42,24.40,122.02
Children and Young Peoples Services,"Head of Early Help, Inclusion and Vulnerable Children",085952,Secure Education,Supplies and Services,324117,Provisions E324,08-Oct-2018,000007930728529,TESCO STORES 6329,5411,Catering costs - provisions,161.15,0.00,161.15
Regeneration and Local Services,Culture & Sport,026591,Hardwick Park,Supplies and Services,304245,Equipment and Materials,08-Oct-2018,000007930728583,Amazon.co.uk,5969,Materials,3.09,0.00,3.09
Regeneration and Local Services,Direct Services,021324,Catering - Meadowfield,Supplies and Services,324117,Provisions E324,08-Oct-2018,000007930728599,FREEMAN CATERING BUTCH,5422,Catering costs - provisions,58.73,0.00,58.73
Regeneration and Local Services,Direct Services,021324,Catering - Meadowfield,Supplies and Services,324117,Provisions E324,08-Oct-2018,000007930728603,FREEMAN CATERING BUTCH,5422,Catering costs - provisions,55.02,0.00,55.02
Children and Young Peoples Services,Head of Childrens Social Care,085333,Coxhoe Satelite Home,Supplies and Services,324117,Provisions E324,08-Oct-2018,000007930728609,LIDL UK DURHAM,5411,Catering costs - provisions,103.80,0.00,103.80
Regeneration and Local Services,Culture & Sport,054820,Gala Theatre - Overheads,Employees,040149,Recruitment Instruction and Training,08-Oct-2018,000007930728695,WWW.FILMBANK.CO.UK,7829,Training-all costs,99.60,16.60,83.00
Regeneration and Local Services,Culture & Sport,054233,Bishop Auckland Town Hall Library,Employees,040149,Recruitment Instruction and Training,08-Oct-2018,000007930728729,WWW.FILMBANK.CO.UK,7829,Training-all costs,99.60,0.00,99.60
Children and Young Peoples Services,Head of Education and Skills,078556,Adult Learner Responsive,Supplies and Services,312011,Newspapers books and periodicals E312,08-Oct-2018,000007930728795,Amazon.co.uk,5969,Books-school library,10.19,0.00,10.19
Regeneration and Local Services,Culture & Sport,011230,Operations Locality 2,Supplies and Services,312011,Newspapers books and periodicals E312,08-Oct-2018,000007930728843,CHARLES DICKENS (SPENN,5251,Books-school library,57.53,0.00,57.53
Regeneration and Local Services,Economic Development and Housing,031500,Housing Solutions - Core Team,Employees,040149,Recruitment Instruction and Training,08-Oct-2018,000007934850795,PREMIER INN,3811,Training-all costs,221.00,36.83,184.17
Regeneration and Local Services,Culture & Sport,054104,Sacriston Library,Supplies and Services,384956,Miscellaneous Expenses,08-Oct-2018,000007940009803,TVLICENSING.CO.UK,7392,Licences,150.50,0.00,150.50
Regeneration and Local Services,Culture & Sport,054106,Pelton Library,Supplies and Services,384956,Miscellaneous Expenses,08-Oct-2018,000007940009805,TVLICENSING.CO.UK,7392,Licences,150.50,0.00,150.50
Regeneration and Local Services,Culture & Sport,054812,Gala Theatre - Catering etc,Supplies and Services,324117,Provisions E324,08-Oct-2018,000007940009833,BATLEYS PERTH,5300,Catering costs - provisions,130.56,21.76,108.80
Regeneration and Local Services,Culture & Sport,054812,Gala Theatre - Catering etc,Supplies and Services,324117,Provisions E324,08-Oct-2018,000007940009833 - 1,BATLEYS PERTH,5300,Catering costs - provisions,125.83,,125.83
Regeneration and Local Services,Direct Services,021235,Catering - Wharton Park,Supplies and Services,324117,Provisions E324,08-Oct-2018,000007940010701,BATLEYS PERTH,5300,Catering costs - provisions,4.69,0.00,4.69
Regeneration and Local Services,Direct Services,021235,Catering - Wharton Park,Supplies and Services,324117,Provisions E324,08-Oct-2018,000007940010703,BATLEYS PERTH,5300,Catering costs - provisions,86.70,14.45,72.25
Regeneration and Local Services,Direct Services,021235,Catering - Wharton Park,Supplies and Services,324117,Provisions E324,08-Oct-2018,000007940010703 - 1,BATLEYS PERTH,5300,Catering costs - provisions,17.99,,17.99
Regeneration and Local Services,Direct Services,021242,Catering - County Hall,Supplies and Services,324117,Provisions E324,09-Oct-2018,000007934849793,ICELAND,5411,Catering costs - provisions,3.10,0.00,3.10
Children and Young Peoples Services,Head of Education and Skills,071801,Selby Cottage Childcare Centre,Supplies and Services,312011,Newspapers books and periodicals E312,09-Oct-2018,000007934849815,AMZN MKTP UK AMAZON.CO,5942,Books-school library,28.95,0.00,28.95
Children and Young Peoples Services,Head of Education and Skills,054640,Durham Learning Resources,Supplies and Services,304245,Equipment and Materials,09-Oct-2018,000007934849831,AMZN Mktp UK,5942,Materials,92.44,15.41,77.03
Children and Young Peoples Services,Head of Childrens Social Care,085100,Strategic Manager Families First Area South,Supplies and Services,304403,Equipment and Materials,09-Oct-2018,000007934849839,HARTLEPOOL BC CNP,9399,Other consumables,14.00,0.00,14.00
Children and Young Peoples Services,Head of Childrens Social Care,085100,Strategic Manager Families First Area South,Supplies and Services,304403,Equipment and Materials,09-Oct-2018,000007934849843,SUNDERLAND CC,9399,Other consumables,44.00,0.00,44.00
Regeneration and Local Services,Technical Services,018700,Highways Services - Management and Administration,Supplies and Services,344033,Telephones,09-Oct-2018,000007934849847,AMZN Mktp UK,5942,Telephones general-all costs,39.96,6.66,33.30
Children and Young Peoples Services,Head of Childrens Social Care,085100,Strategic Manager Families First Area South,Supplies and Services,304403,Equipment and Materials,09-Oct-2018,000007934849851,BCC REGISTER OFFIC,9399,Other consumables,38.50,0.00,38.50
Regeneration and Local Services,Direct Services,022902,Waste Strategy,Supplies and Services,352001,Conference Expenses,09-Oct-2018,000007934849861,ENVIRONMENT MEDIA GRP,7311,Conferencesseminars fees etc,192.00,0.00,192.00
Adult and Health Services,Head of Adults,055302,Durham Pathways,Supplies and Services,340001,Postages E340,09-Oct-2018,000007934849867,POST OFFICE COUNTER,9402,Postages,2.52,0.00,2.52
Children and Young Peoples Services,Head of Childrens Social Care,085342,9 Cedar Drive Aycliffe,Supplies and Services,324117,Provisions E324,09-Oct-2018,000007934849873,SAINSBURYS (2303),5411,Catering costs - provisions,8.00,0.00,8.00
Children and Young Peoples Services,"Head of Early Help, Inclusion and Vulnerable Children",085965,Barnard,Supplies and Services,328041,Clothing uniforms and laundry E328,09-Oct-2018,000007934849887,FOOTASYLUM PLC,5941,Clothing uniforms and laundry,59.98,0.00,59.98
Children and Young Peoples Services,"Head of Early Help, Inclusion and Vulnerable Children",085954,Walworth,Supplies and Services,342033,Computers and Communications,09-Oct-2018,000007934849891,VERY,5964,Computer hardware,73.99,0.00,73.99
Children and Young Peoples Services,"Head of Early Help, Inclusion and Vulnerable Children",085956,Lumley,Supplies and Services,328041,Clothing uniforms and laundry E328,09-Oct-2018,000007934849893,VERY,5964,Clothing uniforms and laundry,28.99,0.00,28.99
Children and Young Peoples Services,Head of Childrens Social Care,085332,Middlestone Moor CU,Supplies and Services,324117,Provisions E324,09-Oct-2018,000007934849895,ASDA SUPERSTORE 4987,5411,Catering costs - provisions,47.34,0.00,47.34
Regeneration and Local Services,Direct Services,021242,Catering - County Hall,Supplies and Services,324117,Provisions E324,09-Oct-2018,000007934850009,JR HOLLAND FOODSERVICE,5422,Catering costs - provisions,124.00,0.00,124.00
Regeneration and Local Services,Direct Services,021242,Catering - County Hall,Supplies and Services,324117,Provisions E324,09-Oct-2018,000007934850013,JR HOLLAND FOODSERVICE,5422,Catering costs - provisions,95.84,0.00,95.84
Regeneration and Local Services,Direct Services,010367,C&G - South Grounds Maintenance,Supplies and Services,304221,Equipment and Materials,09-Oct-2018,000007934850019,RICHMOND TURF GROW,5261,Direct materials,4.80,0.00,4.80
Regeneration and Local Services,Culture & Sport,054812,Gala Theatre - Catering etc,Supplies and Services,324117,Provisions E324,09-Oct-2018,000007934850029,JR HOLLAND FOODSERVICE,5422,Catering costs - provisions,30.72,0.00,30.72
Regeneration and Local Services,Economic Development and Housing,031576,B& B - Temp Accom,Supplies and Services,364320,Grants to Voluntary Organisations,09-Oct-2018,000007934850043,GO NORTH EAST LIMITED,4131,Accommodation assistance,53.00,0.00,53.00
Children and Young Peoples Services,Head of Childrens Social Care,085362,LAC & Permanence Team 2,Supplies and Services,384999,Miscellaneous Expenses,09-Oct-2018,000007934850111,WWW.DURHAM.GOV.UK,9399,Other expenses,12.00,0.00,12.00
Children and Young Peoples Services,Head of Childrens Social Care,085341,High Etherley Satelite Home,Supplies and Services,384871,Miscellaneous Expenses,09-Oct-2018,000007934850285,ARGOS BISHOP AUCKL,5310,Training-other activities,19.99,0.00,19.99
Regeneration and Local Services,Spatial Policy Planning Assets & Environment,031222,North Pennines Allen Valleys Landscape Partnership,Supplies and Services,336005,Advertising E336,09-Oct-2018,000007934850373,FACEBK FH6Z9HEQE2,7311,Advertising other than for staff,17.00,0.00,17.00
Regeneration and Local Services,Culture & Sport,011060,Hardwick Park Catering,Supplies and Services,324117,Provisions E324,09-Oct-2018,000007934850375,JR HOLLAND FOODSERVICE,5422,Catering costs - provisions,44.75,0.00,44.75
Regeneration and Local Services,Economic Development and Housing,030757,Interserve/Skills Support for the Unemployed,Employees,040149,Recruitment Instruction and Training,09-Oct-2018,000007934850379,WWW.CSKILLS.ORG,8249,Training-all costs,36.00,6.00,30.00
Regeneration and Local Services,Direct Services,021234,Catering - Locomotion,Supplies and Services,324117,Provisions E324,09-Oct-2018,000007934850381,JR HOLLAND FOODSERVICE,5422,Catering costs - provisions,116.31,0.00,116.31
Regeneration and Local Services,Direct Services,021234,Catering - Locomotion,Supplies and Services,324117,Provisions E324,09-Oct-2018,000007934850385,JR HOLLAND FOODSERVICE,5422,Catering costs - provisions,65.02,0.00,65.02
Children and Young Peoples Services,"Head of Early Help, Inclusion and Vulnerable Children",085957,Secure Management,Supplies and Services,324117,Provisions E324,09-Oct-2018,000007934850387,TESCO STORES 6329,5411,Catering costs - provisions,89.33,0.00,89.33
Regeneration and Local Services,Economic Development and Housing,030508,Erasmas plus Grant,Supplies and Services,348037,Subsistence E348,09-Oct-2018,000007934850609,Tapas Factory,5812,Subsistence,430.80,0.00,430.80
Regeneration and Local Services,Economic Development and Housing,030554,International Relations,Transport,235057,Public Transport,09-Oct-2018,000007934850615,PRINCE BISHOP SHOPPING,7523,Staff travelling,3.30,0.00,3.30
Children and Young Peoples Services,Head of Childrens Social Care,085334,West Rainton Satelite Home,Supplies and Services,304221,Equipment and Materials,09-Oct-2018,000007934850649,B & Q 1343,5211,Direct materials,193.21,32.20,161.01
Regeneration and Local Services,Direct Services,030691,"Catering - Durham Dales Centre			",Supplies and Services,324117,Provisions E324,09-Oct-2018,000007934850709,JR HOLLAND FOODSERVICE,5422,Catering costs - provisions,167.08,0.00,167.08
Regeneration and Local Services,Direct Services,030691,"Catering - Durham Dales Centre			",Supplies and Services,324117,Provisions E324,09-Oct-2018,000007934850715,JR HOLLAND FOODSERVICE,5422,Catering costs - provisions,22.24,0.00,22.24
Regeneration and Local Services,Direct Services,030691,"Catering - Durham Dales Centre			",Supplies and Services,324117,Provisions E324,09-Oct-2018,000007934850717,JR HOLLAND FOODSERVICE,5422,Catering costs - provisions,9.42,0.00,9.42
Adult and Health Services,Head of Adults,055643,Hawthorn House LD Respite Unit,Supplies and Services,324117,Provisions E324,09-Oct-2018,000007934850733,JR HOLLAND FOODSERVICE,5422,Catering costs - provisions,25.33,0.00,25.33
Adult and Health Services,Head of Adults,055643,Hawthorn House LD Respite Unit,Supplies and Services,324117,Provisions E324,09-Oct-2018,000007934850737,JR HOLLAND FOODSERVICE,5422,Catering costs - provisions,22.12,0.00,22.12
Regeneration and Local Services,Culture & Sport,054399,Local Delivery-Libraries,Supplies and Services,312009,Newspapers books and periodicals E312,09-Oct-2018,000007934850741,Amazon.co.uk MT3MK44X4,5969,Newspapers books and periodicals,8.98,0.00,8.98
Children and Young Peoples Services,"Head of Early Help, Inclusion and Vulnerable Children",074000,TTF-Attachment and Results,Transfer Payments,525033,Other,09-Oct-2018,000007934850787,ASDA GEORGE COM LEEDS,5411,Grants to individuals,146.95,24.49,122.46
Regeneration and Local Services,Direct Services,021324,Catering - Meadowfield,Supplies and Services,324117,Provisions E324,09-Oct-2018,000007934850843,JR HOLLAND FOODSERVICE,5422,Catering costs - provisions,21.06,0.00,21.06
Adult and Health Services,Head of Adults,055301,Stanley Pathways,Supplies and Services,324117,Provisions E324,09-Oct-2018,000007934850851,ASDA SUPERSTORE,5411,Catering costs - provisions,7.60,0.00,7.60
Children and Young Peoples Services,Head of Childrens Social Care,085380,Operations Manager Adoption & Fostering,Supplies and Services,324117,Provisions E324,09-Oct-2018,000007934850929,ASDA STORES,5411,Catering costs - provisions,4.63,0.00,4.63
Regeneration and Local Services,Culture & Sport,054233,Bishop Auckland Town Hall Library,Supplies and Services,324117,Provisions E324,09-Oct-2018,000007934850931,ASDA STORES,5411,Catering costs - provisions,38.59,0.00,38.59
Adult and Health Services,Head of Adults,055302,Durham Pathways,Supplies and Services,324117,Provisions E324,09-Oct-2018,000007934850997,SAINSBURYS SACAT 0776,5411,Catering costs - provisions,25.45,0.00,25.45
Resources,Digital and Customer Services,069010,Administration,Supplies and Services,304259,Equipment and Materials,09-Oct-2018,000007934851009,DISCLOSURE SCOT,9399,Equipment-purchase and rental,25.00,0.00,25.00
Resources,Digital and Customer Services,069010,Administration,Supplies and Services,304259,Equipment and Materials,09-Oct-2018,000007934851013,WWW.ICO.GOV.UK,9399,Equipment-purchase and rental,40.00,0.00,40.00
Regeneration and Local Services,Direct Services,021235,Catering - Wharton Park,Supplies and Services,324117,Provisions E324,09-Oct-2018,000007934851027,JR HOLLAND FOODSERVICE,5422,Catering costs - provisions,42.31,0.00,42.31
Regeneration and Local Services,Direct Services,021235,Catering - Wharton Park,Supplies and Services,324117,Provisions E324,09-Oct-2018,000007934851033,JR HOLLAND FOODSERVICE,5422,Catering costs - provisions,13.32,0.00,13.32
Adult and Health Services,Head of Adults,055309,Peterlee Pathways,Supplies and Services,324117,Provisions E324,09-Oct-2018,000007934851037,LIDL UK PETERLEE,5411,Catering costs - provisions,2.96,0.00,2.96
Children and Young Peoples Services,Head of Childrens Social Care,085363,LAC & Permanence Team 3,Supplies and Services,304259,Equipment and Materials,09-Oct-2018,000007934851039,WWW.DURHAM.GOV.UK,9399,Equipment-purchase and rental,24.00,0.00,24.00
Children and Young Peoples Services,Head of Childrens Social Care,085363,LAC & Permanence Team 3,Supplies and Services,304259,Equipment and Materials,09-Oct-2018,000007934851041,WWW.DURHAM.GOV.UK,9399,Equipment-purchase and rental,24.00,0.00,24.00
Resources,Finance & Transactional Services,065180,Collections,Supplies and Services,338064,Services,09-Oct-2018,000007934851121,DISCLOSURE SCOT,9399,Disclosure & Barring (DBS) Fees,25.00,0.00,25.00
Resources,Finance & Transactional Services,065180,Collections,Supplies and Services,338064,Services,09-Oct-2018,000007934851123,DISCLOSURE SCOT,9399,Disclosure & Barring (DBS) Fees,25.00,0.00,25.00
Resources,Finance & Transactional Services,065180,Collections,Supplies and Services,338064,Services,09-Oct-2018,000007934851125,DISCLOSURE SCOT,9399,Disclosure & Barring (DBS) Fees,25.00,0.00,25.00
Children and Young Peoples Services,"Head of Early Help, Inclusion and Vulnerable Children",085956,Lumley,Supplies and Services,328041,Clothing uniforms and laundry E328,09-Oct-2018,000007940009701,WWW.TOPSHOP.COM,5691,Clothing uniforms and laundry,29.95,0.00,29.95
Regeneration and Local Services,Direct Services,021242,Catering - County Hall,Supplies and Services,324117,Provisions E324,09-Oct-2018,000007940009821,BATLEYS PERTH,5300,Catering costs - provisions,205.92,34.32,171.60
Regeneration and Local Services,Direct Services,021242,Catering - County Hall,Supplies and Services,324117,Provisions E324,09-Oct-2018,000007940009821 - 1,BATLEYS PERTH,5300,Catering costs - provisions,94.70,,94.70
Children and Young Peoples Services,Head of Childrens Social Care,085341,High Etherley Satelite Home,Supplies and Services,328041,Clothing uniforms and laundry E328,09-Oct-2018,000007940009979,PAYPAL XUMINGXIU,5732,Clothing uniforms and laundry,16.88,0.00,16.88
Regeneration and Local Services,Culture & Sport,054235,Bishop Auckland Town Hall Cafe,Supplies and Services,324117,Provisions E324,09-Oct-2018,000007940010443,BATLEYS PERTH,5300,Catering costs - provisions,77.81,0.00,77.81
Regeneration and Local Services,Direct Services,021324,Catering - Meadowfield,Supplies and Services,324117,Provisions E324,09-Oct-2018,000007940010485,BATLEYS PERTH,5300,Catering costs - provisions,98.82,16.47,82.35
Regeneration and Local Services,Direct Services,021324,Catering - Meadowfield,Supplies and Services,324117,Provisions E324,09-Oct-2018,000007940010485 - 1,BATLEYS PERTH,5300,Catering costs - provisions,118.72,,118.72
Children and Young Peoples Services,"Head of Early Help, Inclusion and Vulnerable Children",071443,Stanley One Point Hub,Supplies and Services,304259,Equipment and Materials,10-Oct-2018,000006164237446,GRO HM PASSPORT OFFICE,9399,Equipment-purchase and rental,-9.25,0.00,-9.25
Children and Young Peoples Services,Head of Education and Skills,071801,Selby Cottage Childcare Centre,Supplies and Services,324117,Provisions E324,10-Oct-2018,000007940009637,ASDA GROCERIES ONLINE,5411,Catering costs - provisions,124.60,0.00,124.60
Children and Young Peoples Services,Head of Education and Skills,071801,Selby Cottage Childcare Centre,Supplies and Services,324117,Provisions E324,10-Oct-2018,000007940009641,ASDA GROCERIES ONLINE,5411,Catering costs - provisions,-0.50,0.00,-0.50
Children and Young Peoples Services,Head of Education and Skills,054640,Durham Learning Resources,Supplies and Services,304245,Equipment and Materials,10-Oct-2018,000007940009647,AMZN MKTP UK AMAZON.CO,5942,Materials,67.50,11.25,56.25
Children and Young Peoples Services,Head of Education and Skills,054640,Durham Learning Resources,Supplies and Services,304245,Equipment and Materials,10-Oct-2018,000007940009651,AMZN MKTP UK AMAZON.CO,5942,Materials,89.25,14.88,74.37
Regeneration and Local Services,Economic Development and Housing,031576,B& B - Temp Accom,Supplies and Services,364320,Grants to Voluntary Organisations,10-Oct-2018,000007940009659,HOTEL 52,7011,Accommodation assistance,296.00,49.33,246.67
Regeneration and Local Services,Economic Development and Housing,031576,B& B - Temp Accom,Supplies and Services,364320,Grants to Voluntary Organisations,10-Oct-2018,000007940009661,HOTEL 52,7011,Accommodation assistance,456.00,76.00,380.00
Children and Young Peoples Services,Head of Childrens Social Care,085342,9 Cedar Drive Aycliffe,Supplies and Services,324117,Provisions E324,10-Oct-2018,000007940009693,TESCO STORES 2916,5411,Catering costs - provisions,70.38,0.00,70.38
Children and Young Peoples Services,"Head of Early Help, Inclusion and Vulnerable Children",085955,Auckland,Supplies and Services,324117,Provisions E324,10-Oct-2018,000007940009699,TESCO STORES 6329,5411,Catering costs - provisions,69.34,0.00,69.34
Children and Young Peoples Services,Head of Childrens Social Care,085332,Middlestone Moor CU,Supplies and Services,324117,Provisions E324,10-Oct-2018,000007940009707,ASDA SUPERSTORE 4987,5411,Catering costs - provisions,14.00,0.00,14.00
Regeneration and Local Services,Direct Services,021242,Catering - County Hall,Supplies and Services,324117,Provisions E324,10-Oct-2018,000007940009811,JR HOLLAND FOODSERVICE,5422,Catering costs - provisions,179.04,0.00,179.04
Regeneration and Local Services,Direct Services,021242,Catering - County Hall,Supplies and Services,324117,Provisions E324,10-Oct-2018,000007940009819,JR HOLLAND FOODSERVICE,5422,Catering costs - provisions,31.51,0.00,31.51
Children and Young Peoples Services,Head of Education and Skills,071732,Dean Bank Childcare,Supplies and Services,328041,Clothing uniforms and laundry E328,10-Oct-2018,000007940009929,B & M RETAIL,5310,Clothing uniforms and laundry,45.05,0.00,45.05
Regeneration and Local Services,Spatial Policy Planning Assets & Environment,031204,North Pennines Nectarworks,Supplies and Services,312011,Newspapers books and periodicals E312,10-Oct-2018,000007940009943,Amazon.co.uk,5969,Books-school library,47.45,0.00,47.45
Children and Young Peoples Services,Head of Childrens Social Care,085341,High Etherley Satelite Home,Supplies and Services,328041,Clothing uniforms and laundry E328,10-Oct-2018,000007940009975,AMZN Mktp UK,5942,Clothing uniforms and laundry,20.97,0.00,20.97
Children and Young Peoples Services,Head of Childrens Social Care,085341,High Etherley Satelite Home,Supplies and Services,328041,Clothing uniforms and laundry E328,10-Oct-2018,000007940009983,AMZN Mktp UK,5942,Clothing uniforms and laundry,19.95,0.00,19.95
Children and Young Peoples Services,Head of Childrens Social Care,085341,High Etherley Satelite Home,Supplies and Services,348037,Subsistence E348,10-Oct-2018,000007940009987,MPK RESTAURANTS LIMITE,5814,Subsistence,10.30,0.00,10.30
Regeneration and Local Services,Economic Development and Housing,031500,Housing Solutions - Core Team,Supplies and Services,352001,Conference Expenses,10-Oct-2018,000007940010001,TRAVELODGE,3615,Conferencesseminars fees etc,203.00,33.83,169.17
Regeneration and Local Services,Culture & Sport,054813,Gala Theatre - Technical,Supplies and Services,304259,Equipment and Materials,10-Oct-2018,000007940010011,Prime Video,5735,Equipment-purchase and rental,5.99,0.00,5.99
Regeneration and Local Services,Culture & Sport,011060,Hardwick Park Catering,Supplies and Services,324117,Provisions E324,10-Oct-2018,000007940010017,JR HOLLAND FOODSERVICE,5422,Catering costs - provisions,55.59,0.00,55.59
Regeneration and Local Services,Direct Services,010341,Nei.Prot - N. Wardens,Supplies and Services,312009,Newspapers books and periodicals E312,10-Oct-2018,000007940010037,Amazon.co.uk,5969,Newspapers books and periodicals,40.25,0.00,40.25
Regeneration and Local Services,Direct Services,010525,Catering - Green Lane,Supplies and Services,324117,Provisions E324,10-Oct-2018,000007940010057,JR HOLLAND FOODSERVICE,5422,Catering costs - provisions,70.29,0.00,70.29
Transformation and Partnerships,Partnerships & Community Engagement Div.,060472,Syrian Vulnerable Persons Scheme,Supplies and Services,328041,Clothing uniforms and laundry E328,10-Oct-2018,000007940010061,WWW.EMBLEMATIC.CO.UK,5611,Clothing uniforms and laundry,47.00,0.00,47.00
Transformation and Partnerships,Partnerships & Community Engagement Div.,060472,Syrian Vulnerable Persons Scheme,Supplies and Services,328041,Clothing uniforms and laundry E328,10-Oct-2018,000007940010065,THE SCHOOL OUTFIT,5631,Clothing uniforms and laundry,43.90,0.00,43.90
Transformation and Partnerships,Partnerships & Community Engagement Div.,060472,Syrian Vulnerable Persons Scheme,Supplies and Services,328041,Clothing uniforms and laundry E328,10-Oct-2018,000007940010069,THE SCHOOL OUTFIT,5631,Clothing uniforms and laundry,45.90,0.00,45.90
Regeneration and Local Services,Economic Development and Housing,030553,Europe Direct Scheme,Transport,235057,Public Transport,10-Oct-2018,000007940010103,NMBS LEUVEN,4112,Staff travelling,7.88,0.00,7.88
Children and Young Peoples Services,"Head of Early Help, Inclusion and Vulnerable Children",071443,Stanley One Point Hub,Supplies and Services,304259,Equipment and Materials,10-Oct-2018,000007940010115,GRO HM PASSPORT OFFICE,9399,Equipment-purchase and rental,27.75,0.00,27.75
Children and Young Peoples Services,Head of Childrens Social Care,085341,High Etherley Satelite Home,Supplies and Services,324117,Provisions E324,10-Oct-2018,000007940010125,TESCO STORES 6329,5411,Catering costs - provisions,83.40,0.00,83.40
Children and Young Peoples Services,Head of Childrens Social Care,085334,West Rainton Satelite Home,Supplies and Services,384237,Miscellaneous Expenses,10-Oct-2018,000007940010161,WWW.ADVENTUREVALLEY.CO,7999,Recreational exps outings parties,101.75,0.00,101.75
Children and Young Peoples Services,Head of Childrens Social Care,085334,West Rainton Satelite Home,Supplies and Services,328041,Clothing uniforms and laundry E328,10-Oct-2018,000007940010165,ARGOS LTD,5310,Clothing uniforms and laundry,249.96,0.00,249.96
Children and Young Peoples Services,Head of Childrens Social Care,085352,Tow Law CU,Supplies and Services,324117,Provisions E324,10-Oct-2018,000007940010171,TESCO STORES 2371,5411,Catering costs - provisions,191.42,0.00,191.42
Children and Young Peoples Services,Head of Childrens Social Care,085352,Tow Law CU,Supplies and Services,304221,Equipment and Materials,10-Oct-2018,000007940010173,SCREWFIX DIRECT,5211,Direct materials,99.99,16.67,83.32
Adult and Health Services,Head of Adults,055643,Hawthorn House LD Respite Unit,Supplies and Services,324117,Provisions E324,10-Oct-2018,000007940010273,JR HOLLAND FOODSERVICE,5422,Catering costs - provisions,17.38,0.00,17.38
Adult and Health Services,Head of Adults,055643,Hawthorn House LD Respite Unit,Supplies and Services,324117,Provisions E324,10-Oct-2018,000007940010277,JR HOLLAND FOODSERVICE,5422,Catering costs - provisions,11.22,0.00,11.22
Regeneration and Local Services,Culture & Sport,054604,Seven Hills Spennymoor,Supplies and Services,304259,Equipment and Materials,10-Oct-2018,000007940010285,POWER TOOLS DIRECT,5072,Equipment-purchase and rental,34.01,5.67,28.34
Children and Young Peoples Services,Head of Childrens Social Care,085633,Families First Chester-Le-Street,Supplies and Services,338045,Services,10-Oct-2018,000007940010305,SUNDERLAND CC,9399,Legal expenses 338045,10.00,0.00,10.00
Children and Young Peoples Services,"Head of Early Help, Inclusion and Vulnerable Children",074000,TTF-Attachment and Results,Transfer Payments,525033,Other,10-Oct-2018,000007940010307,ASDA GEORGE COM LEEDS,5411,Grants to individuals,16.95,2.83,14.12
Children and Young Peoples Services,"Head of Early Help, Inclusion and Vulnerable Children",074000,TTF-Attachment and Results,Transfer Payments,525033,Other,10-Oct-2018,000007940010309,AMZN MKTP UK AMAZON.CO,5942,Grants to individuals,23.99,4.00,19.99
Children and Young Peoples Services,"Head of Early Help, Inclusion and Vulnerable Children",074000,TTF-Attachment and Results,Transfer Payments,525033,Other,10-Oct-2018,000007940010311,AMZN MKTP UK AMAZON.CO,5942,Grants to individuals,23.99,4.00,19.99
Children and Young Peoples Services,"Head of Early Help, Inclusion and Vulnerable Children",074000,TTF-Attachment and Results,Transfer Payments,525033,Other,10-Oct-2018,000007940010313,AMZN MKTP UK AMAZON.CO,5942,Grants to individuals,23.99,4.00,19.99
Children and Young Peoples Services,"Head of Early Help, Inclusion and Vulnerable Children",074000,TTF-Attachment and Results,Transfer Payments,525033,Other,10-Oct-2018,000007940010315,AMZN MKTP UK AMAZON.CO,5942,Grants to individuals,23.99,4.00,19.99
Children and Young Peoples Services,"Head of Early Help, Inclusion and Vulnerable Children",074000,TTF-Attachment and Results,Transfer Payments,525033,Other,10-Oct-2018,000007940010317,AMZN MKTP UK AMAZON.CO,5942,Grants to individuals,14.98,0.00,14.98
Children and Young Peoples Services,"Head of Early Help, Inclusion and Vulnerable Children",074000,TTF-Attachment and Results,Transfer Payments,525033,Other,10-Oct-2018,000007940010319,AMZN MKTP UK AMAZON.CO,5942,Grants to individuals,14.98,0.00,14.98
Children and Young Peoples Services,"Head of Early Help, Inclusion and Vulnerable Children",074000,TTF-Attachment and Results,Transfer Payments,525033,Other,10-Oct-2018,000007940010321,AMZN MKTP UK AMAZON.CO,5942,Grants to individuals,2.70,0.45,2.25
Children and Young Peoples Services,"Head of Early Help, Inclusion and Vulnerable Children",074000,TTF-Attachment and Results,Transfer Payments,525033,Other,10-Oct-2018,000007940010323,ASDA GEORGE COM LEEDS,5411,Grants to individuals,-14.00,0.00,-14.00
Regeneration and Local Services,Transport and Contracted Services,032253,Public Right of Way,Supplies and Services,384199,Miscellaneous Expenses,10-Oct-2018,000007940010351,ENVIROMENT AGENCY,9399,Other hired and contracted services,446.00,0.00,446.00
Resources,Digital and Customer Services,069010,Administration,Supplies and Services,340001,Postages E340,10-Oct-2018,000007940010353,WWW.NEOPOST.CO.UK,5111,Postages,500.00,0.00,500.00
Dedicated Schools Grant,DSG High Needs Block,079040,SENSS-HQ,Supplies and Services,312011,Newspapers books and periodicals E312,10-Oct-2018,000007940010357,AMZN MKTP UK AMAZON.CO,5942,Books-school library,8.19,0.00,8.19
Regeneration and Local Services,Culture & Sport,054235,Bishop Auckland Town Hall Cafe,Supplies and Services,324117,Provisions E324,10-Oct-2018,000007940010439,JR HOLLAND FOODSERVICE,5422,Catering costs - provisions,55.27,0.00,55.27
Regeneration and Local Services,Transport and Contracted Services,031704,Care Connect - CCTV Countywide,Supplies and Services,384956,Miscellaneous Expenses,10-Oct-2018,000007940010461,SECURITY INDUSTRY,7393,Licences,220.00,0.00,220.00
Regeneration and Local Services,Direct Services,021324,Catering - Meadowfield,Supplies and Services,324117,Provisions E324,10-Oct-2018,000007940010469,JR HOLLAND FOODSERVICE,5422,Catering costs - provisions,33.89,0.00,33.89
Regeneration and Local Services,Direct Services,021324,Catering - Meadowfield,Supplies and Services,324117,Provisions E324,10-Oct-2018,000007940010483,JR HOLLAND FOODSERVICE,5422,Catering costs - provisions,14.19,0.00,14.19
Children and Young Peoples Services,Head of Childrens Social Care,085333,Coxhoe Satelite Home,Supplies and Services,312011,Newspapers books and periodicals E312,10-Oct-2018,000007940010491,AMZN Mktp UK,5942,Books-school library,4.53,0.76,3.77
Regeneration and Local Services,Culture & Sport,054820,Gala Theatre - Overheads,Employees,040149,Recruitment Instruction and Training,10-Oct-2018,000007940010563,WWW.FILMBANK.CO.UK,7829,Training-all costs,116.40,19.40,97.00
Resources,Digital and Customer Services,069010,Administration,Supplies and Services,336005,Advertising E336,10-Oct-2018,000007940010671,FACEBK XXLH2G64B2,7311,Advertising other than for staff,500.00,0.00,500.00
Resources,Digital and Customer Services,069010,Administration,Supplies and Services,304259,Equipment and Materials,10-Oct-2018,000007940010673,DARLINGTON BC INTERNET,9399,Equipment-purchase and rental,12.00,0.00,12.00
Resources,Digital and Customer Services,069010,Administration,Supplies and Services,304259,Equipment and Materials,10-Oct-2018,000007940010675,DARLINGTON BC INTERNET,9399,Equipment-purchase and rental,12.00,0.00,12.00
Resources,Digital and Customer Services,069010,Administration,Supplies and Services,304259,Equipment and Materials,10-Oct-2018,000007940010679,DARLINGTON BC INTERNET,9399,Equipment-purchase and rental,12.00,0.00,12.00
Resources,Digital and Customer Services,069010,Administration,Supplies and Services,304259,Equipment and Materials,10-Oct-2018,000007940010681,SUNDERLAND CC,9399,Equipment-purchase and rental,22.00,0.00,22.00
Regeneration and Local Services,Direct Services,021235,Catering - Wharton Park,Supplies and Services,324117,Provisions E324,10-Oct-2018,000007940010699,JR HOLLAND FOODSERVICE,5422,Catering costs - provisions,20.95,0.00,20.95
Dedicated Schools Grant,DSG High Needs Block,079050,SENSS-Sensory,Supplies and Services,304259,Equipment and Materials,10-Oct-2018,000007945520919,EBUYER (UK) LTD,5722,Equipment-purchase and rental,179.99,0.00,179.99
Regeneration and Local Services,Culture & Sport,054105,Langley Park Library,Supplies and Services,384956,Miscellaneous Expenses,10-Oct-2018,000007945521009,TVLICENSING.CO.UK,7392,Licences,150.50,0.00,150.50
Regeneration and Local Services,Culture & Sport,054201,South Moor Library,Supplies and Services,384956,Miscellaneous Expenses,10-Oct-2018,000007945521013,TVLICENSING.CO.UK,7392,Licences,150.50,0.00,150.50
Regeneration and Local Services,Culture & Sport,054131,Newton Hall Library,Supplies and Services,384956,Miscellaneous Expenses,10-Oct-2018,000007945521017,TVLICENSING.CO.UK,7392,Licences,150.50,0.00,150.50
Regeneration and Local Services,Culture & Sport,054261,Consett Library,Supplies and Services,384956,Miscellaneous Expenses,10-Oct-2018,000007945521019,TVLICENSING.CO.UK,7392,Licences,150.50,0.00,150.50
Regeneration and Local Services,Culture & Sport,054204,Willington Library,Supplies and Services,384956,Miscellaneous Expenses,10-Oct-2018,000007945521021,TVLICENSING.CO.UK,7392,Licences,150.50,0.00,150.50
Regeneration and Local Services,Direct Services,021234,Catering - Locomotion,Supplies and Services,324117,Provisions E324,10-Oct-2018,000007945521285,BATLEYS PERTH,5300,Catering costs - provisions,-3.19,0.00,-3.19
Regeneration and Local Services,Economic Development and Housing,031500,Housing Solutions - Core Team,Supplies and Services,364320,Grants to Voluntary Organisations,10-Oct-2018,000007945521407,PREMIER INN,3811,Accommodation assistance,101.00,0.00,101.00
Resources,Digital and Customer Services,065335,School Services - Implementations,Supplies and Services,304259,Equipment and Materials,11-Oct-2018,000006125528158,WWW.TOOLSTATION.COM,5251,Equipment-purchase and rental,94.39,0.00,94.39
Resources,Digital and Customer Services,065335,School Services - Implementations,Supplies and Services,304259,Equipment and Materials,11-Oct-2018,000006125528170,WWW.TOOLSTATION.COM,5251,Equipment-purchase and rental,-11.95,-1.99,-9.96
Regeneration and Local Services,Economic Development and Housing,030553,Europe Direct Scheme,Transport,235057,Public Transport,11-Oct-2018,000007940010105,NMBS LEUVEN,4112,Staff travelling,0.22,0.00,0.22
Regeneration and Local Services,Economic Development and Housing,030554,International Relations,Transport,235057,Public Transport,11-Oct-2018,000007945520783,GERMAN TRAVEL CENT,4722,Staff travelling,570.62,0.00,570.62
Regeneration and Local Services,Economic Development and Housing,030554,International Relations,Transport,235057,Public Transport,11-Oct-2018,000007945520785,GERMAN TRAVEL CENT,4722,Staff travelling,"2,000.00",0.00,2000.00
Regeneration and Local Services,Economic Development and Housing,030554,International Relations,Transport,235057,Public Transport,11-Oct-2018,000007945520787,GERMAN TRAVEL CENT,4722,Staff travelling,"2,000.00",0.00,2000.00
Children and Young Peoples Services,Head of Education and Skills,054640,Durham Learning Resources,Supplies and Services,304245,Equipment and Materials,11-Oct-2018,000007945520805,WWW.EPICMILITARIA.COM,5942,Materials,72.75,12.13,60.62
Children and Young Peoples Services,Head of Education and Skills,054640,Durham Learning Resources,Supplies and Services,304245,Equipment and Materials,11-Oct-2018,000007945520809,WWW.NORGEO.CO.UK,5999,Materials,32.28,5.38,26.90
Regeneration and Local Services,Direct Services,010913,Bldg Serv - Construction General,Supplies and Services,344033,Telephones,11-Oct-2018,000007945520821,AMZN Mktp UK,5942,Telephones general-all costs,59.94,9.99,49.95
Regeneration and Local Services,Direct Services,020065,Bldg Serv - CONS Div 65 - Building South,Supplies and Services,304335,Equipment and Materials,11-Oct-2018,000007945520825,AMZN MKTP UK AMAZON.CO,5942,ICT supplies etc,16.18,2.70,13.48
Resources,Digital and Customer Services,070204,School Services - Systems,Supplies and Services,304335,Equipment and Materials,11-Oct-2018,000007945520827,GOOGLE APPS LOGIN FOR,5734,ICT supplies etc,170.42,0.00,170.42
Resources,Digital and Customer Services,065481,Technical Services,Supplies and Services,304335,Equipment and Materials,11-Oct-2018,000007945520829,AMZN Mktp UK,5942,ICT supplies etc,13.49,2.25,11.24
Dedicated Schools Grant,DSG High Needs Block,077099,Special General,Supplies and Services,304403,Equipment and Materials,11-Oct-2018,000007945520853,CRELLING HARNESSES LTD,5999,Other consumables,156.30,0.00,156.30
Children and Young Peoples Services,Head of Education and Skills,075021,Youth Employment Initiative,Supplies and Services,384199,Miscellaneous Expenses,11-Oct-2018,000007945520877,E RUSSUM & SONS LTD,5399,Other hired and contracted services,51.55,8.59,42.96
Children and Young Peoples Services,Head of Education and Skills,075021,Youth Employment Initiative,Supplies and Services,384199,Miscellaneous Expenses,11-Oct-2018,000007945520881,HARTLEPOOL BC CNP,9399,Other hired and contracted services,14.00,0.00,14.00
Children and Young Peoples Services,Head of Education and Skills,075021,Youth Employment Initiative,Supplies and Services,384199,Miscellaneous Expenses,11-Oct-2018,000007945520885,WWW.DURHAM.GOV.UK,9399,Other hired and contracted services,12.00,0.00,12.00
Children and Young Peoples Services,Head of Childrens Social Care,085342,9 Cedar Drive Aycliffe,Supplies and Services,384237,Miscellaneous Expenses,11-Oct-2018,000007945520907,WWW.LONGLEAT.CO.UK,7999,Recreational exps outings parties,118.80,0.00,118.80
Children and Young Peoples Services,Head of Childrens Social Care,085342,9 Cedar Drive Aycliffe,Supplies and Services,328041,Clothing uniforms and laundry E328,11-Oct-2018,000007945520913,CADBURY WORLD INTERNET,7996,Clothing uniforms and laundry,68.60,0.00,68.60
Dedicated Schools Grant,DSG High Needs Block,079050,SENSS-Sensory,Supplies and Services,384956,Miscellaneous Expenses,11-Oct-2018,000007945520923,R-COMP,5734,Licences,70.00,0.00,70.00
Children and Young Peoples Services,"Head of Early Help, Inclusion and Vulnerable Children",085965,Barnard,Supplies and Services,328041,Clothing uniforms and laundry E328,11-Oct-2018,000007945520925,M and M Direct Ltd,5941,Clothing uniforms and laundry,16.98,0.00,16.98
Children and Young Peoples Services,"Head of Early Help, Inclusion and Vulnerable Children",085965,Barnard,Supplies and Services,328041,Clothing uniforms and laundry E328,11-Oct-2018,000007945520929,AMZN Mktp UK,5942,Clothing uniforms and laundry,3.99,0.00,3.99
Children and Young Peoples Services,"Head of Early Help, Inclusion and Vulnerable Children",085965,Barnard,Supplies and Services,328041,Clothing uniforms and laundry E328,11-Oct-2018,000007945520931,FOOTASYLUM PLC,5941,Clothing uniforms and laundry,73.95,0.00,73.95
Children and Young Peoples Services,"Head of Early Help, Inclusion and Vulnerable Children",085965,Barnard,Supplies and Services,328041,Clothing uniforms and laundry E328,11-Oct-2018,000007945520937,FOOTASYLUM PLC,5941,Clothing uniforms and laundry,54.98,0.00,54.98
Children and Young Peoples Services,"Head of Early Help, Inclusion and Vulnerable Children",085954,Walworth,Supplies and Services,328041,Clothing uniforms and laundry E328,11-Oct-2018,000007945520939,FOOTASYLUM PLC,5941,Clothing uniforms and laundry,84.99,14.17,70.82
Children and Young Peoples Services,"Head of Early Help, Inclusion and Vulnerable Children",085965,Barnard,Supplies and Services,328041,Clothing uniforms and laundry E328,11-Oct-2018,000007945520943,VERY,5964,Clothing uniforms and laundry,27.99,0.00,27.99
Children and Young Peoples Services,"Head of Early Help, Inclusion and Vulnerable Children",085965,Barnard,Supplies and Services,328041,Clothing uniforms and laundry E328,11-Oct-2018,000007945520947,VERY,5964,Clothing uniforms and laundry,21.99,0.00,21.99
Children and Young Peoples Services,"Head of Early Help, Inclusion and Vulnerable Children",085957,Secure Management,Supplies and Services,328041,Clothing uniforms and laundry E328,11-Oct-2018,000007945520949,SPORTSDIRECT.COM,5941,Clothing uniforms and laundry,-17.00,0.00,-17.00
Children and Young Peoples Services,Head of Childrens Social Care,085332,Middlestone Moor CU,Supplies and Services,324117,Provisions E324,11-Oct-2018,000007945520955,TESCO STORES 2916,5411,Catering costs - provisions,15.06,0.00,15.06
Regeneration and Local Services,Economic Development and Housing,030544,Rural Employability - Client Engagement,Supplies and Services,328041,Clothing uniforms and laundry E328,11-Oct-2018,000007945521025,SHOE ZONE 1746,5661,Clothing uniforms and laundry,25.04,0.00,25.04
Regeneration and Local Services,Economic Development and Housing,030544,Rural Employability - Client Engagement,Supplies and Services,328041,Clothing uniforms and laundry E328,11-Oct-2018,000007945521027,SHOE ZONE 1746,5661,Clothing uniforms and laundry,25.04,0.00,25.04
Regeneration and Local Services,Direct Services,021242,Catering - County Hall,Supplies and Services,324117,Provisions E324,11-Oct-2018,000007945521031,JR HOLLAND FOODSERVICE,5422,Catering costs - provisions,104.14,0.00,104.14
Regeneration and Local Services,Direct Services,021242,Catering - County Hall,Supplies and Services,324117,Provisions E324,11-Oct-2018,000007945521037,JR HOLLAND FOODSERVICE,5422,Catering costs - provisions,13.80,0.00,13.80
Regeneration and Local Services,Culture & Sport,054812,Gala Theatre - Catering etc,Supplies and Services,324117,Provisions E324,11-Oct-2018,000007945521047,JR HOLLAND FOODSERVICE,5422,Catering costs - provisions,57.84,0.00,57.84
Children and Young Peoples Services,Head of Childrens Social Care,085352,Tow Law CU,Supplies and Services,324117,Provisions E324,11-Oct-2018,000007945521153,REPLACEMENTKEYS.CO.UK,5399,Catering costs - provisions,56.00,0.00,56.00
Children and Young Peoples Services,Head of Education and Skills,071732,Dean Bank Childcare,Supplies and Services,324117,Provisions E324,11-Oct-2018,000007945521169,SAINSBURYS SACAT (2303,5411,Catering costs - provisions,12.84,0.00,12.84
Children and Young Peoples Services,"Head of Early Help, Inclusion and Vulnerable Children",088107,Ferryhill & Newton Aycliffe 0-19 Community Family Hub,Supplies and Services,304403,Equipment and Materials,11-Oct-2018,000007945521227,ARGOS RETAIL GROUP,5310,Other consumables,39.98,0.00,39.98
Regeneration and Local Services,Culture & Sport,011060,Hardwick Park Catering,Supplies and Services,324117,Provisions E324,11-Oct-2018,000007945521273,JR HOLLAND FOODSERVICE,5422,Catering costs - provisions,23.82,0.00,23.82
Regeneration and Local Services,Direct Services,021234,Catering - Locomotion,Supplies and Services,324117,Provisions E324,11-Oct-2018,000007945521283,JR HOLLAND FOODSERVICE,5422,Catering costs - provisions,75.34,0.00,75.34
Children and Young Peoples Services,Head of Childrens Social Care,085334,West Rainton Satelite Home,Supplies and Services,324117,Provisions E324,11-Oct-2018,000007945521415,TESCO STORES 2371,5411,Catering costs - provisions,177.25,0.00,177.25
Regeneration and Local Services,Direct Services,010367,C&G - South Grounds Maintenance,Supplies and Services,304221,Equipment and Materials,11-Oct-2018,000007945521429,SCREWFIX DIRECT LT,5211,Direct materials,20.38,3.40,16.98
Regeneration and Local Services,Direct Services,010367,C&G - South Grounds Maintenance,Supplies and Services,304221,Equipment and Materials,11-Oct-2018,000007945521431,SCREWFIX DIRECT LT,5211,Direct materials,10.19,1.70,8.49
Regeneration and Local Services,Economic Development and Housing,031576,B& B - Temp Accom,Supplies and Services,364320,Grants to Voluntary Organisations,11-Oct-2018,000007945521465,TRAVELODGE,3615,Accommodation assistance,33.00,5.50,27.50
Children and Young Peoples Services,"Head of Early Help, Inclusion and Vulnerable Children",074000,TTF-Attachment and Results,Transfer Payments,525033,Other,11-Oct-2018,000007945521499,AMZN Mktp UK,5942,Grants to individuals,23.99,4.00,19.99
Children and Young Peoples Services,"Head of Early Help, Inclusion and Vulnerable Children",074000,TTF-Attachment and Results,Transfer Payments,525033,Other,11-Oct-2018,000007945521501,AMZN Mktp UK,5942,Grants to individuals,23.99,4.00,19.99
Children and Young Peoples Services,"Head of Early Help, Inclusion and Vulnerable Children",074000,TTF-Attachment and Results,Transfer Payments,525033,Other,11-Oct-2018,000007945521503,AMZN MKTP UK AMAZON.CO,5942,Grants to individuals,23.99,4.00,19.99
Children and Young Peoples Services,"Head of Early Help, Inclusion and Vulnerable Children",074000,TTF-Attachment and Results,Transfer Payments,525033,Other,11-Oct-2018,000007945521505,AMZN MKTP UK AMAZON.CO,5942,Grants to individuals,23.99,4.00,19.99
Children and Young Peoples Services,"Head of Early Help, Inclusion and Vulnerable Children",074000,TTF-Attachment and Results,Transfer Payments,525033,Other,11-Oct-2018,000007945521509,AMZN MKTP UK AMAZON.CO,5942,Grants to individuals,23.99,4.00,19.99
Children and Young Peoples Services,"Head of Early Help, Inclusion and Vulnerable Children",074000,TTF-Attachment and Results,Transfer Payments,525033,Other,11-Oct-2018,000007945521511,AMZN MKTP UK AMAZON.CO,5942,Grants to individuals,14.40,2.40,12.00
Children and Young Peoples Services,"Head of Early Help, Inclusion and Vulnerable Children",074000,TTF-Attachment and Results,Transfer Payments,525033,Other,11-Oct-2018,000007945521515,FRANKS THE FLOORING ST,5713,Grants to individuals,150.00,0.00,150.00
Children and Young Peoples Services,"Head of Early Help, Inclusion and Vulnerable Children",074000,TTF-Attachment and Results,Transfer Payments,525033,Other,11-Oct-2018,000007945521517,AMZN Mktp UK,5942,Grants to individuals,14.98,2.50,12.48
Children and Young Peoples Services,"Head of Early Help, Inclusion and Vulnerable Children",074000,TTF-Attachment and Results,Transfer Payments,525033,Other,11-Oct-2018,000007945521519,J DODDS CARPETS LTD,5713,Grants to individuals,150.00,0.00,150.00
Resources,Digital and Customer Services,065335,School Services - Implementations,Supplies and Services,304639,Equipment and Materials,11-Oct-2018,000007945521523,AMZN Mktp UK,5942,Technicians-supplies,10.45,0.00,10.45
Resources,Digital and Customer Services,065335,School Services - Implementations,Supplies and Services,304303,Equipment and Materials,11-Oct-2018,000007945521525,AMZN Mktp UK,5942,Network for resale,99.84,16.64,83.20
Children and Young Peoples Services,"Head of Early Help, Inclusion and Vulnerable Children",085957,Secure Management,Supplies and Services,338057,Services,11-Oct-2018,000007945521527,MEDISUPPLIES LTD,5999,Medical fees 338057,-336.90,-56.15,-280.75
Children and Young Peoples Services,Head of Childrens Social Care,085357,Bespoke Placements,Supplies and Services,364320,Grants to Voluntary Organisations,11-Oct-2018,000007945521529,HOLIDAY COTTAGES,7033,Accommodation assistance,444.00,0.00,444.00
Dedicated Schools Grant,DSG High Needs Block,079040,SENSS-HQ,Employees,040149,Recruitment Instruction and Training,11-Oct-2018,000007945521535,PAYPAL SPECIALNEED,8999,Training-all costs,27.00,0.00,27.00
Regeneration and Local Services,Economic Development and Housing,030690,Durham Dales Centre - Tourist Information Centre,Supplies and Services,384999,Miscellaneous Expenses,11-Oct-2018,000007945521543,GAINSBOROUGH GIFTWARE,5950,Other expenses,594.64,99.11,495.53
Children and Young Peoples Services,Head of Childrens Social Care,085333,Coxhoe Satelite Home,Supplies and Services,312011,Newspapers books and periodicals E312,11-Oct-2018,000007945521559,AMZN Mktp UK,5942,Books-school library,4.59,0.77,3.82
Regeneration and Local Services,Culture & Sport,054820,Gala Theatre - Overheads,Supplies and Services,324117,Provisions E324,11-Oct-2018,000007945521633,TESCO STORES 6029,5411,Catering costs - provisions,3.00,0.00,3.00
Adult and Health Services,Head of Adults,055302,Durham Pathways,Supplies and Services,324117,Provisions E324,11-Oct-2018,000007945521661,SAINSBURYS SACAT 0776,5411,Catering costs - provisions,8.50,0.00,8.50
Resources,Digital and Customer Services,069010,Administration,Employees,040149,Recruitment Instruction and Training,11-Oct-2018,000007945521677,NETMUMS LTD,8999,Training-all costs,100.80,0.00,100.80
Adult and Health Services,Head of Adults,055306,Spennymoor Pathways,Supplies and Services,312011,Newspapers books and periodicals E312,11-Oct-2018,000007945521679,AMZN MKTP UK AMAZON.CO,5942,Books-school library,20.99,0.00,20.99
Regeneration and Local Services,Spatial Policy Planning Assets & Environment,031217,North Pennines - Cold Blooded & Spineless,Supplies and Services,342033,Computers and Communications,11-Oct-2018,000007945521685,CLOOK INTERNET,7372,Computer hardware,60.00,0.00,60.00
Adult and Health Services,Head of Adults,055309,Peterlee Pathways,Supplies and Services,308011,Furniture,11-Oct-2018,000007945521691,POUNDSTRETCHER 396,5714,Furniture repair and replacement,1.00,0.00,1.00
Regeneration and Local Services,Economic Development and Housing,030553,Europe Direct Scheme,Supplies and Services,384999,Miscellaneous Expenses,11-Oct-2018,000007945521737,TESCO STORES 2371,5411,Other expenses,12.50,0.00,12.50
Regeneration and Local Services,Economic Development and Housing,031576,B& B - Temp Accom,Supplies and Services,364320,Grants to Voluntary Organisations,11-Oct-2018,000007951837067,PREMIER INN,3811,Accommodation assistance,269.00,0.00,269.00
Children and Young Peoples Services,"Head of Early Help, Inclusion and Vulnerable Children",085954,Walworth,Supplies and Services,304259,Equipment and Materials,11-Oct-2018,000007951837167,SPORTSDIRECT.COM,5941,Equipment-purchase and rental,143.98,24.00,119.98
Regeneration and Local Services,Culture & Sport,054200,Lanchester Library,Supplies and Services,384956,Miscellaneous Expenses,11-Oct-2018,000007951837321,TVLICENSING.CO.UK,7392,Licences,150.50,0.00,150.50
Regeneration and Local Services,Culture & Sport,054251,Woodhouse Close Library,Supplies and Services,384956,Miscellaneous Expenses,11-Oct-2018,000007951837327,TVLICENSING.CO.UK,7392,Licences,150.50,0.00,150.50
Regeneration and Local Services,Culture & Sport,054303,Ferryhill Library,Supplies and Services,384956,Miscellaneous Expenses,11-Oct-2018,000007951837329,TVLICENSING.CO.UK,7392,Licences,150.50,0.00,150.50
Regeneration and Local Services,Culture & Sport,054120,Bowburn Library,Supplies and Services,384956,Miscellaneous Expenses,11-Oct-2018,000007951837335,TVLICENSING.CO.UK,7392,Licences,150.50,0.00,150.50
Regeneration and Local Services,Culture & Sport,054301,Chilton Library,Supplies and Services,384956,Miscellaneous Expenses,11-Oct-2018,000007951837339,TVLICENSING.CO.UK,7392,Licences,150.50,0.00,150.50
Regeneration and Local Services,Culture & Sport,054220,Annfield Plain Library,Supplies and Services,384956,Miscellaneous Expenses,11-Oct-2018,000007951837345,TVLICENSING.CO.UK,7392,Licences,150.50,0.00,150.50
Regeneration and Local Services,Culture & Sport,054100,Belmont Library,Supplies and Services,384956,Miscellaneous Expenses,11-Oct-2018,000007951837347,TVLICENSING.CO.UK,7392,Licences,150.50,0.00,150.50
Regeneration and Local Services,Direct Services,021242,Catering - County Hall,Supplies and Services,324117,Provisions E324,11-Oct-2018,000007951837391,BATLEYS PERTH,5300,Catering costs - provisions,465.78,77.63,388.15
Regeneration and Local Services,Direct Services,021242,Catering - County Hall,Supplies and Services,324117,Provisions E324,11-Oct-2018,000007951837391 - 1,BATLEYS PERTH,5300,Catering costs - provisions,150.77,,150.77
Children and Young Peoples Services,Head of Childrens Social Care,085371,Young People Services - South,Supplies and Services,364320,Grants to Voluntary Organisations,11-Oct-2018,000007951837417,PREMIER INN,3811,Accommodation assistance,88.99,14.83,74.16
Adult and Health Services,Head of Adults,051603,OP/PD Durham & CLS,Supplies and Services,340001,Postages E340,11-Oct-2018,000007951837861,WWW.POSTOFFICESHOP.CO.,5111,Postages,60.99,0.00,60.99
Regeneration and Local Services,Culture & Sport,011060,Hardwick Park Catering,Supplies and Services,324117,Provisions E324,11-Oct-2018,000007951838081,BATLEYS PERTH,5300,Catering costs - provisions,207.42,34.57,172.85
Regeneration and Local Services,Culture & Sport,011060,Hardwick Park Catering,Supplies and Services,324117,Provisions E324,11-Oct-2018,000007951838081 - 1,BATLEYS PERTH,5300,Catering costs - provisions,211.26,,211.26
Regeneration and Local Services,Culture & Sport,011060,Hardwick Park Catering,Supplies and Services,324117,Provisions E324,11-Oct-2018,000007951838093,BATLEYS PERTH,5300,Catering costs - provisions,14.22,2.37,11.85
Regeneration and Local Services,Culture & Sport,011060,Hardwick Park Catering,Supplies and Services,324117,Provisions E324,11-Oct-2018,000007951838093 - 1,BATLEYS PERTH,5300,Catering costs - provisions,3.58,,3.58
Regeneration and Local Services,Culture & Sport,011060,Hardwick Park Catering,Supplies and Services,324117,Provisions E324,11-Oct-2018,000007951838097,BATLEYS PERTH,5300,Catering costs - provisions,6.42,0.00,6.42
Regeneration and Local Services,Direct Services,021234,Catering - Locomotion,Supplies and Services,324117,Provisions E324,11-Oct-2018,000007951838145,BATLEYS PERTH,5300,Catering costs - provisions,185.04,30.84,154.20
Regeneration and Local Services,Direct Services,021234,Catering - Locomotion,Supplies and Services,324117,Provisions E324,11-Oct-2018,000007951838145 - 1,BATLEYS PERTH,5300,Catering costs - provisions,78.48,,78.48
Regeneration and Local Services,Economic Development and Housing,031576,B& B - Temp Accom,Supplies and Services,364320,Grants to Voluntary Organisations,11-Oct-2018,000007951838397,PREMIER INN,3811,Accommodation assistance,64.00,10.67,53.33
Regeneration and Local Services,Spatial Policy Planning Assets & Environment,031200,North Pennines Core,Transport,235057,Public Transport,11-Oct-2018,000007951838419,ROYAL DUTCH AIRLINES (KLM),3010,Staff travelling,208.18,0.00,208.18
Children and Young Peoples Services,"Head of Early Help, Inclusion and Vulnerable Children",074000,TTF-Attachment and Results,Transfer Payments,525033,Other,11-Oct-2018,000007951838443,AMZN MKTP UK AMAZON.CO,5942,Grants to individuals,29.96,0.00,29.96
Children and Young Peoples Services,"Head of Early Help, Inclusion and Vulnerable Children",074000,TTF-Attachment and Results,Transfer Payments,525033,Other,11-Oct-2018,000007951838449,AMZN MKTP UK AMAZON.CO,5942,Grants to individuals,27.97,4.66,23.31
Regeneration and Local Services,Economic Development and Housing,030690,Durham Dales Centre - Tourist Information Centre,Supplies and Services,328041,Clothing uniforms and laundry E328,11-Oct-2018,000007951838527,WWW.AKHOSIERY.CO.UK,5621,Clothing uniforms and laundry,215.10,35.85,179.25
Regeneration and Local Services,Culture & Sport,054308,Shotton Library,Supplies and Services,384956,Miscellaneous Expenses,11-Oct-2018,000007951838853,TVLICENSING.CO.UK,7392,Licences,150.50,0.00,150.50
Regeneration and Local Services,Culture & Sport,054341,Sedgefield Library,Supplies and Services,384956,Miscellaneous Expenses,11-Oct-2018,000007951838857,TVLICENSING.CO.UK,7392,Licences,150.50,0.00,150.50
Regeneration and Local Services,Culture & Sport,054311,Trimdon Library,Supplies and Services,384956,Miscellaneous Expenses,11-Oct-2018,000007951838863,TVLICENSING.CO.UK,7392,Licences,150.50,0.00,150.50
Regeneration and Local Services,Culture & Sport,054330,Thornley Library,Supplies and Services,384956,Miscellaneous Expenses,11-Oct-2018,000007951838867,TVLICENSING.CO.UK,7392,Licences,150.50,0.00,150.50
Regeneration and Local Services,Culture & Sport,054312,Wingate Library,Supplies and Services,384956,Miscellaneous Expenses,11-Oct-2018,000007951838871,TVLICENSING.CO.UK,7392,Licences,150.50,0.00,150.50
Regeneration and Local Services,Culture & Sport,054205,Wolsingham Library,Supplies and Services,384956,Miscellaneous Expenses,11-Oct-2018,000007951838875,TVLICENSING.CO.UK,7392,Licences,150.50,0.00,150.50
Resources,Digital and Customer Services,070204,School Services - Systems,Supplies and Services,304335,Equipment and Materials,12-Oct-2018,000007945520831,GOOGLE APPS LOGIN FOR,5734,ICT supplies etc,4.69,0.00,4.69
Children and Young Peoples Services,Head of Education and Skills,071801,Selby Cottage Childcare Centre,Supplies and Services,324117,Provisions E324,12-Oct-2018,000007951837045,TESCO STORES 2278,5411,Catering costs - provisions,19.78,0.00,19.78
Children and Young Peoples Services,Head of Education and Skills,071801,Selby Cottage Childcare Centre,Supplies and Services,324117,Provisions E324,12-Oct-2018,000007951837053,ONE STOP 3026,5411,Catering costs - provisions,8.00,0.00,8.00
Children and Young Peoples Services,Head of Education and Skills,054640,Durham Learning Resources,Supplies and Services,304245,Equipment and Materials,12-Oct-2018,000007951837061,WWW.NORGEO.CO.UK,5999,Materials,55.50,9.25,46.25
Regeneration and Local Services,Economic Development and Housing,031576,B& B - Temp Accom,Supplies and Services,364320,Grants to Voluntary Organisations,12-Oct-2018,000007951837073,PREMIER INN,3811,Accommodation assistance,187.00,0.00,187.00
Adult and Health Services,Head of Adults,055302,Durham Pathways,Supplies and Services,312011,Newspapers books and periodicals E312,12-Oct-2018,000007951837115,AMZN MKTP UK AMAZON.CO,5942,Books-school library,1.98,0.00,1.98
Regeneration and Local Services,Direct Services,010383,C&G - South Street Cleansing,Supplies and Services,324117,Provisions E324,12-Oct-2018,000007951837127,J M RAINE,5399,Catering costs - provisions,426.84,71.14,355.70
Regeneration and Local Services,Direct Services,010383,C&G - South Street Cleansing,Supplies and Services,312011,Newspapers books and periodicals E312,12-Oct-2018,000007951837133,Snowballs,5251,Books-school library,6.50,1.08,5.42
Children and Young Peoples Services,"Head of Early Help, Inclusion and Vulnerable Children",085965,Barnard,Supplies and Services,328041,Clothing uniforms and laundry E328,12-Oct-2018,000007951837157,AMZN Mktp UK,5942,Clothing uniforms and laundry,4.19,0.70,3.49
Children and Young Peoples Services,"Head of Early Help, Inclusion and Vulnerable Children",085956,Lumley,Supplies and Services,324117,Provisions E324,12-Oct-2018,000007951837161,TESCO STORES 6329,5411,Catering costs - provisions,69.72,0.00,69.72
Children and Young Peoples Services,Head of Childrens Social Care,085332,Middlestone Moor CU,Supplies and Services,324117,Provisions E324,12-Oct-2018,000007951837175,TESCO STORES 2371,5411,Catering costs - provisions,134.62,0.00,134.62
Children and Young Peoples Services,Head of Childrens Social Care,085332,Middlestone Moor CU,Supplies and Services,324117,Provisions E324,12-Oct-2018,000007951837181,ALDI 74 774,5411,Catering costs - provisions,10.87,0.00,10.87
Children and Young Peoples Services,Head of Childrens Social Care,085342,9 Cedar Drive Aycliffe,Employees,040149,Recruitment Instruction and Training,12-Oct-2018,000007951837255,PARENTPAY E-COM R,8220,Training-all costs,50.00,0.00,50.00
Regeneration and Local Services,Economic Development and Housing,030544,Rural Employability - Client Engagement,Transport,235057,Public Transport,12-Oct-2018,000007951837357,ARRIVA NORTH EAST,4131,Staff travelling,72.00,0.00,72.00
Regeneration and Local Services,Economic Development and Housing,030544,Rural Employability - Client Engagement,Transport,235057,Public Transport,12-Oct-2018,000007951837359,ARRIVA NORTH EAST,4131,Staff travelling,14.40,0.00,14.40
Regeneration and Local Services,Direct Services,021242,Catering - County Hall,Supplies and Services,324117,Provisions E324,12-Oct-2018,000007951837367,JR HOLLAND FOODSERVICE,5422,Catering costs - provisions,85.27,0.00,85.27
Regeneration and Local Services,Direct Services,021242,Catering - County Hall,Supplies and Services,324117,Provisions E324,12-Oct-2018,000007951837369,JR HOLLAND FOODSERVICE,5422,Catering costs - provisions,13.80,0.00,13.80
Regeneration and Local Services,Direct Services,021242,Catering - County Hall,Supplies and Services,324117,Provisions E324,12-Oct-2018,000007951837371,HOPWELLS LTD,5811,Catering costs - provisions,270.24,0.00,270.24
Regeneration and Local Services,Direct Services,021242,Catering - County Hall,Supplies and Services,324117,Provisions E324,12-Oct-2018,000007951837377,HOPWELLS LTD,5811,Catering costs - provisions,193.98,0.00,193.98
Regeneration and Local Services,Direct Services,021242,Catering - County Hall,Supplies and Services,324117,Provisions E324,12-Oct-2018,000007951837383,HOPWELLS LTD,5811,Catering costs - provisions,66.20,0.00,66.20
Children and Young Peoples Services,Head of Childrens Social Care,085371,Young People Services - South,Supplies and Services,364320,Grants to Voluntary Organisations,12-Oct-2018,000007951837423,PREMIER INN,3811,Accommodation assistance,-24.99,0.00,-24.99
Children and Young Peoples Services,Head of Education and Skills,070169,Durham SSP,Supplies and Services,304403,Equipment and Materials,12-Oct-2018,000007951837433,WWW.,2741,Other consumables,432.00,72.00,360.00
Children and Young Peoples Services,Head of Education and Skills,070169,Durham SSP,Supplies and Services,384199,Miscellaneous Expenses,12-Oct-2018,000007951837435,Trainline,4112,Other hired and contracted services,48.31,0.00,48.31
Regeneration and Local Services,Culture & Sport,054812,Gala Theatre - Catering etc,Supplies and Services,324117,Provisions E324,12-Oct-2018,000007951837455,HOPWELLS LTD,5811,Catering costs - provisions,35.33,0.00,35.33
Regeneration and Local Services,Culture & Sport,054812,Gala Theatre - Catering etc,Supplies and Services,324117,Provisions E324,12-Oct-2018,000007951837459,HOPWELLS LTD,5811,Catering costs - provisions,-6.10,0.00,-6.10
Regeneration and Local Services,Culture & Sport,011217,Commercial Management,Supplies and Services,304403,Equipment and Materials,12-Oct-2018,000007951837583,WWW.SIGN-HOLDERS.CO.UK,5999,Other consumables,47.36,7.89,39.47
Regeneration and Local Services,Direct Services,010900,Fleet - Meadowfield Fleet,Transport,215013,Running Costs of Vehicles,12-Oct-2018,000007951837645,DVLA VEHICLE TAX,9399,Vehicle Excise Duty (VED),167.50,0.00,167.50
Regeneration and Local Services,Direct Services,010900,Fleet - Meadowfield Fleet,Transport,215013,Running Costs of Vehicles,12-Oct-2018,000007951837647,DVLA VEHICLE TAX,9399,Vehicle Excise Duty (VED),252.50,0.00,252.50
Regeneration and Local Services,Direct Services,010551,Fleet - Chilton Fleet,Transport,215013,Running Costs of Vehicles,12-Oct-2018,000007951837649,DVLA VEHICLE TAX,9399,Vehicle Excise Duty (VED),252.50,0.00,252.50
Regeneration and Local Services,Direct Services,010900,Fleet - Meadowfield Fleet,Transport,215013,Running Costs of Vehicles,12-Oct-2018,000007951837651,DVLA VEHICLE TAX,9399,Vehicle Excise Duty (VED),252.50,0.00,252.50
Regeneration and Local Services,Direct Services,010900,Fleet - Meadowfield Fleet,Transport,215013,Running Costs of Vehicles,12-Oct-2018,000007951837655,DVLA VEHICLE TAX,9399,Vehicle Excise Duty (VED),167.50,0.00,167.50
Regeneration and Local Services,Direct Services,010900,Fleet - Meadowfield Fleet,Transport,215013,Running Costs of Vehicles,12-Oct-2018,000007951837657,DVLA VEHICLE TAX,9399,Vehicle Excise Duty (VED),252.50,0.00,252.50
Regeneration and Local Services,Direct Services,010900,Fleet - Meadowfield Fleet,Transport,215013,Running Costs of Vehicles,12-Oct-2018,000007951837659,DVLA VEHICLE TAX,9399,Vehicle Excise Duty (VED),252.50,0.00,252.50
Regeneration and Local Services,Direct Services,010551,Fleet - Chilton Fleet,Transport,215013,Running Costs of Vehicles,12-Oct-2018,000007951837665,DVLA VEHICLE TAX,9399,Vehicle Excise Duty (VED),252.50,0.00,252.50
Regeneration and Local Services,Direct Services,010561,Fleet - Morrison Busty Fleet,Transport,215013,Running Costs of Vehicles,12-Oct-2018,000007951837669,DVLA VEHICLE TAX,9399,Vehicle Excise Duty (VED),252.50,0.00,252.50
Regeneration and Local Services,Direct Services,010900,Fleet - Meadowfield Fleet,Transport,215013,Running Costs of Vehicles,12-Oct-2018,000007951837673,DVLA VEHICLE TAX,9399,Vehicle Excise Duty (VED),252.50,0.00,252.50
Regeneration and Local Services,Direct Services,010864,Fleet - Hackworth Road Fleet,Transport,215013,Running Costs of Vehicles,12-Oct-2018,000007951837677,DVLA VEHICLE TAX,9399,Vehicle Excise Duty (VED),167.50,0.00,167.50
Regeneration and Local Services,Direct Services,010900,Fleet - Meadowfield Fleet,Transport,215013,Running Costs of Vehicles,12-Oct-2018,000007951837683,DVLA VEHICLE TAX,9399,Vehicle Excise Duty (VED),252.50,0.00,252.50
Regeneration and Local Services,Direct Services,010551,Fleet - Chilton Fleet,Transport,215013,Running Costs of Vehicles,12-Oct-2018,000007951837687,DVLA VEHICLE TAX,9399,Vehicle Excise Duty (VED),167.50,0.00,167.50
Regeneration and Local Services,Direct Services,010900,Fleet - Meadowfield Fleet,Transport,215013,Running Costs of Vehicles,12-Oct-2018,000007951837691,DVLA VEHICLE TAX,9399,Vehicle Excise Duty (VED),167.50,0.00,167.50
Regeneration and Local Services,Direct Services,010900,Fleet - Meadowfield Fleet,Transport,215013,Running Costs of Vehicles,12-Oct-2018,000007951837695,DVLA VEHICLE TAX,9399,Vehicle Excise Duty (VED),252.50,0.00,252.50
Regeneration and Local Services,Direct Services,010551,Fleet - Chilton Fleet,Transport,215013,Running Costs of Vehicles,12-Oct-2018,000007951837701,DVLA VEHICLE TAX,9399,Vehicle Excise Duty (VED),212.50,0.00,212.50
Regeneration and Local Services,Direct Services,010900,Fleet - Meadowfield Fleet,Transport,215013,Running Costs of Vehicles,12-Oct-2018,000007951837705,DVLA VEHICLE TAX,9399,Vehicle Excise Duty (VED),252.50,0.00,252.50
Regeneration and Local Services,Direct Services,010900,Fleet - Meadowfield Fleet,Transport,215013,Running Costs of Vehicles,12-Oct-2018,000007951837711,DVLA VEHICLE TAX,9399,Vehicle Excise Duty (VED),252.50,0.00,252.50
Regeneration and Local Services,Direct Services,010900,Fleet - Meadowfield Fleet,Transport,215013,Running Costs of Vehicles,12-Oct-2018,000007951837715,DVLA VEHICLE TAX,9399,Vehicle Excise Duty (VED),252.50,0.00,252.50
Regeneration and Local Services,Direct Services,010900,Fleet - Meadowfield Fleet,Transport,215013,Running Costs of Vehicles,12-Oct-2018,000007951837719,DVLA VEHICLE TAX,9399,Vehicle Excise Duty (VED),167.50,0.00,167.50
Regeneration and Local Services,Direct Services,010900,Fleet - Meadowfield Fleet,Transport,215013,Running Costs of Vehicles,12-Oct-2018,000007951837727,DVLA VEHICLE TAX,9399,Vehicle Excise Duty (VED),252.50,0.00,252.50
Regeneration and Local Services,Direct Services,010900,Fleet - Meadowfield Fleet,Transport,215013,Running Costs of Vehicles,12-Oct-2018,000007951837729,DVLA VEHICLE TAX,9399,Vehicle Excise Duty (VED),252.50,0.00,252.50
Regeneration and Local Services,Direct Services,010900,Fleet - Meadowfield Fleet,Transport,215013,Running Costs of Vehicles,12-Oct-2018,000007951837731,DVLA VEHICLE TAX,9399,Vehicle Excise Duty (VED),252.50,0.00,252.50
Regeneration and Local Services,Direct Services,010900,Fleet - Meadowfield Fleet,Transport,215013,Running Costs of Vehicles,12-Oct-2018,000007951837733,DVLA VEHICLE TAX,9399,Vehicle Excise Duty (VED),252.50,0.00,252.50
Regeneration and Local Services,Direct Services,010900,Fleet - Meadowfield Fleet,Transport,215013,Running Costs of Vehicles,12-Oct-2018,000007951837737,DVLA VEHICLE TAX,9399,Vehicle Excise Duty (VED),252.50,0.00,252.50
Regeneration and Local Services,Direct Services,010900,Fleet - Meadowfield Fleet,Transport,215013,Running Costs of Vehicles,12-Oct-2018,000007951837741,DVLA VEHICLE TAX,9399,Vehicle Excise Duty (VED),252.50,0.00,252.50
Regeneration and Local Services,Direct Services,010900,Fleet - Meadowfield Fleet,Transport,215013,Running Costs of Vehicles,12-Oct-2018,000007951837743,DVLA VEHICLE TAX,9399,Vehicle Excise Duty (VED),252.50,0.00,252.50
Regeneration and Local Services,Direct Services,010900,Fleet - Meadowfield Fleet,Transport,215013,Running Costs of Vehicles,12-Oct-2018,000007951837745,DVLA VEHICLE TAX,9399,Vehicle Excise Duty (VED),252.50,0.00,252.50
Regeneration and Local Services,Direct Services,010900,Fleet - Meadowfield Fleet,Transport,215013,Running Costs of Vehicles,12-Oct-2018,000007951837749,DVLA VEHICLE TAX,9399,Vehicle Excise Duty (VED),252.50,0.00,252.50
Regeneration and Local Services,Direct Services,010551,Fleet - Chilton Fleet,Transport,215013,Running Costs of Vehicles,12-Oct-2018,000007951837753,DVLA VEHICLE TAX,9399,Vehicle Excise Duty (VED),252.50,0.00,252.50
Regeneration and Local Services,Direct Services,010551,Fleet - Chilton Fleet,Transport,215013,Running Costs of Vehicles,12-Oct-2018,000007951837757,DVLA VEHICLE TAX,9399,Vehicle Excise Duty (VED),212.50,0.00,212.50
Regeneration and Local Services,Direct Services,010561,Fleet - Morrison Busty Fleet,Transport,215013,Running Costs of Vehicles,12-Oct-2018,000007951837761,DVLA VEHICLE TAX,9399,Vehicle Excise Duty (VED),252.50,0.00,252.50
Regeneration and Local Services,Direct Services,010900,Fleet - Meadowfield Fleet,Transport,215013,Running Costs of Vehicles,12-Oct-2018,000007951837763,DVLA VEHICLE TAX,9399,Vehicle Excise Duty (VED),252.50,0.00,252.50
Regeneration and Local Services,Direct Services,010900,Fleet - Meadowfield Fleet,Transport,215013,Running Costs of Vehicles,12-Oct-2018,000007951837769,DVLA VEHICLE TAX,9399,Vehicle Excise Duty (VED),252.50,0.00,252.50
Regeneration and Local Services,Direct Services,010900,Fleet - Meadowfield Fleet,Transport,215013,Running Costs of Vehicles,12-Oct-2018,000007951837783,DVLA VEHICLE TAX,9399,Vehicle Excise Duty (VED),252.50,0.00,252.50
Regeneration and Local Services,Direct Services,011171,Nei.Prot - Allotments,Supplies and Services,304403,Equipment and Materials,12-Oct-2018,000007951837867,AMZN MKTP UK AMAZON.CO,5942,Other consumables,21.60,3.60,18.00
Children and Young Peoples Services,Head of Education and Skills,078554,Adult Skills-Main,Supplies and Services,304403,Equipment and Materials,12-Oct-2018,000007951837871,AMZN MKTP UK AMAZON.CO,5942,Other consumables,24.97,4.16,20.81
Regeneration and Local Services,Culture & Sport,054813,Gala Theatre - Technical,Supplies and Services,312011,Newspapers books and periodicals E312,12-Oct-2018,000007951837993,AMZN Mktp UK,5942,Books-school library,59.99,0.00,59.99
Regeneration and Local Services,Culture & Sport,054813,Gala Theatre - Technical,Supplies and Services,312011,Newspapers books and periodicals E312,12-Oct-2018,000007951837999,AMZN Mktp UK,5942,Books-school library,24.50,0.00,24.50
Regeneration and Local Services,Culture & Sport,054813,Gala Theatre - Technical,Supplies and Services,304259,Equipment and Materials,12-Oct-2018,000007951838005,Prime Video,5735,Equipment-purchase and rental,5.99,0.00,5.99
Regeneration and Local Services,Culture & Sport,054813,Gala Theatre - Technical,Supplies and Services,304259,Equipment and Materials,12-Oct-2018,000007951838007,Prime Video,5735,Equipment-purchase and rental,6.99,0.00,6.99
Regeneration and Local Services,Culture & Sport,054813,Gala Theatre - Technical,Supplies and Services,312011,Newspapers books and periodicals E312,12-Oct-2018,000007951838011,AMZN Mktp UK,5942,Books-school library,198.00,0.00,198.00
Regeneration and Local Services,Culture & Sport,054813,Gala Theatre - Technical,Supplies and Services,312011,Newspapers books and periodicals E312,12-Oct-2018,000007951838017,AMZN Mktp UK,5942,Books-school library,41.24,0.00,41.24
Regeneration and Local Services,Culture & Sport,054813,Gala Theatre - Technical,Supplies and Services,312011,Newspapers books and periodicals E312,12-Oct-2018,000007951838021,AMZN Mktp UK,5942,Books-school library,55.40,0.00,55.40
Regeneration and Local Services,Culture & Sport,054813,Gala Theatre - Technical,Supplies and Services,312011,Newspapers books and periodicals E312,12-Oct-2018,000007951838025,Amazon.co.uk,5969,Books-school library,89.99,0.00,89.99
Regeneration and Local Services,Culture & Sport,054813,Gala Theatre - Technical,Employees,040149,Recruitment Instruction and Training,12-Oct-2018,000007951838031,LINENRENTAL.CO.UK,8999,Training-all costs,261.76,0.00,261.76
Regeneration and Local Services,Culture & Sport,054813,Gala Theatre - Technical,Employees,040149,Recruitment Instruction and Training,12-Oct-2018,000007951838035,LINENRENTAL.CO.UK,8999,Training-all costs,261.76,0.00,261.76
Regeneration and Local Services,Culture & Sport,054813,Gala Theatre - Technical,Employees,040149,Recruitment Instruction and Training,12-Oct-2018,000007951838037,LINENRENTAL.CO.UK,8999,Training-all costs,140.24,0.00,140.24
Regeneration and Local Services,Culture & Sport,054813,Gala Theatre - Technical,Supplies and Services,312011,Newspapers books and periodicals E312,12-Oct-2018,000007951838041,AMZN Mktp UK,5942,Books-school library,20.15,0.00,20.15
Regeneration and Local Services,Culture & Sport,054813,Gala Theatre - Technical,Supplies and Services,312011,Newspapers books and periodicals E312,12-Oct-2018,000007951838047,AMZN Mktp UK,5942,Books-school library,10.85,0.00,10.85
Regeneration and Local Services,Culture & Sport,054813,Gala Theatre - Technical,Supplies and Services,312011,Newspapers books and periodicals E312,12-Oct-2018,000007951838049,Amazon.co.uk,5969,Books-school library,7.99,0.00,7.99
Regeneration and Local Services,Culture & Sport,011060,Hardwick Park Catering,Supplies and Services,324117,Provisions E324,12-Oct-2018,000007951838065,HOPWELLS LTD,5811,Catering costs - provisions,110.76,18.46,92.30
Regeneration and Local Services,Culture & Sport,011060,Hardwick Park Catering,Supplies and Services,324117,Provisions E324,12-Oct-2018,000007951838065 - 1,HOPWELLS LTD,5811,Catering costs - provisions,100.62,,100.62
Regeneration and Local Services,Culture & Sport,011060,Hardwick Park Catering,Supplies and Services,324117,Provisions E324,12-Oct-2018,000007951838073,HOPWELLS LTD,5811,Catering costs - provisions,174.90,0.00,174.90
Regeneration and Local Services,Spatial Policy Planning Assets & Environment,031200,North Pennines Core,Transport,235057,Public Transport,12-Oct-2018,000007951838117,LNE RAILWAY DAR SST,4112,Staff travelling,14.50,0.00,14.50
Regeneration and Local Services,Direct Services,021234,Catering - Locomotion,Supplies and Services,324117,Provisions E324,12-Oct-2018,000007951838133,HOPWELLS LTD,5811,Catering costs - provisions,247.87,0.00,247.87
Regeneration and Local Services,Direct Services,021234,Catering - Locomotion,Supplies and Services,324117,Provisions E324,12-Oct-2018,000007951838139,HOPWELLS LTD,5811,Catering costs - provisions,33.41,0.00,33.41
Regeneration and Local Services,Direct Services,010525,Catering - Green Lane,Supplies and Services,324117,Provisions E324,12-Oct-2018,000007951838191,JR HOLLAND FOODSERVICE,5422,Catering costs - provisions,69.33,0.00,69.33
Regeneration and Local Services,Direct Services,010525,Catering - Green Lane,Supplies and Services,324117,Provisions E324,12-Oct-2018,000007951838197,HOPWELLS LTD,5811,Catering costs - provisions,121.22,0.00,121.22
Regeneration and Local Services,Direct Services,010525,Catering - Green Lane,Supplies and Services,324117,Provisions E324,12-Oct-2018,000007951838207,HOPWELLS LTD,5811,Catering costs - provisions,95.63,0.00,95.63
Regeneration and Local Services,Economic Development and Housing,030553,Europe Direct Scheme,Transport,235057,Public Transport,12-Oct-2018,000007951838241,GO METRO TRONE,4789,Staff travelling,1.85,0.00,1.85
Children and Young Peoples Services,Head of Childrens Social Care,085352,Tow Law CU,Supplies and Services,324117,Provisions E324,12-Oct-2018,000007951838373,TESCO STORES 2371,5411,Catering costs - provisions,69.74,0.00,69.74
Regeneration and Local Services,Direct Services,030691,"Catering - Durham Dales Centre			",Supplies and Services,324117,Provisions E324,12-Oct-2018,000007951838379,HOPWELLS LTD,5811,Catering costs - provisions,190.94,0.00,190.94
Regeneration and Local Services,Direct Services,030691,"Catering - Durham Dales Centre			",Supplies and Services,324117,Provisions E324,12-Oct-2018,000007951838383,HOPWELLS LTD,5811,Catering costs - provisions,45.97,0.00,45.97
Adult and Health Services,Head of Adults,055643,Hawthorn House LD Respite Unit,Supplies and Services,324117,Provisions E324,12-Oct-2018,000007951838403,JR HOLLAND FOODSERVICE,5422,Catering costs - provisions,10.55,0.00,10.55
Adult and Health Services,Head of Adults,055643,Hawthorn House LD Respite Unit,Supplies and Services,324117,Provisions E324,12-Oct-2018,000007951838407,JR HOLLAND FOODSERVICE,5422,Catering costs - provisions,8.17,0.00,8.17
Adult and Health Services,Head of Adults,055643,Hawthorn House LD Respite Unit,Supplies and Services,324117,Provisions E324,12-Oct-2018,000007951838411,HOPWELLS LTD,5811,Catering costs - provisions,16.74,2.79,13.95
Adult and Health Services,Head of Adults,055643,Hawthorn House LD Respite Unit,Supplies and Services,324117,Provisions E324,12-Oct-2018,000007951838411 - 1,HOPWELLS LTD,5811,Catering costs - provisions,55.51,,55.51
Regeneration and Local Services,Direct Services,010301,C&G - North Grounds Maintenance,Supplies and Services,304221,Equipment and Materials,12-Oct-2018,000007951838437,HARELAW SAWMILL,5211,Direct materials,10.01,1.67,8.34
Children and Young Peoples Services,"Head of Early Help, Inclusion and Vulnerable Children",074000,TTF-Attachment and Results,Transfer Payments,525033,Other,12-Oct-2018,000007951838441,MAGUIRES,5713,Grants to individuals,150.00,0.00,150.00
Children and Young Peoples Services,"Head of Early Help, Inclusion and Vulnerable Children",085952,Secure Education,Supplies and Services,304245,Equipment and Materials,12-Oct-2018,000007951838493,FAST KEY SERVICES LIMI,7399,Materials,13.24,2.21,11.03
Resources,People & Talent Management,066895,Advice & Guidance,Supplies and Services,352001,Conference Expenses,12-Oct-2018,000007951838509,EB SAVE TIME SAVE MON,7399,Conferencesseminars fees etc,-4.18,0.00,-4.18
Regeneration and Local Services,Economic Development and Housing,030705,Visit County Durham,Supplies and Services,352001,Conference Expenses,12-Oct-2018,000007951838511,THE BRISTOL HOTEL,5813,Conferencesseminars fees etc,95.00,0.00,95.00
Dedicated Schools Grant,DSG High Needs Block,079040,SENSS-HQ,Supplies and Services,312011,Newspapers books and periodicals E312,12-Oct-2018,000007951838517,AMZN MKTP UK AMAZON.CO,5942,Books-school library,3.59,0.00,3.59
Children and Young Peoples Services,Head of Childrens Social Care,085517,Supporting Solutions Service (Edge of Care),Supplies and Services,324117,Provisions E324,12-Oct-2018,000007951838523,ASDA STORES LTD 4313,5411,Catering costs - provisions,90.55,0.00,90.55
Regeneration and Local Services,Culture & Sport,054235,Bishop Auckland Town Hall Cafe,Supplies and Services,324117,Provisions E324,12-Oct-2018,000007951838551,JR HOLLAND FOODSERVICE,5422,Catering costs - provisions,34.21,0.00,34.21
Regeneration and Local Services,Culture & Sport,054235,Bishop Auckland Town Hall Cafe,Supplies and Services,324117,Provisions E324,12-Oct-2018,000007951838557,HOPWELLS LTD,5811,Catering costs - provisions,70.09,0.00,70.09
Regeneration and Local Services,Culture & Sport,011060,Hardwick Park Catering,Supplies and Services,328041,Clothing uniforms and laundry E328,12-Oct-2018,000007951838563,WWW.SIMONJERSEY.COM,5137,Clothing uniforms and laundry,310.30,51.72,258.58
Regeneration and Local Services,Direct Services,021324,Catering - Meadowfield,Supplies and Services,324117,Provisions E324,12-Oct-2018,000007951838571,JR HOLLAND FOODSERVICE,5422,Catering costs - provisions,42.01,0.00,42.01
Regeneration and Local Services,Direct Services,021324,Catering - Meadowfield,Supplies and Services,324117,Provisions E324,12-Oct-2018,000007951838575,JR HOLLAND FOODSERVICE,5422,Catering costs - provisions,10.35,0.00,10.35
Regeneration and Local Services,Direct Services,021324,Catering - Meadowfield,Supplies and Services,324117,Provisions E324,12-Oct-2018,000007951838581,HOPWELLS LTD,5811,Catering costs - provisions,66.70,0.00,66.70
Children and Young Peoples Services,Head of Childrens Social Care,085332,Middlestone Moor CU,Supplies and Services,384871,Miscellaneous Expenses,12-Oct-2018,000007951838659,VUE CINEMAS WWW,7832,Training-other activities,11.48,0.00,11.48
Adult and Health Services,Head of Adults,055302,Durham Pathways,Supplies and Services,312009,Newspapers books and periodicals E312,12-Oct-2018,000007951838717,AMZN MKTP UK AMAZON.CO,5942,Newspapers books and periodicals,21.49,0.00,21.49
Resources,Digital and Customer Services,069010,Administration,Supplies and Services,304221,Equipment and Materials,12-Oct-2018,000007951838725,WWW.BARRIERSDIRECT.CO.,5085,Direct materials,802.66,0.00,802.66
Resources,Digital and Customer Services,069010,Administration,Supplies and Services,340001,Postages E340,12-Oct-2018,000007951838731,ROYAL MAIL ONLINE SHOP,9402,Postages,334.95,0.00,334.95
Resources,Digital and Customer Services,069010,Administration,Supplies and Services,340001,Postages E340,12-Oct-2018,000007951838733,ROYAL MAIL ONLINE SHOP,9402,Postages,116.00,0.00,116.00
Resources,Digital and Customer Services,069010,Administration,Supplies and Services,304259,Equipment and Materials,12-Oct-2018,000007951838737,STOCKTON BOROUGH COUNC,9399,Equipment-purchase and rental,11.00,0.00,11.00
Adult and Health Services,Head of Adults,055306,Spennymoor Pathways,Supplies and Services,324117,Provisions E324,12-Oct-2018,000007951838741,ASDA SUPERSTORE 4987,5411,Catering costs - provisions,6.48,0.00,6.48
Regeneration and Local Services,Direct Services,021235,Catering - Wharton Park,Supplies and Services,324117,Provisions E324,12-Oct-2018,000007951838767,HOPWELLS LTD,5811,Catering costs - provisions,60.96,10.16,50.80
Regeneration and Local Services,Direct Services,021235,Catering - Wharton Park,Supplies and Services,324117,Provisions E324,12-Oct-2018,000007951838767 - 1,HOPWELLS LTD,5811,Catering costs - provisions,15.50,,15.50
Children and Young Peoples Services,Head of Childrens Social Care,085357,Bespoke Placements,Supplies and Services,352001,Conference Expenses,12-Oct-2018,000007951838773,HOTEL 52,7011,Conferencesseminars fees etc,744.00,124.00,620.00
Children and Young Peoples Services,Head of Education and Skills,076001,Music Service,Supplies and Services,304403,Equipment and Materials,12-Oct-2018,000007951838781,WWW.TROPHYSTORE.CO.UK,5947,Other consumables,27.47,4.58,22.89
Children and Young Peoples Services,Head of Education and Skills,076001,Music Service,Supplies and Services,328041,Clothing uniforms and laundry E328,12-Oct-2018,000007951838785,WWW.ARGOS.CO.UK,5310,Clothing uniforms and laundry,17.44,0.00,17.44
Children and Young Peoples Services,Head of Education and Skills,076001,Music Service,Supplies and Services,304259,Equipment and Materials,12-Oct-2018,000007951838791,WWW.GEAR4MUSIC.COM,5733,Equipment-purchase and rental,39.48,0.00,39.48
Regeneration and Local Services,Economic Development and Housing,030554,International Relations,Payments In advance A932,932001,Payments in advance,12-Oct-2018,000007951838845,BRITTANY FERRIES,4111,Payments in advance,100.00,0.00,100.00
Children and Young Peoples Services,Head of Childrens Social Care,085333,Coxhoe Satelite Home,Supplies and Services,324117,Provisions E324,12-Oct-2018,000007960007853,TESCO STORES 2371,5411,Catering costs - provisions,153.20,0.00,153.20
Children and Young Peoples Services,Head of Childrens Social Care,085333,Coxhoe Satelite Home,Supplies and Services,324117,Provisions E324,12-Oct-2018,000007960007857,TESCO STORES 2371,5411,Catering costs - provisions,40.81,0.00,40.81
Children and Young Peoples Services,Head of Childrens Social Care,085333,Coxhoe Satelite Home,Supplies and Services,324117,Provisions E324,12-Oct-2018,000007960007863,TESCO STORES 2371,5411,Catering costs - provisions,15.16,0.00,15.16
Children and Young Peoples Services,Head of Childrens Social Care,085333,Coxhoe Satelite Home,Supplies and Services,324117,Provisions E324,12-Oct-2018,000007960007869,TESCO STORES 2371,5411,Catering costs - provisions,13.10,0.00,13.10
Children and Young Peoples Services,Head of Childrens Social Care,085333,Coxhoe Satelite Home,Supplies and Services,324117,Provisions E324,12-Oct-2018,000007960007875,TESCO STORES 2371,5411,Catering costs - provisions,10.35,0.00,10.35
Children and Young Peoples Services,Head of Childrens Social Care,085333,Coxhoe Satelite Home,Supplies and Services,324117,Provisions E324,12-Oct-2018,000007960007879,TESCO STORES 2371,5411,Catering costs - provisions,4.97,0.00,4.97
Regeneration and Local Services,Culture & Sport,011060,Hardwick Park Catering,Supplies and Services,324117,Provisions E324,12-Oct-2018,000007960008133,BATLEYS PERTH,5300,Catering costs - provisions,88.98,14.83,74.15
Regeneration and Local Services,Culture & Sport,011060,Hardwick Park Catering,Supplies and Services,324117,Provisions E324,12-Oct-2018,000007960008133 - 1,BATLEYS PERTH,5300,Catering costs - provisions,134.07,,134.07
Regeneration and Local Services,Direct Services,010525,Catering - Green Lane,Supplies and Services,324117,Provisions E324,12-Oct-2018,000007960008219,BATLEYS PERTH,5300,Catering costs - provisions,249.36,41.56,207.80
Regeneration and Local Services,Direct Services,010525,Catering - Green Lane,Supplies and Services,324117,Provisions E324,12-Oct-2018,000007960008219 - 1,BATLEYS PERTH,5300,Catering costs - provisions,121.26,,121.26
Adult and Health Services,Head of Adults,055643,Hawthorn House LD Respite Unit,Supplies and Services,324117,Provisions E324,12-Oct-2018,000007960008501,BATLEYS PERTH,5300,Catering costs - provisions,22.68,3.78,18.90
Adult and Health Services,Head of Adults,055643,Hawthorn House LD Respite Unit,Supplies and Services,324117,Provisions E324,12-Oct-2018,000007960008501 - 1,BATLEYS PERTH,5300,Catering costs - provisions,75.24,,75.24
Adult and Health Services,Head of Adults,055643,Hawthorn House LD Respite Unit,Supplies and Services,324117,Provisions E324,12-Oct-2018,000007960008505,BATLEYS PERTH,5300,Catering costs - provisions,15.00,0.00,15.00
Children and Young Peoples Services,"Head of Early Help, Inclusion and Vulnerable Children",085954,Walworth,Supplies and Services,324117,Provisions E324,13-Oct-2018,000007951837169,TESCO STORES 6329,5411,Catering costs - provisions,158.31,0.00,158.31
Children and Young Peoples Services,"Head of Early Help, Inclusion and Vulnerable Children",085962,Aycliffe Secure - Durham,Supplies and Services,328041,Clothing uniforms and laundry E328,13-Oct-2018,000007951837173,M and M Direct Ltd,5941,Clothing uniforms and laundry,-59.99,0.00,-59.99
Children and Young Peoples Services,Head of Childrens Social Care,085333,Coxhoe Satelite Home,Supplies and Services,312011,Newspapers books and periodicals E312,13-Oct-2018,000007951837573,AMZN Mktp UK,5942,Books-school library,11.99,0.00,11.99
Children and Young Peoples Services,Head of Childrens Social Care,085333,Coxhoe Satelite Home,Supplies and Services,312011,Newspapers books and periodicals E312,13-Oct-2018,000007951837577,AMZN Mktp UK,5942,Books-school library,15.62,0.00,15.62
Children and Young Peoples Services,Head of Childrens Social Care,085333,Coxhoe Satelite Home,Supplies and Services,312011,Newspapers books and periodicals E312,13-Oct-2018,000007951837579,AMZN Mktp UK,5942,Books-school library,46.95,0.00,46.95
Resources,Resources Management,069000,Resources Management,Supplies and Services,324117,Provisions E324,13-Oct-2018,000007951838299,CO-OP GROUP 010830,5411,Catering costs - provisions,13.80,0.00,13.80
Children and Young Peoples Services,Head of Childrens Social Care,085342,9 Cedar Drive Aycliffe,Supplies and Services,324117,Provisions E324,13-Oct-2018,000007951838309,TESCO STORES 2916,5411,Catering costs - provisions,5.22,0.00,5.22
Children and Young Peoples Services,Head of Childrens Social Care,085352,Tow Law CU,Supplies and Services,328041,Clothing uniforms and laundry E328,13-Oct-2018,000007951838693,MATALAN,5691,Clothing uniforms and laundry,109.55,0.00,109.55
Children and Young Peoples Services,Head of Childrens Social Care,085352,Tow Law CU,Supplies and Services,304999,Equipment and Materials,13-Oct-2018,000007951838699,PLANET LEISURE (NA) LT,7933,Misc equipment tools and materials,38.45,0.00,38.45
Adult and Health Services,Head of Adults,055302,Durham Pathways,Supplies and Services,312011,Newspapers books and periodicals E312,14-Oct-2018,000007951837119,AMZN MKTP UK AMAZON.CO,5942,Books-school library,3.30,0.00,3.30
Adult and Health Services,Head of Adults,055302,Durham Pathways,Supplies and Services,312011,Newspapers books and periodicals E312,14-Oct-2018,000007951837125,AMZN MKTP UK AMAZON.CO,5942,Books-school library,4.98,0.00,4.98
Regeneration and Local Services,Economic Development and Housing,030699,Business Growth and Innovation General,Supplies and Services,342033,Computers and Communications,14-Oct-2018,000007951837193,WATCHFULPAYPAL,7379,Computer hardware,15.20,0.00,15.20
Children and Young Peoples Services,"Head of Early Help, Inclusion and Vulnerable Children",088107,Ferryhill & Newton Aycliffe 0-19 Community Family Hub,Supplies and Services,304403,Equipment and Materials,14-Oct-2018,000007951837987,Amazon.co.uk,5969,Other consumables,12.98,2.16,10.82
Children and Young Peoples Services,"Head of Early Help, Inclusion and Vulnerable Children",085957,Secure Management,Supplies and Services,324117,Provisions E324,14-Oct-2018,000007951838155,TESCO STORES 6329,5411,Catering costs - provisions,77.14,0.00,77.14
Regeneration and Local Services,Culture & Sport,054399,Local Delivery-Libraries,Supplies and Services,312009,Newspapers books and periodicals E312,14-Oct-2018,000007951838425,Amazon.co.uk MT4HV94C4,5969,Newspapers books and periodicals,110.87,0.00,110.87
Children and Young Peoples Services,"Head of Early Help, Inclusion and Vulnerable Children",085957,Secure Management,Supplies and Services,338057,Services,14-Oct-2018,000007951838499,AMZN MKTP UK AMAZON.CO,5942,Medical fees 338057,23.99,0.00,23.99
Children and Young Peoples Services,Head of Childrens Social Care,085332,Middlestone Moor CU,Premises,115125,Repairs to Grounds,14-Oct-2018,000007951838661,WWW.ILOVEWALLPAPER.CO.,5231,General maintenance,66.95,0.00,66.95
Regeneration and Local Services,Culture & Sport,011230,Operations Locality 2,Supplies and Services,312011,Newspapers books and periodicals E312,14-Oct-2018,000007951838831,AMZN Mktp UK,5942,Books-school library,43.49,0.00,43.49
Regeneration and Local Services,Economic Development and Housing,030699,Business Growth and Innovation General,Supplies and Services,342033,Computers and Communications,15-Oct-2018,000007951837195,WATCHFULPAYPAL,7379,Computer hardware,0.42,0.00,0.42
Regeneration and Local Services,Economic Development and Housing,030553,Europe Direct Scheme,Transport,235057,Public Transport,15-Oct-2018,000007951838243,GO METRO TRONE,4789,Staff travelling,0.05,0.00,0.05
Children and Young Peoples Services,Head of Education and Skills,071801,Selby Cottage Childcare Centre,Supplies and Services,304259,Equipment and Materials,15-Oct-2018,000007960007541,WILKO RETAIL LIMIT,5722,Equipment-purchase and rental,24.65,0.00,24.65
Children and Young Peoples Services,Head of Education and Skills,071801,Selby Cottage Childcare Centre,Supplies and Services,324117,Provisions E324,15-Oct-2018,000007960007547,ASDA GROCERIES ONLINE,5411,Catering costs - provisions,5.00,0.00,5.00
Children and Young Peoples Services,Head of Education and Skills,071801,Selby Cottage Childcare Centre,Supplies and Services,324117,Provisions E324,15-Oct-2018,000007960007549,TESCO STORES 2278,5411,Catering costs - provisions,18.00,0.00,18.00
Children and Young Peoples Services,Head of Education and Skills,071801,Selby Cottage Childcare Centre,Supplies and Services,324117,Provisions E324,15-Oct-2018,000007960007551,WM MORRISONS STORE,5411,Catering costs - provisions,5.00,0.00,5.00
Children and Young Peoples Services,Head of Education and Skills,071801,Selby Cottage Childcare Centre,Supplies and Services,324117,Provisions E324,15-Oct-2018,000007960007555,WM MORRISONS STORE,5411,Catering costs - provisions,32.00,0.00,32.00
Regeneration and Local Services,Direct Services,010383,C&G - South Street Cleansing,Supplies and Services,324117,Provisions E324,15-Oct-2018,000007960007613,J M RAINE,5399,Catering costs - provisions,17.10,2.85,14.25
